{"text_format":"1","workbook":"xlsx","n_sheets":4,"sheets":["بيانات الموظفين","اجازات الموظف","ادخال الاجازات","Sheet3"],"not_rendered":{"charts":0,"images":0,"macros":1,"external_links":0,"defined_names":0,"comments":0,"pivot_tables":0},"unopened":[],"bounds":{"document_bytes":16777216,"sheet_cells":100000,"rows_first":2000,"rows_last":500,"rows_between":2000,"halvings":0,"cell_chars":16384,"cell_head_chars":4096},"cells_cut":0,"cells_raw":0,"read":"whole","date_system":"1900"}

{"sheet":"بيانات الموظفين","index":0,"n_rows":51,"n_cols":4,"rows_kept":51,"cut":false,"hidden":false,"merged":[]}
["تسلسل","اسم الموظف","الرقم الوظيفي ","رصيد الاجازات"]
[1,"محمد",752]
[2,"علي ",711]
[3,"صباح ",11]
[4,"احمد ",754]
[5,"وليد ",852]
[6,"سليمان",758]
[7]
[8]
[9]
[10]
[11]
[12]
[13]
[14]
[15]
[16]
[17]
[18]
[19]
[20]
[21]
[22]
[23]
[24]
[25]
[26]
[27]
[28]
[29]
[30]
[31]
[32]
[33]
[34]
[35]
[36]
[37]
[38]
[39]
[40]
[41]
[42]
[43]
[44]
[45]
[46]
[47]
[48]
[49]
[50]

{"sheet":"اجازات الموظف","index":1,"n_rows":21,"n_cols":9,"rows_kept":21,"cut":false,"hidden":false,"merged":[[8,0,8,1],[4,6,5,8],[0,0,0,2],[2,0,2,2],[4,0,4,2],[0,6,0,7],[1,6,1,8]]}
["رصيد مدور2018",null,null,30,null,null,"الرصيد لغاية تاريخ",null,{"$f":"TODAY()","v":"2019-01-27"}]
[null,null,null,null,null,null,{"$f":"D5-B11","v":60}]
["رصيد بداية العام2019",null,null,30]
[]
["مجموع الاجازات الكلي",null,null,{"$f":"D3+D1","v":60},null,null,"ادخال الاجازة "]
[]
[]
[]
["تفاصيل الاجازت ",null,null,null,null,null,"رقم الموظف","اسم الموظف"]
[]
["سنوية",{"$f":"SUM(Sheet3!A:A)","v":0}]
[]
["عرضية",{"$f":"SUM(Sheet3!B:B)","v":0}]
[]
["أبوه",{"$f":"SUM(Sheet3!C:C)","v":0}]
[]
["حج",{"$f":"SUM(Sheet3!D:D)","v":0}]
[]
["بدون راتب",{"$f":"SUM(Sheet3!E:E)","v":0}]
[]
["مرضية",{"$f":"SUM(Sheet3!F:F)","v":0}]

{"sheet":"ادخال الاجازات","index":2,"n_rows":64,"n_cols":14,"rows_kept":64,"cut":false,"hidden":false,"merged":[[1,12,1,13],[0,0,0,8],[1,0,2,0],[1,3,1,4],[1,5,1,6],[1,7,2,7],[1,8,2,8]]}
["رصيد الاجازات 2019"]
["تسلسل","الاسم",null,"بداية الاجازة",null,"نهاية الاجازة",null,"عدد ايام الاجازة","نوع الاجازة",null,"رصيد الاجازات ",null,"الاعياد والايام الوطنية"]
[null,"تاريخ كتابة الاجازة","رقم الاجازة","اليوم","التاريخ","اليوم ","التاريخ",null,null,null,null,null,"من","الى "]
[1,null,null,{"$f":"TEXT(E4,\"[$-10A0000]ddd\")","v":"السبت"},null,{"$f":"TEXT(G4,\"[$-10A0000]ddd\")","v":"السبت"},null,{"$f":"WITHOUTFRISAT(E4,G4)","v":0}]
[2,null,null,{"$f":"TEXT(E5,\"[$-10A0000]ddd\")","v":"السبت"},null,{"$f":"TEXT(G5,\"[$-10A0000]ddd\")","v":"السبت"},null,{"$f":"WITHOUTFRISAT(E5,G5)","v":0}]
[3,null,null,"السبت",null,"السبت",null,{"$f":"WITHOUTFRISAT(E6,G6)","v":0}]
[4,null,null,"السبت",null,"السبت",null,{"$f":"WITHOUTFRISAT(E7,G7)","v":0}]
[5,null,null,"السبت",null,"السبت",null,{"$f":"WITHOUTFRISAT(E8,G8)","v":0}]
[6,null,null,"السبت",null,"السبت",null,{"$f":"WITHOUTFRISAT(E9,G9)","v":0}]
[7,null,null,"السبت",null,"السبت",null,0]
[8,null,null,"السبت",null,"السبت",null,0]
[9,null,null,"السبت",null,"السبت",null,0]
[9,null,null,"السبت",null,"السبت",null,0]
[10,null,null,"السبت",null,"السبت",null,0]
[11,null,null,"السبت",null,"السبت",null,0]
[12,null,null,"السبت",null,"السبت",null,0]
[13,null,null,"السبت",null,"السبت",null,0]
[14,null,null,"السبت",null,"السبت",null,0]
[15,null,null,"السبت",null,"السبت",null,0]
[16,null,null,"السبت",null,"السبت",null,0]
[17,null,null,"السبت",null,"السبت",null,0]
[18,null,null,"السبت",null,"السبت",null,0]
[19,null,null,"السبت",null,"السبت",null,0]
[20,null,null,"السبت",null,"السبت",null,0]
[21,null,null,"السبت",null,"السبت",null,0]
[22,null,null,"السبت",null,"السبت",null,0]
[23,null,null,"السبت",null,"السبت",null,0]
[24,null,null,"السبت",null,"السبت",null,0]
[25,null,null,"السبت",null,"السبت",null,0]
[26,null,null,"السبت",null,"السبت",null,0]
[27,null,null,"السبت",null,"السبت",null,0]
[28,null,null,"السبت",null,"السبت",null,0]
[29,null,null,"السبت",null,"السبت",null,0]
[30,null,null,"السبت",null,"السبت",null,0]
[31,null,null,"السبت",null,"السبت",null,0]
[32,null,null,"السبت",null,"السبت",null,0]
[33,null,null,"السبت",null,"السبت",null,0]
[34,null,null,"السبت",null,"السبت",null,0]
[35,null,null,"السبت",null,"السبت",null,0]
[36,null,null,"السبت",null,"السبت",null,0]
[37,null,null,"السبت",null,"السبت",null,0]
[38,null,null,"السبت",null,"السبت",null,0]
[39,null,null,"السبت",null,"السبت",null,0]
[40,null,null,"السبت",null,"السبت",null,0]
[41,null,null,"السبت",null,"السبت",null,0]
[42,null,null,"السبت",null,"السبت",null,0]
[43,null,null,"السبت",null,"السبت",null,0]
[44,null,null,"السبت",null,"السبت",null,0]
[45,null,null,"السبت",null,"السبت",null,0]
[46,null,null,"السبت",null,"السبت",null,0]
[47,null,null,"السبت",null,"السبت",null,0]
[48,null,null,"السبت",null,"السبت",null,0]
[49,null,null,"السبت",null,"السبت",null,0]
[50,null,null,"السبت",null,"السبت",null,0]
[51,null,null,"السبت",null,"السبت",null,0]
[52,null,null,"السبت",null,"السبت",null,0]
[53,null,null,"السبت",null,"السبت",null,0]
[54,null,null,"السبت",null,"السبت",null,0]
[55,null,null,"السبت",null,"السبت",null,0]
[56,null,null,"السبت",null,"السبت",null,0]
[57,null,null,"السبت",null,"السبت",null,0]
[58,null,null,"السبت",null,"السبت",null,0]
[59,null,null,"السبت",null,"السبت",null,0]
[60,null,null,"السبت",null,"السبت",null,0]

{"sheet":"Sheet3","index":3,"n_rows":368,"n_cols":14,"rows_kept":368,"cut":false,"hidden":true,"merged":[]}
["رصيد السنوية","رصيد العرضية","رصيد ابوه","رصيد حج","رصيد بدون راتب","رصيد المرضية",null,null,null,null,null,null,null,"سنوية"]
[{"$f":"IF('ادخال الاجازات'!I4=\"سنوية\",'ادخال الاجازات'!H4,0)","v":0},{"$f":"IF('ادخال الاجازات'!I4=\"عرضية\",'ادخال الاجازات'!H4,0)","v":0},{"$f":"IF('ادخال الاجازات'!I4=\"أبوه\",'ادخال الاجازات'!H4,0)","v":0},{"$f":"IF('ادخال الاجازات'!I4=\"حج\",'ادخال الاجازات'!H4,0)","v":0},{"$f":"IF('ادخال الاجازات'!I4=\"بدون راتب\",'ادخال الاجازات'!H4,0)","v":0},{"$f":"IF('ادخال الاجازات'!I4=\"مرضية\",'ادخال الاجازات'!H4,0)","v":0},null,null,null,null,null,null,null,"عرضية"]
[{"$f":"IF('ادخال الاجازات'!I5=\"سنوية\",'ادخال الاجازات'!H5,0)","v":0},{"$f":"IF('ادخال الاجازات'!I5=\"عرضية\",'ادخال الاجازات'!H5,0)","v":0},{"$f":"IF('ادخال الاجازات'!I5=\"أبوه\",'ادخال الاجازات'!H5,0)","v":0},{"$f":"IF('ادخال الاجازات'!I5=\"حج\",'ادخال الاجازات'!H5,0)","v":0},{"$f":"IF('ادخال الاجازات'!I5=\"بدون راتب\",'ادخال الاجازات'!H5,0)","v":0},{"$f":"IF('ادخال الاجازات'!I5=\"مرضية\",'ادخال الاجازات'!H5,0)","v":0},null,null,null,null,null,null,null,"أبوه"]
[{"$f":"IF('ادخال الاجازات'!I6=\"سنوية\",'ادخال الاجازات'!H6,0)","v":0},{"$f":"IF('ادخال الاجازات'!I6=\"عرضية\",'ادخال الاجازات'!H6,0)","v":0},{"$f":"IF('ادخال الاجازات'!I6=\"أبوه\",'ادخال الاجازات'!H6,0)","v":0},{"$f":"IF('ادخال الاجازات'!I6=\"حج\",'ادخال الاجازات'!H6,0)","v":0},{"$f":"IF('ادخال الاجازات'!I6=\"بدون راتب\",'ادخال الاجازات'!H6,0)","v":0},{"$f":"IF('ادخال الاجازات'!I6=\"مرضية\",'ادخال الاجازات'!H6,0)","v":0},null,null,null,null,null,null,null,"حج"]
[{"$f":"IF('ادخال الاجازات'!I7=\"سنوية\",'ادخال الاجازات'!H7,0)","v":0},{"$f":"IF('ادخال الاجازات'!I7=\"عرضية\",'ادخال الاجازات'!H7,0)","v":0},{"$f":"IF('ادخال الاجازات'!I7=\"أبوه\",'ادخال الاجازات'!H7,0)","v":0},{"$f":"IF('ادخال الاجازات'!I7=\"حج\",'ادخال الاجازات'!H7,0)","v":0},{"$f":"IF('ادخال الاجازات'!I7=\"بدون راتب\",'ادخال الاجازات'!H7,0)","v":0},{"$f":"IF('ادخال الاجازات'!I7=\"مرضية\",'ادخال الاجازات'!H7,0)","v":0},null,null,null,null,null,null,null,"بدون راتب"]
[{"$f":"IF('ادخال الاجازات'!I8=\"سنوية\",'ادخال الاجازات'!H8,0)","v":0},{"$f":"IF('ادخال الاجازات'!I8=\"عرضية\",'ادخال الاجازات'!H8,0)","v":0},{"$f":"IF('ادخال الاجازات'!I8=\"أبوه\",'ادخال الاجازات'!H8,0)","v":0},{"$f":"IF('ادخال الاجازات'!I8=\"حج\",'ادخال الاجازات'!H8,0)","v":0},{"$f":"IF('ادخال الاجازات'!I8=\"بدون راتب\",'ادخال الاجازات'!H8,0)","v":0},{"$f":"IF('ادخال الاجازات'!I8=\"مرضية\",'ادخال الاجازات'!H8,0)","v":0},null,null,null,null,null,null,null,"مرضية"]
[{"$f":"IF('ادخال الاجازات'!I9=\"سنوية\",'ادخال الاجازات'!H9,0)","v":0},{"$f":"IF('ادخال الاجازات'!I9=\"عرضية\",'ادخال الاجازات'!H9,0)","v":0},{"$f":"IF('ادخال الاجازات'!I9=\"أبوه\",'ادخال الاجازات'!H9,0)","v":0},{"$f":"IF('ادخال الاجازات'!I9=\"حج\",'ادخال الاجازات'!H9,0)","v":0},{"$f":"IF('ادخال الاجازات'!I9=\"بدون راتب\",'ادخال الاجازات'!H9,0)","v":0},{"$f":"IF('ادخال الاجازات'!I9=\"مرضية\",'ادخال الاجازات'!H9,0)","v":0}]
[{"$f":"IF('ادخال الاجازات'!I10=\"سنوية\",'ادخال الاجازات'!H10,0)","v":0},{"$f":"IF('ادخال الاجازات'!I10=\"عرضية\",'ادخال الاجازات'!H10,0)","v":0},{"$f":"IF('ادخال الاجازات'!I10=\"أبوه\",'ادخال الاجازات'!H10,0)","v":0},{"$f":"IF('ادخال الاجازات'!I10=\"حج\",'ادخال الاجازات'!H10,0)","v":0},{"$f":"IF('ادخال الاجازات'!I10=\"بدون راتب\",'ادخال الاجازات'!H10,0)","v":0},{"$f":"IF('ادخال الاجازات'!I10=\"مرضية\",'ادخال الاجازات'!H10,0)","v":0}]
[{"$f":"IF('ادخال الاجازات'!I11=\"سنوية\",'ادخال الاجازات'!H11,0)","v":0},{"$f":"IF('ادخال الاجازات'!I11=\"عرضية\",'ادخال الاجازات'!H11,0)","v":0},{"$f":"IF('ادخال الاجازات'!I11=\"أبوه\",'ادخال الاجازات'!H11,0)","v":0},{"$f":"IF('ادخال الاجازات'!I11=\"حج\",'ادخال الاجازات'!H11,0)","v":0},{"$f":"IF('ادخال الاجازات'!I11=\"بدون راتب\",'ادخال الاجازات'!H11,0)","v":0},{"$f":"IF('ادخال الاجازات'!I11=\"مرضية\",'ادخال الاجازات'!H11,0)","v":0}]
[{"$f":"IF('ادخال الاجازات'!I12=\"سنوية\",'ادخال الاجازات'!H12,0)","v":0},{"$f":"IF('ادخال الاجازات'!I12=\"عرضية\",'ادخال الاجازات'!H12,0)","v":0},{"$f":"IF('ادخال الاجازات'!I12=\"أبوه\",'ادخال الاجازات'!H12,0)","v":0},{"$f":"IF('ادخال الاجازات'!I12=\"حج\",'ادخال الاجازات'!H12,0)","v":0},{"$f":"IF('ادخال الاجازات'!I12=\"بدون راتب\",'ادخال الاجازات'!H12,0)","v":0},{"$f":"IF('ادخال الاجازات'!I12=\"مرضية\",'ادخال الاجازات'!H12,0)","v":0}]
[{"$f":"IF('ادخال الاجازات'!I13=\"سنوية\",'ادخال الاجازات'!H13,0)","v":0},{"$f":"IF('ادخال الاجازات'!I13=\"عرضية\",'ادخال الاجازات'!H13,0)","v":0},{"$f":"IF('ادخال الاجازات'!I13=\"أبوه\",'ادخال الاجازات'!H13,0)","v":0},{"$f":"IF('ادخال الاجازات'!I13=\"حج\",'ادخال الاجازات'!H13,0)","v":0},{"$f":"IF('ادخال الاجازات'!I13=\"بدون راتب\",'ادخال الاجازات'!H13,0)","v":0},{"$f":"IF('ادخال الاجازات'!I13=\"مرضية\",'ادخال الاجازات'!H13,0)","v":0}]
[{"$f":"IF('ادخال الاجازات'!I14=\"سنوية\",'ادخال الاجازات'!H14,0)","v":0},{"$f":"IF('ادخال الاجازات'!I14=\"عرضية\",'ادخال الاجازات'!H14,0)","v":0},{"$f":"IF('ادخال الاجازات'!I14=\"أبوه\",'ادخال الاجازات'!H14,0)","v":0},{"$f":"IF('ادخال الاجازات'!I14=\"حج\",'ادخال الاجازات'!H14,0)","v":0},{"$f":"IF('ادخال الاجازات'!I14=\"بدون راتب\",'ادخال الاجازات'!H14,0)","v":0},{"$f":"IF('ادخال الاجازات'!I14=\"مرضية\",'ادخال الاجازات'!H14,0)","v":0}]
[{"$f":"IF('ادخال الاجازات'!I15=\"سنوية\",'ادخال الاجازات'!H15,0)","v":0},{"$f":"IF('ادخال الاجازات'!I15=\"عرضية\",'ادخال الاجازات'!H15,0)","v":0},{"$f":"IF('ادخال الاجازات'!I15=\"أبوه\",'ادخال الاجازات'!H15,0)","v":0},{"$f":"IF('ادخال الاجازات'!I15=\"حج\",'ادخال الاجازات'!H15,0)","v":0},{"$f":"IF('ادخال الاجازات'!I15=\"بدون راتب\",'ادخال الاجازات'!H15,0)","v":0},{"$f":"IF('ادخال الاجازات'!I15=\"مرضية\",'ادخال الاجازات'!H15,0)","v":0}]
[{"$f":"IF('ادخال الاجازات'!I16=\"سنوية\",'ادخال الاجازات'!H16,0)","v":0},{"$f":"IF('ادخال الاجازات'!I16=\"عرضية\",'ادخال الاجازات'!H16,0)","v":0},{"$f":"IF('ادخال الاجازات'!I16=\"أبوه\",'ادخال الاجازات'!H16,0)","v":0},{"$f":"IF('ادخال الاجازات'!I16=\"حج\",'ادخال الاجازات'!H16,0)","v":0},{"$f":"IF('ادخال الاجازات'!I16=\"بدون راتب\",'ادخال الاجازات'!H16,0)","v":0},{"$f":"IF('ادخال الاجازات'!I16=\"مرضية\",'ادخال الاجازات'!H16,0)","v":0}]
[{"$f":"IF('ادخال الاجازات'!I17=\"سنوية\",'ادخال الاجازات'!H17,0)","v":0},{"$f":"IF('ادخال الاجازات'!I17=\"عرضية\",'ادخال الاجازات'!H17,0)","v":0},{"$f":"IF('ادخال الاجازات'!I17=\"أبوه\",'ادخال الاجازات'!H17,0)","v":0},{"$f":"IF('ادخال الاجازات'!I17=\"حج\",'ادخال الاجازات'!H17,0)","v":0},{"$f":"IF('ادخال الاجازات'!I17=\"بدون راتب\",'ادخال الاجازات'!H17,0)","v":0},{"$f":"IF('ادخال الاجازات'!I17=\"مرضية\",'ادخال الاجازات'!H17,0)","v":0}]
[{"$f":"IF('ادخال الاجازات'!I18=\"سنوية\",'ادخال الاجازات'!H18,0)","v":0},{"$f":"IF('ادخال الاجازات'!I18=\"عرضية\",'ادخال الاجازات'!H18,0)","v":0},{"$f":"IF('ادخال الاجازات'!I18=\"أبوه\",'ادخال الاجازات'!H18,0)","v":0},{"$f":"IF('ادخال الاجازات'!I18=\"حج\",'ادخال الاجازات'!H18,0)","v":0},{"$f":"IF('ادخال الاجازات'!I18=\"بدون راتب\",'ادخال الاجازات'!H18,0)","v":0},{"$f":"IF('ادخال الاجازات'!I18=\"مرضية\",'ادخال الاجازات'!H18,0)","v":0}]
[{"$f":"IF('ادخال الاجازات'!I19=\"سنوية\",'ادخال الاجازات'!H19,0)","v":0},{"$f":"IF('ادخال الاجازات'!I19=\"عرضية\",'ادخال الاجازات'!H19,0)","v":0},{"$f":"IF('ادخال الاجازات'!I19=\"أبوه\",'ادخال الاجازات'!H19,0)","v":0},{"$f":"IF('ادخال الاجازات'!I19=\"حج\",'ادخال الاجازات'!H19,0)","v":0},{"$f":"IF('ادخال الاجازات'!I19=\"بدون راتب\",'ادخال الاجازات'!H19,0)","v":0},{"$f":"IF('ادخال الاجازات'!I19=\"مرضية\",'ادخال الاجازات'!H19,0)","v":0}]
[{"$f":"IF('ادخال الاجازات'!I20=\"سنوية\",'ادخال الاجازات'!H20,0)","v":0},{"$f":"IF('ادخال الاجازات'!I20=\"عرضية\",'ادخال الاجازات'!H20,0)","v":0},{"$f":"IF('ادخال الاجازات'!I20=\"أبوه\",'ادخال الاجازات'!H20,0)","v":0},{"$f":"IF('ادخال الاجازات'!I20=\"حج\",'ادخال الاجازات'!H20,0)","v":0},{"$f":"IF('ادخال الاجازات'!I20=\"بدون راتب\",'ادخال الاجازات'!H20,0)","v":0},{"$f":"IF('ادخال الاجازات'!I20=\"مرضية\",'ادخال الاجازات'!H20,0)","v":0}]
[{"$f":"IF('ادخال الاجازات'!I21=\"سنوية\",'ادخال الاجازات'!H21,0)","v":0},{"$f":"IF('ادخال الاجازات'!I21=\"عرضية\",'ادخال الاجازات'!H21,0)","v":0},{"$f":"IF('ادخال الاجازات'!I21=\"أبوه\",'ادخال الاجازات'!H21,0)","v":0},{"$f":"IF('ادخال الاجازات'!I21=\"حج\",'ادخال الاجازات'!H21,0)","v":0},{"$f":"IF('ادخال الاجازات'!I21=\"بدون راتب\",'ادخال الاجازات'!H21,0)","v":0},{"$f":"IF('ادخال الاجازات'!I21=\"مرضية\",'ادخال الاجازات'!H21,0)","v":0}]
[{"$f":"IF('ادخال الاجازات'!I22=\"سنوية\",'ادخال الاجازات'!H22,0)","v":0},{"$f":"IF('ادخال الاجازات'!I22=\"عرضية\",'ادخال الاجازات'!H22,0)","v":0},{"$f":"IF('ادخال الاجازات'!I22=\"أبوه\",'ادخال الاجازات'!H22,0)","v":0},{"$f":"IF('ادخال الاجازات'!I22=\"حج\",'ادخال الاجازات'!H22,0)","v":0},{"$f":"IF('ادخال الاجازات'!I22=\"بدون راتب\",'ادخال الاجازات'!H22,0)","v":0},{"$f":"IF('ادخال الاجازات'!I22=\"مرضية\",'ادخال الاجازات'!H22,0)","v":0}]
[{"$f":"IF('ادخال الاجازات'!I23=\"سنوية\",'ادخال الاجازات'!H23,0)","v":0},{"$f":"IF('ادخال الاجازات'!I23=\"عرضية\",'ادخال الاجازات'!H23,0)","v":0},{"$f":"IF('ادخال الاجازات'!I23=\"أبوه\",'ادخال الاجازات'!H23,0)","v":0},{"$f":"IF('ادخال الاجازات'!I23=\"حج\",'ادخال الاجازات'!H23,0)","v":0},{"$f":"IF('ادخال الاجازات'!I23=\"بدون راتب\",'ادخال الاجازات'!H23,0)","v":0},{"$f":"IF('ادخال الاجازات'!I23=\"مرضية\",'ادخال الاجازات'!H23,0)","v":0}]
[{"$f":"IF('ادخال الاجازات'!I24=\"سنوية\",'ادخال الاجازات'!H24,0)","v":0},{"$f":"IF('ادخال الاجازات'!I24=\"عرضية\",'ادخال الاجازات'!H24,0)","v":0},{"$f":"IF('ادخال الاجازات'!I24=\"أبوه\",'ادخال الاجازات'!H24,0)","v":0},{"$f":"IF('ادخال الاجازات'!I24=\"حج\",'ادخال الاجازات'!H24,0)","v":0},{"$f":"IF('ادخال الاجازات'!I24=\"بدون راتب\",'ادخال الاجازات'!H24,0)","v":0},{"$f":"IF('ادخال الاجازات'!I24=\"مرضية\",'ادخال الاجازات'!H24,0)","v":0}]
[{"$f":"IF('ادخال الاجازات'!I25=\"سنوية\",'ادخال الاجازات'!H25,0)","v":0},{"$f":"IF('ادخال الاجازات'!I25=\"عرضية\",'ادخال الاجازات'!H25,0)","v":0},{"$f":"IF('ادخال الاجازات'!I25=\"أبوه\",'ادخال الاجازات'!H25,0)","v":0},{"$f":"IF('ادخال الاجازات'!I25=\"حج\",'ادخال الاجازات'!H25,0)","v":0},{"$f":"IF('ادخال الاجازات'!I25=\"بدون راتب\",'ادخال الاجازات'!H25,0)","v":0},{"$f":"IF('ادخال الاجازات'!I25=\"مرضية\",'ادخال الاجازات'!H25,0)","v":0}]
[{"$f":"IF('ادخال الاجازات'!I26=\"سنوية\",'ادخال الاجازات'!H26,0)","v":0},{"$f":"IF('ادخال الاجازات'!I26=\"عرضية\",'ادخال الاجازات'!H26,0)","v":0},{"$f":"IF('ادخال الاجازات'!I26=\"أبوه\",'ادخال الاجازات'!H26,0)","v":0},{"$f":"IF('ادخال الاجازات'!I26=\"حج\",'ادخال الاجازات'!H26,0)","v":0},{"$f":"IF('ادخال الاجازات'!I26=\"بدون راتب\",'ادخال الاجازات'!H26,0)","v":0},{"$f":"IF('ادخال الاجازات'!I26=\"مرضية\",'ادخال الاجازات'!H26,0)","v":0}]
[{"$f":"IF('ادخال الاجازات'!I27=\"سنوية\",'ادخال الاجازات'!H27,0)","v":0},{"$f":"IF('ادخال الاجازات'!I27=\"عرضية\",'ادخال الاجازات'!H27,0)","v":0},{"$f":"IF('ادخال الاجازات'!I27=\"أبوه\",'ادخال الاجازات'!H27,0)","v":0},{"$f":"IF('ادخال الاجازات'!I27=\"حج\",'ادخال الاجازات'!H27,0)","v":0},{"$f":"IF('ادخال الاجازات'!I27=\"بدون راتب\",'ادخال الاجازات'!H27,0)","v":0},{"$f":"IF('ادخال الاجازات'!I27=\"مرضية\",'ادخال الاجازات'!H27,0)","v":0}]
[{"$f":"IF('ادخال الاجازات'!I28=\"سنوية\",'ادخال الاجازات'!H28,0)","v":0},{"$f":"IF('ادخال الاجازات'!I28=\"عرضية\",'ادخال الاجازات'!H28,0)","v":0},{"$f":"IF('ادخال الاجازات'!I28=\"أبوه\",'ادخال الاجازات'!H28,0)","v":0},{"$f":"IF('ادخال الاجازات'!I28=\"حج\",'ادخال الاجازات'!H28,0)","v":0},{"$f":"IF('ادخال الاجازات'!I28=\"بدون راتب\",'ادخال الاجازات'!H28,0)","v":0},{"$f":"IF('ادخال الاجازات'!I28=\"مرضية\",'ادخال الاجازات'!H28,0)","v":0}]
[{"$f":"IF('ادخال الاجازات'!I29=\"سنوية\",'ادخال الاجازات'!H29,0)","v":0},{"$f":"IF('ادخال الاجازات'!I29=\"عرضية\",'ادخال الاجازات'!H29,0)","v":0},{"$f":"IF('ادخال الاجازات'!I29=\"أبوه\",'ادخال الاجازات'!H29,0)","v":0},{"$f":"IF('ادخال الاجازات'!I29=\"حج\",'ادخال الاجازات'!H29,0)","v":0},{"$f":"IF('ادخال الاجازات'!I29=\"بدون راتب\",'ادخال الاجازات'!H29,0)","v":0},{"$f":"IF('ادخال الاجازات'!I29=\"مرضية\",'ادخال الاجازات'!H29,0)","v":0}]
[{"$f":"IF('ادخال الاجازات'!I30=\"سنوية\",'ادخال الاجازات'!H30,0)","v":0},{"$f":"IF('ادخال الاجازات'!I30=\"عرضية\",'ادخال الاجازات'!H30,0)","v":0},{"$f":"IF('ادخال الاجازات'!I30=\"أبوه\",'ادخال الاجازات'!H30,0)","v":0},{"$f":"IF('ادخال الاجازات'!I30=\"حج\",'ادخال الاجازات'!H30,0)","v":0},{"$f":"IF('ادخال الاجازات'!I30=\"بدون راتب\",'ادخال الاجازات'!H30,0)","v":0},{"$f":"IF('ادخال الاجازات'!I30=\"مرضية\",'ادخال الاجازات'!H30,0)","v":0}]
[{"$f":"IF('ادخال الاجازات'!I31=\"سنوية\",'ادخال الاجازات'!H31,0)","v":0},{"$f":"IF('ادخال الاجازات'!I31=\"عرضية\",'ادخال الاجازات'!H31,0)","v":0},{"$f":"IF('ادخال الاجازات'!I31=\"أبوه\",'ادخال الاجازات'!H31,0)","v":0},{"$f":"IF('ادخال الاجازات'!I31=\"حج\",'ادخال الاجازات'!H31,0)","v":0},{"$f":"IF('ادخال الاجازات'!I31=\"بدون راتب\",'ادخال الاجازات'!H31,0)","v":0},{"$f":"IF('ادخال الاجازات'!I31=\"مرضية\",'ادخال الاجازات'!H31,0)","v":0}]
[{"$f":"IF('ادخال الاجازات'!I32=\"سنوية\",'ادخال الاجازات'!H32,0)","v":0},{"$f":"IF('ادخال الاجازات'!I32=\"عرضية\",'ادخال الاجازات'!H32,0)","v":0},{"$f":"IF('ادخال الاجازات'!I32=\"أبوه\",'ادخال الاجازات'!H32,0)","v":0},{"$f":"IF('ادخال الاجازات'!I32=\"حج\",'ادخال الاجازات'!H32,0)","v":0},{"$f":"IF('ادخال الاجازات'!I32=\"بدون راتب\",'ادخال الاجازات'!H32,0)","v":0},{"$f":"IF('ادخال الاجازات'!I32=\"مرضية\",'ادخال الاجازات'!H32,0)","v":0}]
[{"$f":"IF('ادخال الاجازات'!I33=\"سنوية\",'ادخال الاجازات'!H33,0)","v":0},{"$f":"IF('ادخال الاجازات'!I33=\"عرضية\",'ادخال الاجازات'!H33,0)","v":0},{"$f":"IF('ادخال الاجازات'!I33=\"أبوه\",'ادخال الاجازات'!H33,0)","v":0},{"$f":"IF('ادخال الاجازات'!I33=\"حج\",'ادخال الاجازات'!H33,0)","v":0},{"$f":"IF('ادخال الاجازات'!I33=\"بدون راتب\",'ادخال الاجازات'!H33,0)","v":0},{"$f":"IF('ادخال الاجازات'!I33=\"مرضية\",'ادخال الاجازات'!H33,0)","v":0}]
[{"$f":"IF('ادخال الاجازات'!I34=\"سنوية\",'ادخال الاجازات'!H34,0)","v":0},{"$f":"IF('ادخال الاجازات'!I34=\"عرضية\",'ادخال الاجازات'!H34,0)","v":0},{"$f":"IF('ادخال الاجازات'!I34=\"أبوه\",'ادخال الاجازات'!H34,0)","v":0},{"$f":"IF('ادخال الاجازات'!I34=\"حج\",'ادخال الاجازات'!H34,0)","v":0},{"$f":"IF('ادخال الاجازات'!I34=\"بدون راتب\",'ادخال الاجازات'!H34,0)","v":0},{"$f":"IF('ادخال الاجازات'!I34=\"مرضية\",'ادخال الاجازات'!H34,0)","v":0}]
[{"$f":"IF('ادخال الاجازات'!I35=\"سنوية\",'ادخال الاجازات'!H35,0)","v":0},{"$f":"IF('ادخال الاجازات'!I35=\"عرضية\",'ادخال الاجازات'!H35,0)","v":0},{"$f":"IF('ادخال الاجازات'!I35=\"أبوه\",'ادخال الاجازات'!H35,0)","v":0},{"$f":"IF('ادخال الاجازات'!I35=\"حج\",'ادخال الاجازات'!H35,0)","v":0},{"$f":"IF('ادخال الاجازات'!I35=\"بدون راتب\",'ادخال الاجازات'!H35,0)","v":0},{"$f":"IF('ادخال الاجازات'!I35=\"مرضية\",'ادخال الاجازات'!H35,0)","v":0}]
[{"$f":"IF('ادخال الاجازات'!I36=\"سنوية\",'ادخال الاجازات'!H36,0)","v":0},{"$f":"IF('ادخال الاجازات'!I36=\"عرضية\",'ادخال الاجازات'!H36,0)","v":0},{"$f":"IF('ادخال الاجازات'!I36=\"أبوه\",'ادخال الاجازات'!H36,0)","v":0},{"$f":"IF('ادخال الاجازات'!I36=\"حج\",'ادخال الاجازات'!H36,0)","v":0},{"$f":"IF('ادخال الاجازات'!I36=\"بدون راتب\",'ادخال الاجازات'!H36,0)","v":0},{"$f":"IF('ادخال الاجازات'!I36=\"مرضية\",'ادخال الاجازات'!H36,0)","v":0}]
[{"$f":"IF('ادخال الاجازات'!I37=\"سنوية\",'ادخال الاجازات'!H37,0)","v":0},{"$f":"IF('ادخال الاجازات'!I37=\"عرضية\",'ادخال الاجازات'!H37,0)","v":0},{"$f":"IF('ادخال الاجازات'!I37=\"أبوه\",'ادخال الاجازات'!H37,0)","v":0},{"$f":"IF('ادخال الاجازات'!I37=\"حج\",'ادخال الاجازات'!H37,0)","v":0},{"$f":"IF('ادخال الاجازات'!I37=\"بدون راتب\",'ادخال الاجازات'!H37,0)","v":0},{"$f":"IF('ادخال الاجازات'!I37=\"مرضية\",'ادخال الاجازات'!H37,0)","v":0}]
[{"$f":"IF('ادخال الاجازات'!I38=\"سنوية\",'ادخال الاجازات'!H38,0)","v":0},{"$f":"IF('ادخال الاجازات'!I38=\"عرضية\",'ادخال الاجازات'!H38,0)","v":0},{"$f":"IF('ادخال الاجازات'!I38=\"أبوه\",'ادخال الاجازات'!H38,0)","v":0},{"$f":"IF('ادخال الاجازات'!I38=\"حج\",'ادخال الاجازات'!H38,0)","v":0},{"$f":"IF('ادخال الاجازات'!I38=\"بدون راتب\",'ادخال الاجازات'!H38,0)","v":0},{"$f":"IF('ادخال الاجازات'!I38=\"مرضية\",'ادخال الاجازات'!H38,0)","v":0}]
[{"$f":"IF('ادخال الاجازات'!I39=\"سنوية\",'ادخال الاجازات'!H39,0)","v":0},{"$f":"IF('ادخال الاجازات'!I39=\"عرضية\",'ادخال الاجازات'!H39,0)","v":0},{"$f":"IF('ادخال الاجازات'!I39=\"أبوه\",'ادخال الاجازات'!H39,0)","v":0},{"$f":"IF('ادخال الاجازات'!I39=\"حج\",'ادخال الاجازات'!H39,0)","v":0},{"$f":"IF('ادخال الاجازات'!I39=\"بدون راتب\",'ادخال الاجازات'!H39,0)","v":0},{"$f":"IF('ادخال الاجازات'!I39=\"مرضية\",'ادخال الاجازات'!H39,0)","v":0}]
[{"$f":"IF('ادخال الاجازات'!I40=\"سنوية\",'ادخال الاجازات'!H40,0)","v":0},{"$f":"IF('ادخال الاجازات'!I40=\"عرضية\",'ادخال الاجازات'!H40,0)","v":0},{"$f":"IF('ادخال الاجازات'!I40=\"أبوه\",'ادخال الاجازات'!H40,0)","v":0},{"$f":"IF('ادخال الاجازات'!I40=\"حج\",'ادخال الاجازات'!H40,0)","v":0},{"$f":"IF('ادخال الاجازات'!I40=\"بدون راتب\",'ادخال الاجازات'!H40,0)","v":0},{"$f":"IF('ادخال الاجازات'!I40=\"مرضية\",'ادخال الاجازات'!H40,0)","v":0}]
[{"$f":"IF('ادخال الاجازات'!I41=\"سنوية\",'ادخال الاجازات'!H41,0)","v":0},{"$f":"IF('ادخال الاجازات'!I41=\"عرضية\",'ادخال الاجازات'!H41,0)","v":0},{"$f":"IF('ادخال الاجازات'!I41=\"أبوه\",'ادخال الاجازات'!H41,0)","v":0},{"$f":"IF('ادخال الاجازات'!I41=\"حج\",'ادخال الاجازات'!H41,0)","v":0},{"$f":"IF('ادخال الاجازات'!I41=\"بدون راتب\",'ادخال الاجازات'!H41,0)","v":0},{"$f":"IF('ادخال الاجازات'!I41=\"مرضية\",'ادخال الاجازات'!H41,0)","v":0}]
[{"$f":"IF('ادخال الاجازات'!I42=\"سنوية\",'ادخال الاجازات'!H42,0)","v":0},{"$f":"IF('ادخال الاجازات'!I42=\"عرضية\",'ادخال الاجازات'!H42,0)","v":0},{"$f":"IF('ادخال الاجازات'!I42=\"أبوه\",'ادخال الاجازات'!H42,0)","v":0},{"$f":"IF('ادخال الاجازات'!I42=\"حج\",'ادخال الاجازات'!H42,0)","v":0},{"$f":"IF('ادخال الاجازات'!I42=\"بدون راتب\",'ادخال الاجازات'!H42,0)","v":0},{"$f":"IF('ادخال الاجازات'!I42=\"مرضية\",'ادخال الاجازات'!H42,0)","v":0}]
[{"$f":"IF('ادخال الاجازات'!I43=\"سنوية\",'ادخال الاجازات'!H43,0)","v":0},{"$f":"IF('ادخال الاجازات'!I43=\"عرضية\",'ادخال الاجازات'!H43,0)","v":0},{"$f":"IF('ادخال الاجازات'!I43=\"أبوه\",'ادخال الاجازات'!H43,0)","v":0},{"$f":"IF('ادخال الاجازات'!I43=\"حج\",'ادخال الاجازات'!H43,0)","v":0},{"$f":"IF('ادخال الاجازات'!I43=\"بدون راتب\",'ادخال الاجازات'!H43,0)","v":0},{"$f":"IF('ادخال الاجازات'!I43=\"مرضية\",'ادخال الاجازات'!H43,0)","v":0}]
[{"$f":"IF('ادخال الاجازات'!I44=\"سنوية\",'ادخال الاجازات'!H44,0)","v":0},{"$f":"IF('ادخال الاجازات'!I44=\"عرضية\",'ادخال الاجازات'!H44,0)","v":0},{"$f":"IF('ادخال الاجازات'!I44=\"أبوه\",'ادخال الاجازات'!H44,0)","v":0},{"$f":"IF('ادخال الاجازات'!I44=\"حج\",'ادخال الاجازات'!H44,0)","v":0},{"$f":"IF('ادخال الاجازات'!I44=\"بدون راتب\",'ادخال الاجازات'!H44,0)","v":0},{"$f":"IF('ادخال الاجازات'!I44=\"مرضية\",'ادخال الاجازات'!H44,0)","v":0}]
[{"$f":"IF('ادخال الاجازات'!I45=\"سنوية\",'ادخال الاجازات'!H45,0)","v":0},{"$f":"IF('ادخال الاجازات'!I45=\"عرضية\",'ادخال الاجازات'!H45,0)","v":0},{"$f":"IF('ادخال الاجازات'!I45=\"أبوه\",'ادخال الاجازات'!H45,0)","v":0},{"$f":"IF('ادخال الاجازات'!I45=\"حج\",'ادخال الاجازات'!H45,0)","v":0},{"$f":"IF('ادخال الاجازات'!I45=\"بدون راتب\",'ادخال الاجازات'!H45,0)","v":0},{"$f":"IF('ادخال الاجازات'!I45=\"مرضية\",'ادخال الاجازات'!H45,0)","v":0}]
[{"$f":"IF('ادخال الاجازات'!I46=\"سنوية\",'ادخال الاجازات'!H46,0)","v":0},{"$f":"IF('ادخال الاجازات'!I46=\"عرضية\",'ادخال الاجازات'!H46,0)","v":0},{"$f":"IF('ادخال الاجازات'!I46=\"أبوه\",'ادخال الاجازات'!H46,0)","v":0},{"$f":"IF('ادخال الاجازات'!I46=\"حج\",'ادخال الاجازات'!H46,0)","v":0},{"$f":"IF('ادخال الاجازات'!I46=\"بدون راتب\",'ادخال الاجازات'!H46,0)","v":0},{"$f":"IF('ادخال الاجازات'!I46=\"مرضية\",'ادخال الاجازات'!H46,0)","v":0}]
[{"$f":"IF('ادخال الاجازات'!I47=\"سنوية\",'ادخال الاجازات'!H47,0)","v":0},{"$f":"IF('ادخال الاجازات'!I47=\"عرضية\",'ادخال الاجازات'!H47,0)","v":0},{"$f":"IF('ادخال الاجازات'!I47=\"أبوه\",'ادخال الاجازات'!H47,0)","v":0},{"$f":"IF('ادخال الاجازات'!I47=\"حج\",'ادخال الاجازات'!H47,0)","v":0},{"$f":"IF('ادخال الاجازات'!I47=\"بدون راتب\",'ادخال الاجازات'!H47,0)","v":0},{"$f":"IF('ادخال الاجازات'!I47=\"مرضية\",'ادخال الاجازات'!H47,0)","v":0}]
[{"$f":"IF('ادخال الاجازات'!I48=\"سنوية\",'ادخال الاجازات'!H48,0)","v":0},{"$f":"IF('ادخال الاجازات'!I48=\"عرضية\",'ادخال الاجازات'!H48,0)","v":0},{"$f":"IF('ادخال الاجازات'!I48=\"أبوه\",'ادخال الاجازات'!H48,0)","v":0},{"$f":"IF('ادخال الاجازات'!I48=\"حج\",'ادخال الاجازات'!H48,0)","v":0},{"$f":"IF('ادخال الاجازات'!I48=\"بدون راتب\",'ادخال الاجازات'!H48,0)","v":0},{"$f":"IF('ادخال الاجازات'!I48=\"مرضية\",'ادخال الاجازات'!H48,0)","v":0}]
[{"$f":"IF('ادخال الاجازات'!I49=\"سنوية\",'ادخال الاجازات'!H49,0)","v":0},{"$f":"IF('ادخال الاجازات'!I49=\"عرضية\",'ادخال الاجازات'!H49,0)","v":0},{"$f":"IF('ادخال الاجازات'!I49=\"أبوه\",'ادخال الاجازات'!H49,0)","v":0},{"$f":"IF('ادخال الاجازات'!I49=\"حج\",'ادخال الاجازات'!H49,0)","v":0},{"$f":"IF('ادخال الاجازات'!I49=\"بدون راتب\",'ادخال الاجازات'!H49,0)","v":0},{"$f":"IF('ادخال الاجازات'!I49=\"مرضية\",'ادخال الاجازات'!H49,0)","v":0}]
[{"$f":"IF('ادخال الاجازات'!I50=\"سنوية\",'ادخال الاجازات'!H50,0)","v":0},{"$f":"IF('ادخال الاجازات'!I50=\"عرضية\",'ادخال الاجازات'!H50,0)","v":0},{"$f":"IF('ادخال الاجازات'!I50=\"أبوه\",'ادخال الاجازات'!H50,0)","v":0},{"$f":"IF('ادخال الاجازات'!I50=\"حج\",'ادخال الاجازات'!H50,0)","v":0},{"$f":"IF('ادخال الاجازات'!I50=\"بدون راتب\",'ادخال الاجازات'!H50,0)","v":0},{"$f":"IF('ادخال الاجازات'!I50=\"مرضية\",'ادخال الاجازات'!H50,0)","v":0}]
[{"$f":"IF('ادخال الاجازات'!I51=\"سنوية\",'ادخال الاجازات'!H51,0)","v":0},{"$f":"IF('ادخال الاجازات'!I51=\"عرضية\",'ادخال الاجازات'!H51,0)","v":0},{"$f":"IF('ادخال الاجازات'!I51=\"أبوه\",'ادخال الاجازات'!H51,0)","v":0},{"$f":"IF('ادخال الاجازات'!I51=\"حج\",'ادخال الاجازات'!H51,0)","v":0},{"$f":"IF('ادخال الاجازات'!I51=\"بدون راتب\",'ادخال الاجازات'!H51,0)","v":0},{"$f":"IF('ادخال الاجازات'!I51=\"مرضية\",'ادخال الاجازات'!H51,0)","v":0}]
[{"$f":"IF('ادخال الاجازات'!I52=\"سنوية\",'ادخال الاجازات'!H52,0)","v":0},{"$f":"IF('ادخال الاجازات'!I52=\"عرضية\",'ادخال الاجازات'!H52,0)","v":0},{"$f":"IF('ادخال الاجازات'!I52=\"أبوه\",'ادخال الاجازات'!H52,0)","v":0},{"$f":"IF('ادخال الاجازات'!I52=\"حج\",'ادخال الاجازات'!H52,0)","v":0},{"$f":"IF('ادخال الاجازات'!I52=\"بدون راتب\",'ادخال الاجازات'!H52,0)","v":0},{"$f":"IF('ادخال الاجازات'!I52=\"مرضية\",'ادخال الاجازات'!H52,0)","v":0}]
[{"$f":"IF('ادخال الاجازات'!I53=\"سنوية\",'ادخال الاجازات'!H53,0)","v":0},{"$f":"IF('ادخال الاجازات'!I53=\"عرضية\",'ادخال الاجازات'!H53,0)","v":0},{"$f":"IF('ادخال الاجازات'!I53=\"أبوه\",'ادخال الاجازات'!H53,0)","v":0},{"$f":"IF('ادخال الاجازات'!I53=\"حج\",'ادخال الاجازات'!H53,0)","v":0},{"$f":"IF('ادخال الاجازات'!I53=\"بدون راتب\",'ادخال الاجازات'!H53,0)","v":0},{"$f":"IF('ادخال الاجازات'!I53=\"مرضية\",'ادخال الاجازات'!H53,0)","v":0}]
[{"$f":"IF('ادخال الاجازات'!I54=\"سنوية\",'ادخال الاجازات'!H54,0)","v":0},{"$f":"IF('ادخال الاجازات'!I54=\"عرضية\",'ادخال الاجازات'!H54,0)","v":0},{"$f":"IF('ادخال الاجازات'!I54=\"أبوه\",'ادخال الاجازات'!H54,0)","v":0},{"$f":"IF('ادخال الاجازات'!I54=\"حج\",'ادخال الاجازات'!H54,0)","v":0},{"$f":"IF('ادخال الاجازات'!I54=\"بدون راتب\",'ادخال الاجازات'!H54,0)","v":0},{"$f":"IF('ادخال الاجازات'!I54=\"مرضية\",'ادخال الاجازات'!H54,0)","v":0}]
[{"$f":"IF('ادخال الاجازات'!I55=\"سنوية\",'ادخال الاجازات'!H55,0)","v":0},{"$f":"IF('ادخال الاجازات'!I55=\"عرضية\",'ادخال الاجازات'!H55,0)","v":0},{"$f":"IF('ادخال الاجازات'!I55=\"أبوه\",'ادخال الاجازات'!H55,0)","v":0},{"$f":"IF('ادخال الاجازات'!I55=\"حج\",'ادخال الاجازات'!H55,0)","v":0},{"$f":"IF('ادخال الاجازات'!I55=\"بدون راتب\",'ادخال الاجازات'!H55,0)","v":0},{"$f":"IF('ادخال الاجازات'!I55=\"مرضية\",'ادخال الاجازات'!H55,0)","v":0}]
[{"$f":"IF('ادخال الاجازات'!I56=\"سنوية\",'ادخال الاجازات'!H56,0)","v":0},{"$f":"IF('ادخال الاجازات'!I56=\"عرضية\",'ادخال الاجازات'!H56,0)","v":0},{"$f":"IF('ادخال الاجازات'!I56=\"أبوه\",'ادخال الاجازات'!H56,0)","v":0},{"$f":"IF('ادخال الاجازات'!I56=\"حج\",'ادخال الاجازات'!H56,0)","v":0},{"$f":"IF('ادخال الاجازات'!I56=\"بدون راتب\",'ادخال الاجازات'!H56,0)","v":0},{"$f":"IF('ادخال الاجازات'!I56=\"مرضية\",'ادخال الاجازات'!H56,0)","v":0}]
[{"$f":"IF('ادخال الاجازات'!I57=\"سنوية\",'ادخال الاجازات'!H57,0)","v":0},{"$f":"IF('ادخال الاجازات'!I57=\"عرضية\",'ادخال الاجازات'!H57,0)","v":0},{"$f":"IF('ادخال الاجازات'!I57=\"أبوه\",'ادخال الاجازات'!H57,0)","v":0},{"$f":"IF('ادخال الاجازات'!I57=\"حج\",'ادخال الاجازات'!H57,0)","v":0},{"$f":"IF('ادخال الاجازات'!I57=\"بدون راتب\",'ادخال الاجازات'!H57,0)","v":0},{"$f":"IF('ادخال الاجازات'!I57=\"مرضية\",'ادخال الاجازات'!H57,0)","v":0}]
[{"$f":"IF('ادخال الاجازات'!I58=\"سنوية\",'ادخال الاجازات'!H58,0)","v":0},{"$f":"IF('ادخال الاجازات'!I58=\"عرضية\",'ادخال الاجازات'!H58,0)","v":0},{"$f":"IF('ادخال الاجازات'!I58=\"أبوه\",'ادخال الاجازات'!H58,0)","v":0},{"$f":"IF('ادخال الاجازات'!I58=\"حج\",'ادخال الاجازات'!H58,0)","v":0},{"$f":"IF('ادخال الاجازات'!I58=\"بدون راتب\",'ادخال الاجازات'!H58,0)","v":0},{"$f":"IF('ادخال الاجازات'!I58=\"مرضية\",'ادخال الاجازات'!H58,0)","v":0}]
[{"$f":"IF('ادخال الاجازات'!I59=\"سنوية\",'ادخال الاجازات'!H59,0)","v":0},{"$f":"IF('ادخال الاجازات'!I59=\"عرضية\",'ادخال الاجازات'!H59,0)","v":0},{"$f":"IF('ادخال الاجازات'!I59=\"أبوه\",'ادخال الاجازات'!H59,0)","v":0},{"$f":"IF('ادخال الاجازات'!I59=\"حج\",'ادخال الاجازات'!H59,0)","v":0},{"$f":"IF('ادخال الاجازات'!I59=\"بدون راتب\",'ادخال الاجازات'!H59,0)","v":0},{"$f":"IF('ادخال الاجازات'!I59=\"مرضية\",'ادخال الاجازات'!H59,0)","v":0}]
[{"$f":"IF('ادخال الاجازات'!I60=\"سنوية\",'ادخال الاجازات'!H60,0)","v":0},{"$f":"IF('ادخال الاجازات'!I60=\"عرضية\",'ادخال الاجازات'!H60,0)","v":0},{"$f":"IF('ادخال الاجازات'!I60=\"أبوه\",'ادخال الاجازات'!H60,0)","v":0},{"$f":"IF('ادخال الاجازات'!I60=\"حج\",'ادخال الاجازات'!H60,0)","v":0},{"$f":"IF('ادخال الاجازات'!I60=\"بدون راتب\",'ادخال الاجازات'!H60,0)","v":0},{"$f":"IF('ادخال الاجازات'!I60=\"مرضية\",'ادخال الاجازات'!H60,0)","v":0}]
[{"$f":"IF('ادخال الاجازات'!I61=\"سنوية\",'ادخال الاجازات'!H61,0)","v":0},{"$f":"IF('ادخال الاجازات'!I61=\"عرضية\",'ادخال الاجازات'!H61,0)","v":0},{"$f":"IF('ادخال الاجازات'!I61=\"أبوه\",'ادخال الاجازات'!H61,0)","v":0},{"$f":"IF('ادخال الاجازات'!I61=\"حج\",'ادخال الاجازات'!H61,0)","v":0},{"$f":"IF('ادخال الاجازات'!I61=\"بدون راتب\",'ادخال الاجازات'!H61,0)","v":0},{"$f":"IF('ادخال الاجازات'!I61=\"مرضية\",'ادخال الاجازات'!H61,0)","v":0}]
[{"$f":"IF('ادخال الاجازات'!I62=\"سنوية\",'ادخال الاجازات'!H62,0)","v":0},{"$f":"IF('ادخال الاجازات'!I62=\"عرضية\",'ادخال الاجازات'!H62,0)","v":0},{"$f":"IF('ادخال الاجازات'!I62=\"أبوه\",'ادخال الاجازات'!H62,0)","v":0},{"$f":"IF('ادخال الاجازات'!I62=\"حج\",'ادخال الاجازات'!H62,0)","v":0},{"$f":"IF('ادخال الاجازات'!I62=\"بدون راتب\",'ادخال الاجازات'!H62,0)","v":0},{"$f":"IF('ادخال الاجازات'!I62=\"مرضية\",'ادخال الاجازات'!H62,0)","v":0}]
[{"$f":"IF('ادخال الاجازات'!I63=\"سنوية\",'ادخال الاجازات'!H63,0)","v":0},{"$f":"IF('ادخال الاجازات'!I63=\"عرضية\",'ادخال الاجازات'!H63,0)","v":0},{"$f":"IF('ادخال الاجازات'!I63=\"أبوه\",'ادخال الاجازات'!H63,0)","v":0},{"$f":"IF('ادخال الاجازات'!I63=\"حج\",'ادخال الاجازات'!H63,0)","v":0},{"$f":"IF('ادخال الاجازات'!I63=\"بدون راتب\",'ادخال الاجازات'!H63,0)","v":0},{"$f":"IF('ادخال الاجازات'!I63=\"مرضية\",'ادخال الاجازات'!H63,0)","v":0}]
[{"$f":"IF('ادخال الاجازات'!I64=\"سنوية\",'ادخال الاجازات'!H64,0)","v":0},{"$f":"IF('ادخال الاجازات'!I64=\"عرضية\",'ادخال الاجازات'!H64,0)","v":0},{"$f":"IF('ادخال الاجازات'!I64=\"أبوه\",'ادخال الاجازات'!H64,0)","v":0},{"$f":"IF('ادخال الاجازات'!I64=\"حج\",'ادخال الاجازات'!H64,0)","v":0},{"$f":"IF('ادخال الاجازات'!I64=\"بدون راتب\",'ادخال الاجازات'!H64,0)","v":0},{"$f":"IF('ادخال الاجازات'!I64=\"مرضية\",'ادخال الاجازات'!H64,0)","v":0}]
[{"$f":"IF('ادخال الاجازات'!I65=\"سنوية\",'ادخال الاجازات'!H65,0)","v":0},{"$f":"IF('ادخال الاجازات'!I65=\"عرضية\",'ادخال الاجازات'!H65,0)","v":0},{"$f":"IF('ادخال الاجازات'!I65=\"أبوه\",'ادخال الاجازات'!H65,0)","v":0},{"$f":"IF('ادخال الاجازات'!I65=\"حج\",'ادخال الاجازات'!H65,0)","v":0},{"$f":"IF('ادخال الاجازات'!I65=\"بدون راتب\",'ادخال الاجازات'!H65,0)","v":0},{"$f":"IF('ادخال الاجازات'!I65=\"مرضية\",'ادخال الاجازات'!H65,0)","v":0}]
[{"$f":"IF('ادخال الاجازات'!I66=\"سنوية\",'ادخال الاجازات'!H66,0)","v":0},{"$f":"IF('ادخال الاجازات'!I66=\"عرضية\",'ادخال الاجازات'!H66,0)","v":0},{"$f":"IF('ادخال الاجازات'!I66=\"أبوه\",'ادخال الاجازات'!H66,0)","v":0},{"$f":"IF('ادخال الاجازات'!I66=\"حج\",'ادخال الاجازات'!H66,0)","v":0},{"$f":"IF('ادخال الاجازات'!I66=\"بدون راتب\",'ادخال الاجازات'!H66,0)","v":0},{"$f":"IF('ادخال الاجازات'!I66=\"مرضية\",'ادخال الاجازات'!H66,0)","v":0}]
[{"$f":"IF('ادخال الاجازات'!I67=\"سنوية\",'ادخال الاجازات'!H67,0)","v":0},{"$f":"IF('ادخال الاجازات'!I67=\"عرضية\",'ادخال الاجازات'!H67,0)","v":0},{"$f":"IF('ادخال الاجازات'!I67=\"أبوه\",'ادخال الاجازات'!H67,0)","v":0},{"$f":"IF('ادخال الاجازات'!I67=\"حج\",'ادخال الاجازات'!H67,0)","v":0},{"$f":"IF('ادخال الاجازات'!I67=\"بدون راتب\",'ادخال الاجازات'!H67,0)","v":0},{"$f":"IF('ادخال الاجازات'!I67=\"مرضية\",'ادخال الاجازات'!H67,0)","v":0}]
[{"$f":"IF('ادخال الاجازات'!I68=\"سنوية\",'ادخال الاجازات'!H68,0)","v":0},{"$f":"IF('ادخال الاجازات'!I68=\"عرضية\",'ادخال الاجازات'!H68,0)","v":0},{"$f":"IF('ادخال الاجازات'!I68=\"أبوه\",'ادخال الاجازات'!H68,0)","v":0},{"$f":"IF('ادخال الاجازات'!I68=\"حج\",'ادخال الاجازات'!H68,0)","v":0},{"$f":"IF('ادخال الاجازات'!I68=\"بدون راتب\",'ادخال الاجازات'!H68,0)","v":0},{"$f":"IF('ادخال الاجازات'!I68=\"مرضية\",'ادخال الاجازات'!H68,0)","v":0}]
[{"$f":"IF('ادخال الاجازات'!I69=\"سنوية\",'ادخال الاجازات'!H69,0)","v":0},{"$f":"IF('ادخال الاجازات'!I69=\"عرضية\",'ادخال الاجازات'!H69,0)","v":0},{"$f":"IF('ادخال الاجازات'!I69=\"أبوه\",'ادخال الاجازات'!H69,0)","v":0},{"$f":"IF('ادخال الاجازات'!I69=\"حج\",'ادخال الاجازات'!H69,0)","v":0},{"$f":"IF('ادخال الاجازات'!I69=\"بدون راتب\",'ادخال الاجازات'!H69,0)","v":0},{"$f":"IF('ادخال الاجازات'!I69=\"مرضية\",'ادخال الاجازات'!H69,0)","v":0}]
[{"$f":"IF('ادخال الاجازات'!I70=\"سنوية\",'ادخال الاجازات'!H70,0)","v":0},{"$f":"IF('ادخال الاجازات'!I70=\"عرضية\",'ادخال الاجازات'!H70,0)","v":0},{"$f":"IF('ادخال الاجازات'!I70=\"أبوه\",'ادخال الاجازات'!H70,0)","v":0},{"$f":"IF('ادخال الاجازات'!I70=\"حج\",'ادخال الاجازات'!H70,0)","v":0},{"$f":"IF('ادخال الاجازات'!I70=\"بدون راتب\",'ادخال الاجازات'!H70,0)","v":0},{"$f":"IF('ادخال الاجازات'!I70=\"مرضية\",'ادخال الاجازات'!H70,0)","v":0}]
[{"$f":"IF('ادخال الاجازات'!I71=\"سنوية\",'ادخال الاجازات'!H71,0)","v":0},{"$f":"IF('ادخال الاجازات'!I71=\"عرضية\",'ادخال الاجازات'!H71,0)","v":0},{"$f":"IF('ادخال الاجازات'!I71=\"أبوه\",'ادخال الاجازات'!H71,0)","v":0},{"$f":"IF('ادخال الاجازات'!I71=\"حج\",'ادخال الاجازات'!H71,0)","v":0},{"$f":"IF('ادخال الاجازات'!I71=\"بدون راتب\",'ادخال الاجازات'!H71,0)","v":0},{"$f":"IF('ادخال الاجازات'!I71=\"مرضية\",'ادخال الاجازات'!H71,0)","v":0}]
[{"$f":"IF('ادخال الاجازات'!I72=\"سنوية\",'ادخال الاجازات'!H72,0)","v":0},{"$f":"IF('ادخال الاجازات'!I72=\"عرضية\",'ادخال الاجازات'!H72,0)","v":0},{"$f":"IF('ادخال الاجازات'!I72=\"أبوه\",'ادخال الاجازات'!H72,0)","v":0},{"$f":"IF('ادخال الاجازات'!I72=\"حج\",'ادخال الاجازات'!H72,0)","v":0},{"$f":"IF('ادخال الاجازات'!I72=\"بدون راتب\",'ادخال الاجازات'!H72,0)","v":0},{"$f":"IF('ادخال الاجازات'!I72=\"مرضية\",'ادخال الاجازات'!H72,0)","v":0}]
[{"$f":"IF('ادخال الاجازات'!I73=\"سنوية\",'ادخال الاجازات'!H73,0)","v":0},{"$f":"IF('ادخال الاجازات'!I73=\"عرضية\",'ادخال الاجازات'!H73,0)","v":0},{"$f":"IF('ادخال الاجازات'!I73=\"أبوه\",'ادخال الاجازات'!H73,0)","v":0},{"$f":"IF('ادخال الاجازات'!I73=\"حج\",'ادخال الاجازات'!H73,0)","v":0},{"$f":"IF('ادخال الاجازات'!I73=\"بدون راتب\",'ادخال الاجازات'!H73,0)","v":0},{"$f":"IF('ادخال الاجازات'!I73=\"مرضية\",'ادخال الاجازات'!H73,0)","v":0}]
[{"$f":"IF('ادخال الاجازات'!I74=\"سنوية\",'ادخال الاجازات'!H74,0)","v":0},{"$f":"IF('ادخال الاجازات'!I74=\"عرضية\",'ادخال الاجازات'!H74,0)","v":0},{"$f":"IF('ادخال الاجازات'!I74=\"أبوه\",'ادخال الاجازات'!H74,0)","v":0},{"$f":"IF('ادخال الاجازات'!I74=\"حج\",'ادخال الاجازات'!H74,0)","v":0},{"$f":"IF('ادخال الاجازات'!I74=\"بدون راتب\",'ادخال الاجازات'!H74,0)","v":0},{"$f":"IF('ادخال الاجازات'!I74=\"مرضية\",'ادخال الاجازات'!H74,0)","v":0}]
[{"$f":"IF('ادخال الاجازات'!I75=\"سنوية\",'ادخال الاجازات'!H75,0)","v":0},{"$f":"IF('ادخال الاجازات'!I75=\"عرضية\",'ادخال الاجازات'!H75,0)","v":0},{"$f":"IF('ادخال الاجازات'!I75=\"أبوه\",'ادخال الاجازات'!H75,0)","v":0},{"$f":"IF('ادخال الاجازات'!I75=\"حج\",'ادخال الاجازات'!H75,0)","v":0},{"$f":"IF('ادخال الاجازات'!I75=\"بدون راتب\",'ادخال الاجازات'!H75,0)","v":0},{"$f":"IF('ادخال الاجازات'!I75=\"مرضية\",'ادخال الاجازات'!H75,0)","v":0}]
[{"$f":"IF('ادخال الاجازات'!I76=\"سنوية\",'ادخال الاجازات'!H76,0)","v":0},{"$f":"IF('ادخال الاجازات'!I76=\"عرضية\",'ادخال الاجازات'!H76,0)","v":0},{"$f":"IF('ادخال الاجازات'!I76=\"أبوه\",'ادخال الاجازات'!H76,0)","v":0},{"$f":"IF('ادخال الاجازات'!I76=\"حج\",'ادخال الاجازات'!H76,0)","v":0},{"$f":"IF('ادخال الاجازات'!I76=\"بدون راتب\",'ادخال الاجازات'!H76,0)","v":0},{"$f":"IF('ادخال الاجازات'!I76=\"مرضية\",'ادخال الاجازات'!H76,0)","v":0}]
[{"$f":"IF('ادخال الاجازات'!I77=\"سنوية\",'ادخال الاجازات'!H77,0)","v":0},{"$f":"IF('ادخال الاجازات'!I77=\"عرضية\",'ادخال الاجازات'!H77,0)","v":0},{"$f":"IF('ادخال الاجازات'!I77=\"أبوه\",'ادخال الاجازات'!H77,0)","v":0},{"$f":"IF('ادخال الاجازات'!I77=\"حج\",'ادخال الاجازات'!H77,0)","v":0},{"$f":"IF('ادخال الاجازات'!I77=\"بدون راتب\",'ادخال الاجازات'!H77,0)","v":0},{"$f":"IF('ادخال الاجازات'!I77=\"مرضية\",'ادخال الاجازات'!H77,0)","v":0}]
[{"$f":"IF('ادخال الاجازات'!I78=\"سنوية\",'ادخال الاجازات'!H78,0)","v":0},{"$f":"IF('ادخال الاجازات'!I78=\"عرضية\",'ادخال الاجازات'!H78,0)","v":0},{"$f":"IF('ادخال الاجازات'!I78=\"أبوه\",'ادخال الاجازات'!H78,0)","v":0},{"$f":"IF('ادخال الاجازات'!I78=\"حج\",'ادخال الاجازات'!H78,0)","v":0},{"$f":"IF('ادخال الاجازات'!I78=\"بدون راتب\",'ادخال الاجازات'!H78,0)","v":0},{"$f":"IF('ادخال الاجازات'!I78=\"مرضية\",'ادخال الاجازات'!H78,0)","v":0}]
[{"$f":"IF('ادخال الاجازات'!I79=\"سنوية\",'ادخال الاجازات'!H79,0)","v":0},{"$f":"IF('ادخال الاجازات'!I79=\"عرضية\",'ادخال الاجازات'!H79,0)","v":0},{"$f":"IF('ادخال الاجازات'!I79=\"أبوه\",'ادخال الاجازات'!H79,0)","v":0},{"$f":"IF('ادخال الاجازات'!I79=\"حج\",'ادخال الاجازات'!H79,0)","v":0},{"$f":"IF('ادخال الاجازات'!I79=\"بدون راتب\",'ادخال الاجازات'!H79,0)","v":0},{"$f":"IF('ادخال الاجازات'!I79=\"مرضية\",'ادخال الاجازات'!H79,0)","v":0}]
[{"$f":"IF('ادخال الاجازات'!I80=\"سنوية\",'ادخال الاجازات'!H80,0)","v":0},{"$f":"IF('ادخال الاجازات'!I80=\"عرضية\",'ادخال الاجازات'!H80,0)","v":0},{"$f":"IF('ادخال الاجازات'!I80=\"أبوه\",'ادخال الاجازات'!H80,0)","v":0},{"$f":"IF('ادخال الاجازات'!I80=\"حج\",'ادخال الاجازات'!H80,0)","v":0},{"$f":"IF('ادخال الاجازات'!I80=\"بدون راتب\",'ادخال الاجازات'!H80,0)","v":0},{"$f":"IF('ادخال الاجازات'!I80=\"مرضية\",'ادخال الاجازات'!H80,0)","v":0}]
[{"$f":"IF('ادخال الاجازات'!I81=\"سنوية\",'ادخال الاجازات'!H81,0)","v":0},{"$f":"IF('ادخال الاجازات'!I81=\"عرضية\",'ادخال الاجازات'!H81,0)","v":0},{"$f":"IF('ادخال الاجازات'!I81=\"أبوه\",'ادخال الاجازات'!H81,0)","v":0},{"$f":"IF('ادخال الاجازات'!I81=\"حج\",'ادخال الاجازات'!H81,0)","v":0},{"$f":"IF('ادخال الاجازات'!I81=\"بدون راتب\",'ادخال الاجازات'!H81,0)","v":0},{"$f":"IF('ادخال الاجازات'!I81=\"مرضية\",'ادخال الاجازات'!H81,0)","v":0}]
[{"$f":"IF('ادخال الاجازات'!I82=\"سنوية\",'ادخال الاجازات'!H82,0)","v":0},{"$f":"IF('ادخال الاجازات'!I82=\"عرضية\",'ادخال الاجازات'!H82,0)","v":0},{"$f":"IF('ادخال الاجازات'!I82=\"أبوه\",'ادخال الاجازات'!H82,0)","v":0},{"$f":"IF('ادخال الاجازات'!I82=\"حج\",'ادخال الاجازات'!H82,0)","v":0},{"$f":"IF('ادخال الاجازات'!I82=\"بدون راتب\",'ادخال الاجازات'!H82,0)","v":0},{"$f":"IF('ادخال الاجازات'!I82=\"مرضية\",'ادخال الاجازات'!H82,0)","v":0}]
[{"$f":"IF('ادخال الاجازات'!I83=\"سنوية\",'ادخال الاجازات'!H83,0)","v":0},{"$f":"IF('ادخال الاجازات'!I83=\"عرضية\",'ادخال الاجازات'!H83,0)","v":0},{"$f":"IF('ادخال الاجازات'!I83=\"أبوه\",'ادخال الاجازات'!H83,0)","v":0},{"$f":"IF('ادخال الاجازات'!I83=\"حج\",'ادخال الاجازات'!H83,0)","v":0},{"$f":"IF('ادخال الاجازات'!I83=\"بدون راتب\",'ادخال الاجازات'!H83,0)","v":0},{"$f":"IF('ادخال الاجازات'!I83=\"مرضية\",'ادخال الاجازات'!H83,0)","v":0}]
[{"$f":"IF('ادخال الاجازات'!I84=\"سنوية\",'ادخال الاجازات'!H84,0)","v":0},{"$f":"IF('ادخال الاجازات'!I84=\"عرضية\",'ادخال الاجازات'!H84,0)","v":0},{"$f":"IF('ادخال الاجازات'!I84=\"أبوه\",'ادخال الاجازات'!H84,0)","v":0},{"$f":"IF('ادخال الاجازات'!I84=\"حج\",'ادخال الاجازات'!H84,0)","v":0},{"$f":"IF('ادخال الاجازات'!I84=\"بدون راتب\",'ادخال الاجازات'!H84,0)","v":0},{"$f":"IF('ادخال الاجازات'!I84=\"مرضية\",'ادخال الاجازات'!H84,0)","v":0}]
[{"$f":"IF('ادخال الاجازات'!I85=\"سنوية\",'ادخال الاجازات'!H85,0)","v":0},{"$f":"IF('ادخال الاجازات'!I85=\"عرضية\",'ادخال الاجازات'!H85,0)","v":0},{"$f":"IF('ادخال الاجازات'!I85=\"أبوه\",'ادخال الاجازات'!H85,0)","v":0},{"$f":"IF('ادخال الاجازات'!I85=\"حج\",'ادخال الاجازات'!H85,0)","v":0},{"$f":"IF('ادخال الاجازات'!I85=\"بدون راتب\",'ادخال الاجازات'!H85,0)","v":0},{"$f":"IF('ادخال الاجازات'!I85=\"مرضية\",'ادخال الاجازات'!H85,0)","v":0}]
[{"$f":"IF('ادخال الاجازات'!I86=\"سنوية\",'ادخال الاجازات'!H86,0)","v":0},{"$f":"IF('ادخال الاجازات'!I86=\"عرضية\",'ادخال الاجازات'!H86,0)","v":0},{"$f":"IF('ادخال الاجازات'!I86=\"أبوه\",'ادخال الاجازات'!H86,0)","v":0},{"$f":"IF('ادخال الاجازات'!I86=\"حج\",'ادخال الاجازات'!H86,0)","v":0},{"$f":"IF('ادخال الاجازات'!I86=\"بدون راتب\",'ادخال الاجازات'!H86,0)","v":0},{"$f":"IF('ادخال الاجازات'!I86=\"مرضية\",'ادخال الاجازات'!H86,0)","v":0}]
[{"$f":"IF('ادخال الاجازات'!I87=\"سنوية\",'ادخال الاجازات'!H87,0)","v":0},{"$f":"IF('ادخال الاجازات'!I87=\"عرضية\",'ادخال الاجازات'!H87,0)","v":0},{"$f":"IF('ادخال الاجازات'!I87=\"أبوه\",'ادخال الاجازات'!H87,0)","v":0},{"$f":"IF('ادخال الاجازات'!I87=\"حج\",'ادخال الاجازات'!H87,0)","v":0},{"$f":"IF('ادخال الاجازات'!I87=\"بدون راتب\",'ادخال الاجازات'!H87,0)","v":0},{"$f":"IF('ادخال الاجازات'!I87=\"مرضية\",'ادخال الاجازات'!H87,0)","v":0}]
[{"$f":"IF('ادخال الاجازات'!I88=\"سنوية\",'ادخال الاجازات'!H88,0)","v":0},{"$f":"IF('ادخال الاجازات'!I88=\"عرضية\",'ادخال الاجازات'!H88,0)","v":0},{"$f":"IF('ادخال الاجازات'!I88=\"أبوه\",'ادخال الاجازات'!H88,0)","v":0},{"$f":"IF('ادخال الاجازات'!I88=\"حج\",'ادخال الاجازات'!H88,0)","v":0},{"$f":"IF('ادخال الاجازات'!I88=\"بدون راتب\",'ادخال الاجازات'!H88,0)","v":0},{"$f":"IF('ادخال الاجازات'!I88=\"مرضية\",'ادخال الاجازات'!H88,0)","v":0}]
[{"$f":"IF('ادخال الاجازات'!I89=\"سنوية\",'ادخال الاجازات'!H89,0)","v":0},{"$f":"IF('ادخال الاجازات'!I89=\"عرضية\",'ادخال الاجازات'!H89,0)","v":0},{"$f":"IF('ادخال الاجازات'!I89=\"أبوه\",'ادخال الاجازات'!H89,0)","v":0},{"$f":"IF('ادخال الاجازات'!I89=\"حج\",'ادخال الاجازات'!H89,0)","v":0},{"$f":"IF('ادخال الاجازات'!I89=\"بدون راتب\",'ادخال الاجازات'!H89,0)","v":0},{"$f":"IF('ادخال الاجازات'!I89=\"مرضية\",'ادخال الاجازات'!H89,0)","v":0}]
[{"$f":"IF('ادخال الاجازات'!I90=\"سنوية\",'ادخال الاجازات'!H90,0)","v":0},{"$f":"IF('ادخال الاجازات'!I90=\"عرضية\",'ادخال الاجازات'!H90,0)","v":0},{"$f":"IF('ادخال الاجازات'!I90=\"أبوه\",'ادخال الاجازات'!H90,0)","v":0},{"$f":"IF('ادخال الاجازات'!I90=\"حج\",'ادخال الاجازات'!H90,0)","v":0},{"$f":"IF('ادخال الاجازات'!I90=\"بدون راتب\",'ادخال الاجازات'!H90,0)","v":0},{"$f":"IF('ادخال الاجازات'!I90=\"مرضية\",'ادخال الاجازات'!H90,0)","v":0}]
[{"$f":"IF('ادخال الاجازات'!I91=\"سنوية\",'ادخال الاجازات'!H91,0)","v":0},{"$f":"IF('ادخال الاجازات'!I91=\"عرضية\",'ادخال الاجازات'!H91,0)","v":0},{"$f":"IF('ادخال الاجازات'!I91=\"أبوه\",'ادخال الاجازات'!H91,0)","v":0},{"$f":"IF('ادخال الاجازات'!I91=\"حج\",'ادخال الاجازات'!H91,0)","v":0},{"$f":"IF('ادخال الاجازات'!I91=\"بدون راتب\",'ادخال الاجازات'!H91,0)","v":0},{"$f":"IF('ادخال الاجازات'!I91=\"مرضية\",'ادخال الاجازات'!H91,0)","v":0}]
[{"$f":"IF('ادخال الاجازات'!I92=\"سنوية\",'ادخال الاجازات'!H92,0)","v":0},{"$f":"IF('ادخال الاجازات'!I92=\"عرضية\",'ادخال الاجازات'!H92,0)","v":0},{"$f":"IF('ادخال الاجازات'!I92=\"أبوه\",'ادخال الاجازات'!H92,0)","v":0},{"$f":"IF('ادخال الاجازات'!I92=\"حج\",'ادخال الاجازات'!H92,0)","v":0},{"$f":"IF('ادخال الاجازات'!I92=\"بدون راتب\",'ادخال الاجازات'!H92,0)","v":0},{"$f":"IF('ادخال الاجازات'!I92=\"مرضية\",'ادخال الاجازات'!H92,0)","v":0}]
[{"$f":"IF('ادخال الاجازات'!I93=\"سنوية\",'ادخال الاجازات'!H93,0)","v":0},{"$f":"IF('ادخال الاجازات'!I93=\"عرضية\",'ادخال الاجازات'!H93,0)","v":0},{"$f":"IF('ادخال الاجازات'!I93=\"أبوه\",'ادخال الاجازات'!H93,0)","v":0},{"$f":"IF('ادخال الاجازات'!I93=\"حج\",'ادخال الاجازات'!H93,0)","v":0},{"$f":"IF('ادخال الاجازات'!I93=\"بدون راتب\",'ادخال الاجازات'!H93,0)","v":0},{"$f":"IF('ادخال الاجازات'!I93=\"مرضية\",'ادخال الاجازات'!H93,0)","v":0}]
[{"$f":"IF('ادخال الاجازات'!I94=\"سنوية\",'ادخال الاجازات'!H94,0)","v":0},{"$f":"IF('ادخال الاجازات'!I94=\"عرضية\",'ادخال الاجازات'!H94,0)","v":0},{"$f":"IF('ادخال الاجازات'!I94=\"أبوه\",'ادخال الاجازات'!H94,0)","v":0},{"$f":"IF('ادخال الاجازات'!I94=\"حج\",'ادخال الاجازات'!H94,0)","v":0},{"$f":"IF('ادخال الاجازات'!I94=\"بدون راتب\",'ادخال الاجازات'!H94,0)","v":0},{"$f":"IF('ادخال الاجازات'!I94=\"مرضية\",'ادخال الاجازات'!H94,0)","v":0}]
[{"$f":"IF('ادخال الاجازات'!I95=\"سنوية\",'ادخال الاجازات'!H95,0)","v":0},{"$f":"IF('ادخال الاجازات'!I95=\"عرضية\",'ادخال الاجازات'!H95,0)","v":0},{"$f":"IF('ادخال الاجازات'!I95=\"أبوه\",'ادخال الاجازات'!H95,0)","v":0},{"$f":"IF('ادخال الاجازات'!I95=\"حج\",'ادخال الاجازات'!H95,0)","v":0},{"$f":"IF('ادخال الاجازات'!I95=\"بدون راتب\",'ادخال الاجازات'!H95,0)","v":0},{"$f":"IF('ادخال الاجازات'!I95=\"مرضية\",'ادخال الاجازات'!H95,0)","v":0}]
[{"$f":"IF('ادخال الاجازات'!I96=\"سنوية\",'ادخال الاجازات'!H96,0)","v":0},{"$f":"IF('ادخال الاجازات'!I96=\"عرضية\",'ادخال الاجازات'!H96,0)","v":0},{"$f":"IF('ادخال الاجازات'!I96=\"أبوه\",'ادخال الاجازات'!H96,0)","v":0},{"$f":"IF('ادخال الاجازات'!I96=\"حج\",'ادخال الاجازات'!H96,0)","v":0},{"$f":"IF('ادخال الاجازات'!I96=\"بدون راتب\",'ادخال الاجازات'!H96,0)","v":0},{"$f":"IF('ادخال الاجازات'!I96=\"مرضية\",'ادخال الاجازات'!H96,0)","v":0}]
[{"$f":"IF('ادخال الاجازات'!I97=\"سنوية\",'ادخال الاجازات'!H97,0)","v":0},{"$f":"IF('ادخال الاجازات'!I97=\"عرضية\",'ادخال الاجازات'!H97,0)","v":0},{"$f":"IF('ادخال الاجازات'!I97=\"أبوه\",'ادخال الاجازات'!H97,0)","v":0},{"$f":"IF('ادخال الاجازات'!I97=\"حج\",'ادخال الاجازات'!H97,0)","v":0},{"$f":"IF('ادخال الاجازات'!I97=\"بدون راتب\",'ادخال الاجازات'!H97,0)","v":0},{"$f":"IF('ادخال الاجازات'!I97=\"مرضية\",'ادخال الاجازات'!H97,0)","v":0}]
[{"$f":"IF('ادخال الاجازات'!I98=\"سنوية\",'ادخال الاجازات'!H98,0)","v":0},{"$f":"IF('ادخال الاجازات'!I98=\"عرضية\",'ادخال الاجازات'!H98,0)","v":0},{"$f":"IF('ادخال الاجازات'!I98=\"أبوه\",'ادخال الاجازات'!H98,0)","v":0},{"$f":"IF('ادخال الاجازات'!I98=\"حج\",'ادخال الاجازات'!H98,0)","v":0},{"$f":"IF('ادخال الاجازات'!I98=\"بدون راتب\",'ادخال الاجازات'!H98,0)","v":0},{"$f":"IF('ادخال الاجازات'!I98=\"مرضية\",'ادخال الاجازات'!H98,0)","v":0}]
[{"$f":"IF('ادخال الاجازات'!I99=\"سنوية\",'ادخال الاجازات'!H99,0)","v":0},{"$f":"IF('ادخال الاجازات'!I99=\"عرضية\",'ادخال الاجازات'!H99,0)","v":0},{"$f":"IF('ادخال الاجازات'!I99=\"أبوه\",'ادخال الاجازات'!H99,0)","v":0},{"$f":"IF('ادخال الاجازات'!I99=\"حج\",'ادخال الاجازات'!H99,0)","v":0},{"$f":"IF('ادخال الاجازات'!I99=\"بدون راتب\",'ادخال الاجازات'!H99,0)","v":0},{"$f":"IF('ادخال الاجازات'!I99=\"مرضية\",'ادخال الاجازات'!H99,0)","v":0}]
[{"$f":"IF('ادخال الاجازات'!I100=\"سنوية\",'ادخال الاجازات'!H100,0)","v":0},{"$f":"IF('ادخال الاجازات'!I100=\"عرضية\",'ادخال الاجازات'!H100,0)","v":0},{"$f":"IF('ادخال الاجازات'!I100=\"أبوه\",'ادخال الاجازات'!H100,0)","v":0},{"$f":"IF('ادخال الاجازات'!I100=\"حج\",'ادخال الاجازات'!H100,0)","v":0},{"$f":"IF('ادخال الاجازات'!I100=\"بدون راتب\",'ادخال الاجازات'!H100,0)","v":0},{"$f":"IF('ادخال الاجازات'!I100=\"مرضية\",'ادخال الاجازات'!H100,0)","v":0}]
[{"$f":"IF('ادخال الاجازات'!I101=\"سنوية\",'ادخال الاجازات'!H101,0)","v":0},{"$f":"IF('ادخال الاجازات'!I101=\"عرضية\",'ادخال الاجازات'!H101,0)","v":0},{"$f":"IF('ادخال الاجازات'!I101=\"أبوه\",'ادخال الاجازات'!H101,0)","v":0},{"$f":"IF('ادخال الاجازات'!I101=\"حج\",'ادخال الاجازات'!H101,0)","v":0},{"$f":"IF('ادخال الاجازات'!I101=\"بدون راتب\",'ادخال الاجازات'!H101,0)","v":0},{"$f":"IF('ادخال الاجازات'!I101=\"مرضية\",'ادخال الاجازات'!H101,0)","v":0}]
[{"$f":"IF('ادخال الاجازات'!I102=\"سنوية\",'ادخال الاجازات'!H102,0)","v":0},{"$f":"IF('ادخال الاجازات'!I102=\"عرضية\",'ادخال الاجازات'!H102,0)","v":0},{"$f":"IF('ادخال الاجازات'!I102=\"أبوه\",'ادخال الاجازات'!H102,0)","v":0},{"$f":"IF('ادخال الاجازات'!I102=\"حج\",'ادخال الاجازات'!H102,0)","v":0},{"$f":"IF('ادخال الاجازات'!I102=\"بدون راتب\",'ادخال الاجازات'!H102,0)","v":0},{"$f":"IF('ادخال الاجازات'!I102=\"مرضية\",'ادخال الاجازات'!H102,0)","v":0}]
[{"$f":"IF('ادخال الاجازات'!I103=\"سنوية\",'ادخال الاجازات'!H103,0)","v":0},{"$f":"IF('ادخال الاجازات'!I103=\"عرضية\",'ادخال الاجازات'!H103,0)","v":0},{"$f":"IF('ادخال الاجازات'!I103=\"أبوه\",'ادخال الاجازات'!H103,0)","v":0},{"$f":"IF('ادخال الاجازات'!I103=\"حج\",'ادخال الاجازات'!H103,0)","v":0},{"$f":"IF('ادخال الاجازات'!I103=\"بدون راتب\",'ادخال الاجازات'!H103,0)","v":0},{"$f":"IF('ادخال الاجازات'!I103=\"مرضية\",'ادخال الاجازات'!H103,0)","v":0}]
[{"$f":"IF('ادخال الاجازات'!I104=\"سنوية\",'ادخال الاجازات'!H104,0)","v":0},{"$f":"IF('ادخال الاجازات'!I104=\"عرضية\",'ادخال الاجازات'!H104,0)","v":0},{"$f":"IF('ادخال الاجازات'!I104=\"أبوه\",'ادخال الاجازات'!H104,0)","v":0},{"$f":"IF('ادخال الاجازات'!I104=\"حج\",'ادخال الاجازات'!H104,0)","v":0},{"$f":"IF('ادخال الاجازات'!I104=\"بدون راتب\",'ادخال الاجازات'!H104,0)","v":0},{"$f":"IF('ادخال الاجازات'!I104=\"مرضية\",'ادخال الاجازات'!H104,0)","v":0}]
[{"$f":"IF('ادخال الاجازات'!I105=\"سنوية\",'ادخال الاجازات'!H105,0)","v":0},{"$f":"IF('ادخال الاجازات'!I105=\"عرضية\",'ادخال الاجازات'!H105,0)","v":0},{"$f":"IF('ادخال الاجازات'!I105=\"أبوه\",'ادخال الاجازات'!H105,0)","v":0},{"$f":"IF('ادخال الاجازات'!I105=\"حج\",'ادخال الاجازات'!H105,0)","v":0},{"$f":"IF('ادخال الاجازات'!I105=\"بدون راتب\",'ادخال الاجازات'!H105,0)","v":0},{"$f":"IF('ادخال الاجازات'!I105=\"مرضية\",'ادخال الاجازات'!H105,0)","v":0}]
[{"$f":"IF('ادخال الاجازات'!I106=\"سنوية\",'ادخال الاجازات'!H106,0)","v":0},{"$f":"IF('ادخال الاجازات'!I106=\"عرضية\",'ادخال الاجازات'!H106,0)","v":0},{"$f":"IF('ادخال الاجازات'!I106=\"أبوه\",'ادخال الاجازات'!H106,0)","v":0},{"$f":"IF('ادخال الاجازات'!I106=\"حج\",'ادخال الاجازات'!H106,0)","v":0},{"$f":"IF('ادخال الاجازات'!I106=\"بدون راتب\",'ادخال الاجازات'!H106,0)","v":0},{"$f":"IF('ادخال الاجازات'!I106=\"مرضية\",'ادخال الاجازات'!H106,0)","v":0}]
[{"$f":"IF('ادخال الاجازات'!I107=\"سنوية\",'ادخال الاجازات'!H107,0)","v":0},{"$f":"IF('ادخال الاجازات'!I107=\"عرضية\",'ادخال الاجازات'!H107,0)","v":0},{"$f":"IF('ادخال الاجازات'!I107=\"أبوه\",'ادخال الاجازات'!H107,0)","v":0},{"$f":"IF('ادخال الاجازات'!I107=\"حج\",'ادخال الاجازات'!H107,0)","v":0},{"$f":"IF('ادخال الاجازات'!I107=\"بدون راتب\",'ادخال الاجازات'!H107,0)","v":0},{"$f":"IF('ادخال الاجازات'!I107=\"مرضية\",'ادخال الاجازات'!H107,0)","v":0}]
[{"$f":"IF('ادخال الاجازات'!I108=\"سنوية\",'ادخال الاجازات'!H108,0)","v":0},{"$f":"IF('ادخال الاجازات'!I108=\"عرضية\",'ادخال الاجازات'!H108,0)","v":0},{"$f":"IF('ادخال الاجازات'!I108=\"أبوه\",'ادخال الاجازات'!H108,0)","v":0},{"$f":"IF('ادخال الاجازات'!I108=\"حج\",'ادخال الاجازات'!H108,0)","v":0},{"$f":"IF('ادخال الاجازات'!I108=\"بدون راتب\",'ادخال الاجازات'!H108,0)","v":0},{"$f":"IF('ادخال الاجازات'!I108=\"مرضية\",'ادخال الاجازات'!H108,0)","v":0}]
[{"$f":"IF('ادخال الاجازات'!I109=\"سنوية\",'ادخال الاجازات'!H109,0)","v":0},{"$f":"IF('ادخال الاجازات'!I109=\"عرضية\",'ادخال الاجازات'!H109,0)","v":0},{"$f":"IF('ادخال الاجازات'!I109=\"أبوه\",'ادخال الاجازات'!H109,0)","v":0},{"$f":"IF('ادخال الاجازات'!I109=\"حج\",'ادخال الاجازات'!H109,0)","v":0},{"$f":"IF('ادخال الاجازات'!I109=\"بدون راتب\",'ادخال الاجازات'!H109,0)","v":0},{"$f":"IF('ادخال الاجازات'!I109=\"مرضية\",'ادخال الاجازات'!H109,0)","v":0}]
[{"$f":"IF('ادخال الاجازات'!I110=\"سنوية\",'ادخال الاجازات'!H110,0)","v":0},{"$f":"IF('ادخال الاجازات'!I110=\"عرضية\",'ادخال الاجازات'!H110,0)","v":0},{"$f":"IF('ادخال الاجازات'!I110=\"أبوه\",'ادخال الاجازات'!H110,0)","v":0},{"$f":"IF('ادخال الاجازات'!I110=\"حج\",'ادخال الاجازات'!H110,0)","v":0},{"$f":"IF('ادخال الاجازات'!I110=\"بدون راتب\",'ادخال الاجازات'!H110,0)","v":0},{"$f":"IF('ادخال الاجازات'!I110=\"مرضية\",'ادخال الاجازات'!H110,0)","v":0}]
[{"$f":"IF('ادخال الاجازات'!I111=\"سنوية\",'ادخال الاجازات'!H111,0)","v":0},{"$f":"IF('ادخال الاجازات'!I111=\"عرضية\",'ادخال الاجازات'!H111,0)","v":0},{"$f":"IF('ادخال الاجازات'!I111=\"أبوه\",'ادخال الاجازات'!H111,0)","v":0},{"$f":"IF('ادخال الاجازات'!I111=\"حج\",'ادخال الاجازات'!H111,0)","v":0},{"$f":"IF('ادخال الاجازات'!I111=\"بدون راتب\",'ادخال الاجازات'!H111,0)","v":0},{"$f":"IF('ادخال الاجازات'!I111=\"مرضية\",'ادخال الاجازات'!H111,0)","v":0}]
[{"$f":"IF('ادخال الاجازات'!I112=\"سنوية\",'ادخال الاجازات'!H112,0)","v":0},{"$f":"IF('ادخال الاجازات'!I112=\"عرضية\",'ادخال الاجازات'!H112,0)","v":0},{"$f":"IF('ادخال الاجازات'!I112=\"أبوه\",'ادخال الاجازات'!H112,0)","v":0},{"$f":"IF('ادخال الاجازات'!I112=\"حج\",'ادخال الاجازات'!H112,0)","v":0},{"$f":"IF('ادخال الاجازات'!I112=\"بدون راتب\",'ادخال الاجازات'!H112,0)","v":0},{"$f":"IF('ادخال الاجازات'!I112=\"مرضية\",'ادخال الاجازات'!H112,0)","v":0}]
[{"$f":"IF('ادخال الاجازات'!I113=\"سنوية\",'ادخال الاجازات'!H113,0)","v":0},{"$f":"IF('ادخال الاجازات'!I113=\"عرضية\",'ادخال الاجازات'!H113,0)","v":0},{"$f":"IF('ادخال الاجازات'!I113=\"أبوه\",'ادخال الاجازات'!H113,0)","v":0},{"$f":"IF('ادخال الاجازات'!I113=\"حج\",'ادخال الاجازات'!H113,0)","v":0},{"$f":"IF('ادخال الاجازات'!I113=\"بدون راتب\",'ادخال الاجازات'!H113,0)","v":0},{"$f":"IF('ادخال الاجازات'!I113=\"مرضية\",'ادخال الاجازات'!H113,0)","v":0}]
[{"$f":"IF('ادخال الاجازات'!I114=\"سنوية\",'ادخال الاجازات'!H114,0)","v":0},{"$f":"IF('ادخال الاجازات'!I114=\"عرضية\",'ادخال الاجازات'!H114,0)","v":0},{"$f":"IF('ادخال الاجازات'!I114=\"أبوه\",'ادخال الاجازات'!H114,0)","v":0},{"$f":"IF('ادخال الاجازات'!I114=\"حج\",'ادخال الاجازات'!H114,0)","v":0},{"$f":"IF('ادخال الاجازات'!I114=\"بدون راتب\",'ادخال الاجازات'!H114,0)","v":0},{"$f":"IF('ادخال الاجازات'!I114=\"مرضية\",'ادخال الاجازات'!H114,0)","v":0}]
[{"$f":"IF('ادخال الاجازات'!I115=\"سنوية\",'ادخال الاجازات'!H115,0)","v":0},{"$f":"IF('ادخال الاجازات'!I115=\"عرضية\",'ادخال الاجازات'!H115,0)","v":0},{"$f":"IF('ادخال الاجازات'!I115=\"أبوه\",'ادخال الاجازات'!H115,0)","v":0},{"$f":"IF('ادخال الاجازات'!I115=\"حج\",'ادخال الاجازات'!H115,0)","v":0},{"$f":"IF('ادخال الاجازات'!I115=\"بدون راتب\",'ادخال الاجازات'!H115,0)","v":0},{"$f":"IF('ادخال الاجازات'!I115=\"مرضية\",'ادخال الاجازات'!H115,0)","v":0}]
[{"$f":"IF('ادخال الاجازات'!I116=\"سنوية\",'ادخال الاجازات'!H116,0)","v":0},{"$f":"IF('ادخال الاجازات'!I116=\"عرضية\",'ادخال الاجازات'!H116,0)","v":0},{"$f":"IF('ادخال الاجازات'!I116=\"أبوه\",'ادخال الاجازات'!H116,0)","v":0},{"$f":"IF('ادخال الاجازات'!I116=\"حج\",'ادخال الاجازات'!H116,0)","v":0},{"$f":"IF('ادخال الاجازات'!I116=\"بدون راتب\",'ادخال الاجازات'!H116,0)","v":0},{"$f":"IF('ادخال الاجازات'!I116=\"مرضية\",'ادخال الاجازات'!H116,0)","v":0}]
[{"$f":"IF('ادخال الاجازات'!I117=\"سنوية\",'ادخال الاجازات'!H117,0)","v":0},{"$f":"IF('ادخال الاجازات'!I117=\"عرضية\",'ادخال الاجازات'!H117,0)","v":0},{"$f":"IF('ادخال الاجازات'!I117=\"أبوه\",'ادخال الاجازات'!H117,0)","v":0},{"$f":"IF('ادخال الاجازات'!I117=\"حج\",'ادخال الاجازات'!H117,0)","v":0},{"$f":"IF('ادخال الاجازات'!I117=\"بدون راتب\",'ادخال الاجازات'!H117,0)","v":0},{"$f":"IF('ادخال الاجازات'!I117=\"مرضية\",'ادخال الاجازات'!H117,0)","v":0}]
[{"$f":"IF('ادخال الاجازات'!I118=\"سنوية\",'ادخال الاجازات'!H118,0)","v":0},{"$f":"IF('ادخال الاجازات'!I118=\"عرضية\",'ادخال الاجازات'!H118,0)","v":0},{"$f":"IF('ادخال الاجازات'!I118=\"أبوه\",'ادخال الاجازات'!H118,0)","v":0},{"$f":"IF('ادخال الاجازات'!I118=\"حج\",'ادخال الاجازات'!H118,0)","v":0},{"$f":"IF('ادخال الاجازات'!I118=\"بدون راتب\",'ادخال الاجازات'!H118,0)","v":0},{"$f":"IF('ادخال الاجازات'!I118=\"مرضية\",'ادخال الاجازات'!H118,0)","v":0}]
[{"$f":"IF('ادخال الاجازات'!I119=\"سنوية\",'ادخال الاجازات'!H119,0)","v":0},{"$f":"IF('ادخال الاجازات'!I119=\"عرضية\",'ادخال الاجازات'!H119,0)","v":0},{"$f":"IF('ادخال الاجازات'!I119=\"أبوه\",'ادخال الاجازات'!H119,0)","v":0},{"$f":"IF('ادخال الاجازات'!I119=\"حج\",'ادخال الاجازات'!H119,0)","v":0},{"$f":"IF('ادخال الاجازات'!I119=\"بدون راتب\",'ادخال الاجازات'!H119,0)","v":0},{"$f":"IF('ادخال الاجازات'!I119=\"مرضية\",'ادخال الاجازات'!H119,0)","v":0}]
[{"$f":"IF('ادخال الاجازات'!I120=\"سنوية\",'ادخال الاجازات'!H120,0)","v":0},{"$f":"IF('ادخال الاجازات'!I120=\"عرضية\",'ادخال الاجازات'!H120,0)","v":0},{"$f":"IF('ادخال الاجازات'!I120=\"أبوه\",'ادخال الاجازات'!H120,0)","v":0},{"$f":"IF('ادخال الاجازات'!I120=\"حج\",'ادخال الاجازات'!H120,0)","v":0},{"$f":"IF('ادخال الاجازات'!I120=\"بدون راتب\",'ادخال الاجازات'!H120,0)","v":0},{"$f":"IF('ادخال الاجازات'!I120=\"مرضية\",'ادخال الاجازات'!H120,0)","v":0}]
[{"$f":"IF('ادخال الاجازات'!I121=\"سنوية\",'ادخال الاجازات'!H121,0)","v":0},{"$f":"IF('ادخال الاجازات'!I121=\"عرضية\",'ادخال الاجازات'!H121,0)","v":0},{"$f":"IF('ادخال الاجازات'!I121=\"أبوه\",'ادخال الاجازات'!H121,0)","v":0},{"$f":"IF('ادخال الاجازات'!I121=\"حج\",'ادخال الاجازات'!H121,0)","v":0},{"$f":"IF('ادخال الاجازات'!I121=\"بدون راتب\",'ادخال الاجازات'!H121,0)","v":0},{"$f":"IF('ادخال الاجازات'!I121=\"مرضية\",'ادخال الاجازات'!H121,0)","v":0}]
[{"$f":"IF('ادخال الاجازات'!I122=\"سنوية\",'ادخال الاجازات'!H122,0)","v":0},{"$f":"IF('ادخال الاجازات'!I122=\"عرضية\",'ادخال الاجازات'!H122,0)","v":0},{"$f":"IF('ادخال الاجازات'!I122=\"أبوه\",'ادخال الاجازات'!H122,0)","v":0},{"$f":"IF('ادخال الاجازات'!I122=\"حج\",'ادخال الاجازات'!H122,0)","v":0},{"$f":"IF('ادخال الاجازات'!I122=\"بدون راتب\",'ادخال الاجازات'!H122,0)","v":0},{"$f":"IF('ادخال الاجازات'!I122=\"مرضية\",'ادخال الاجازات'!H122,0)","v":0}]
[{"$f":"IF('ادخال الاجازات'!I123=\"سنوية\",'ادخال الاجازات'!H123,0)","v":0},{"$f":"IF('ادخال الاجازات'!I123=\"عرضية\",'ادخال الاجازات'!H123,0)","v":0},{"$f":"IF('ادخال الاجازات'!I123=\"أبوه\",'ادخال الاجازات'!H123,0)","v":0},{"$f":"IF('ادخال الاجازات'!I123=\"حج\",'ادخال الاجازات'!H123,0)","v":0},{"$f":"IF('ادخال الاجازات'!I123=\"بدون راتب\",'ادخال الاجازات'!H123,0)","v":0},{"$f":"IF('ادخال الاجازات'!I123=\"مرضية\",'ادخال الاجازات'!H123,0)","v":0}]
[{"$f":"IF('ادخال الاجازات'!I124=\"سنوية\",'ادخال الاجازات'!H124,0)","v":0},{"$f":"IF('ادخال الاجازات'!I124=\"عرضية\",'ادخال الاجازات'!H124,0)","v":0},{"$f":"IF('ادخال الاجازات'!I124=\"أبوه\",'ادخال الاجازات'!H124,0)","v":0},{"$f":"IF('ادخال الاجازات'!I124=\"حج\",'ادخال الاجازات'!H124,0)","v":0},{"$f":"IF('ادخال الاجازات'!I124=\"بدون راتب\",'ادخال الاجازات'!H124,0)","v":0},{"$f":"IF('ادخال الاجازات'!I124=\"مرضية\",'ادخال الاجازات'!H124,0)","v":0}]
[{"$f":"IF('ادخال الاجازات'!I125=\"سنوية\",'ادخال الاجازات'!H125,0)","v":0},{"$f":"IF('ادخال الاجازات'!I125=\"عرضية\",'ادخال الاجازات'!H125,0)","v":0},{"$f":"IF('ادخال الاجازات'!I125=\"أبوه\",'ادخال الاجازات'!H125,0)","v":0},{"$f":"IF('ادخال الاجازات'!I125=\"حج\",'ادخال الاجازات'!H125,0)","v":0},{"$f":"IF('ادخال الاجازات'!I125=\"بدون راتب\",'ادخال الاجازات'!H125,0)","v":0},{"$f":"IF('ادخال الاجازات'!I125=\"مرضية\",'ادخال الاجازات'!H125,0)","v":0}]
[{"$f":"IF('ادخال الاجازات'!I126=\"سنوية\",'ادخال الاجازات'!H126,0)","v":0},{"$f":"IF('ادخال الاجازات'!I126=\"عرضية\",'ادخال الاجازات'!H126,0)","v":0},{"$f":"IF('ادخال الاجازات'!I126=\"أبوه\",'ادخال الاجازات'!H126,0)","v":0},{"$f":"IF('ادخال الاجازات'!I126=\"حج\",'ادخال الاجازات'!H126,0)","v":0},{"$f":"IF('ادخال الاجازات'!I126=\"بدون راتب\",'ادخال الاجازات'!H126,0)","v":0},{"$f":"IF('ادخال الاجازات'!I126=\"مرضية\",'ادخال الاجازات'!H126,0)","v":0}]
[{"$f":"IF('ادخال الاجازات'!I127=\"سنوية\",'ادخال الاجازات'!H127,0)","v":0},{"$f":"IF('ادخال الاجازات'!I127=\"عرضية\",'ادخال الاجازات'!H127,0)","v":0},{"$f":"IF('ادخال الاجازات'!I127=\"أبوه\",'ادخال الاجازات'!H127,0)","v":0},{"$f":"IF('ادخال الاجازات'!I127=\"حج\",'ادخال الاجازات'!H127,0)","v":0},{"$f":"IF('ادخال الاجازات'!I127=\"بدون راتب\",'ادخال الاجازات'!H127,0)","v":0},{"$f":"IF('ادخال الاجازات'!I127=\"مرضية\",'ادخال الاجازات'!H127,0)","v":0}]
[{"$f":"IF('ادخال الاجازات'!I128=\"سنوية\",'ادخال الاجازات'!H128,0)","v":0},{"$f":"IF('ادخال الاجازات'!I128=\"عرضية\",'ادخال الاجازات'!H128,0)","v":0},{"$f":"IF('ادخال الاجازات'!I128=\"أبوه\",'ادخال الاجازات'!H128,0)","v":0},{"$f":"IF('ادخال الاجازات'!I128=\"حج\",'ادخال الاجازات'!H128,0)","v":0},{"$f":"IF('ادخال الاجازات'!I128=\"بدون راتب\",'ادخال الاجازات'!H128,0)","v":0},{"$f":"IF('ادخال الاجازات'!I128=\"مرضية\",'ادخال الاجازات'!H128,0)","v":0}]
[{"$f":"IF('ادخال الاجازات'!I129=\"سنوية\",'ادخال الاجازات'!H129,0)","v":0},{"$f":"IF('ادخال الاجازات'!I129=\"عرضية\",'ادخال الاجازات'!H129,0)","v":0},{"$f":"IF('ادخال الاجازات'!I129=\"أبوه\",'ادخال الاجازات'!H129,0)","v":0},{"$f":"IF('ادخال الاجازات'!I129=\"حج\",'ادخال الاجازات'!H129,0)","v":0},{"$f":"IF('ادخال الاجازات'!I129=\"بدون راتب\",'ادخال الاجازات'!H129,0)","v":0},{"$f":"IF('ادخال الاجازات'!I129=\"مرضية\",'ادخال الاجازات'!H129,0)","v":0}]
[{"$f":"IF('ادخال الاجازات'!I130=\"سنوية\",'ادخال الاجازات'!H130,0)","v":0},{"$f":"IF('ادخال الاجازات'!I130=\"عرضية\",'ادخال الاجازات'!H130,0)","v":0},{"$f":"IF('ادخال الاجازات'!I130=\"أبوه\",'ادخال الاجازات'!H130,0)","v":0},{"$f":"IF('ادخال الاجازات'!I130=\"حج\",'ادخال الاجازات'!H130,0)","v":0},{"$f":"IF('ادخال الاجازات'!I130=\"بدون راتب\",'ادخال الاجازات'!H130,0)","v":0},{"$f":"IF('ادخال الاجازات'!I130=\"مرضية\",'ادخال الاجازات'!H130,0)","v":0}]
[{"$f":"IF('ادخال الاجازات'!I131=\"سنوية\",'ادخال الاجازات'!H131,0)","v":0},{"$f":"IF('ادخال الاجازات'!I131=\"عرضية\",'ادخال الاجازات'!H131,0)","v":0},{"$f":"IF('ادخال الاجازات'!I131=\"أبوه\",'ادخال الاجازات'!H131,0)","v":0},{"$f":"IF('ادخال الاجازات'!I131=\"حج\",'ادخال الاجازات'!H131,0)","v":0},{"$f":"IF('ادخال الاجازات'!I131=\"بدون راتب\",'ادخال الاجازات'!H131,0)","v":0},{"$f":"IF('ادخال الاجازات'!I131=\"مرضية\",'ادخال الاجازات'!H131,0)","v":0}]
[{"$f":"IF('ادخال الاجازات'!I132=\"سنوية\",'ادخال الاجازات'!H132,0)","v":0},{"$f":"IF('ادخال الاجازات'!I132=\"عرضية\",'ادخال الاجازات'!H132,0)","v":0},{"$f":"IF('ادخال الاجازات'!I132=\"أبوه\",'ادخال الاجازات'!H132,0)","v":0},{"$f":"IF('ادخال الاجازات'!I132=\"حج\",'ادخال الاجازات'!H132,0)","v":0},{"$f":"IF('ادخال الاجازات'!I132=\"بدون راتب\",'ادخال الاجازات'!H132,0)","v":0},{"$f":"IF('ادخال الاجازات'!I132=\"مرضية\",'ادخال الاجازات'!H132,0)","v":0}]
[{"$f":"IF('ادخال الاجازات'!I133=\"سنوية\",'ادخال الاجازات'!H133,0)","v":0},{"$f":"IF('ادخال الاجازات'!I133=\"عرضية\",'ادخال الاجازات'!H133,0)","v":0},{"$f":"IF('ادخال الاجازات'!I133=\"أبوه\",'ادخال الاجازات'!H133,0)","v":0},{"$f":"IF('ادخال الاجازات'!I133=\"حج\",'ادخال الاجازات'!H133,0)","v":0},{"$f":"IF('ادخال الاجازات'!I133=\"بدون راتب\",'ادخال الاجازات'!H133,0)","v":0},{"$f":"IF('ادخال الاجازات'!I133=\"مرضية\",'ادخال الاجازات'!H133,0)","v":0}]
[{"$f":"IF('ادخال الاجازات'!I134=\"سنوية\",'ادخال الاجازات'!H134,0)","v":0},{"$f":"IF('ادخال الاجازات'!I134=\"عرضية\",'ادخال الاجازات'!H134,0)","v":0},{"$f":"IF('ادخال الاجازات'!I134=\"أبوه\",'ادخال الاجازات'!H134,0)","v":0},{"$f":"IF('ادخال الاجازات'!I134=\"حج\",'ادخال الاجازات'!H134,0)","v":0},{"$f":"IF('ادخال الاجازات'!I134=\"بدون راتب\",'ادخال الاجازات'!H134,0)","v":0},{"$f":"IF('ادخال الاجازات'!I134=\"مرضية\",'ادخال الاجازات'!H134,0)","v":0}]
[{"$f":"IF('ادخال الاجازات'!I135=\"سنوية\",'ادخال الاجازات'!H135,0)","v":0},{"$f":"IF('ادخال الاجازات'!I135=\"عرضية\",'ادخال الاجازات'!H135,0)","v":0},{"$f":"IF('ادخال الاجازات'!I135=\"أبوه\",'ادخال الاجازات'!H135,0)","v":0},{"$f":"IF('ادخال الاجازات'!I135=\"حج\",'ادخال الاجازات'!H135,0)","v":0},{"$f":"IF('ادخال الاجازات'!I135=\"بدون راتب\",'ادخال الاجازات'!H135,0)","v":0},{"$f":"IF('ادخال الاجازات'!I135=\"مرضية\",'ادخال الاجازات'!H135,0)","v":0}]
[{"$f":"IF('ادخال الاجازات'!I136=\"سنوية\",'ادخال الاجازات'!H136,0)","v":0},{"$f":"IF('ادخال الاجازات'!I136=\"عرضية\",'ادخال الاجازات'!H136,0)","v":0},{"$f":"IF('ادخال الاجازات'!I136=\"أبوه\",'ادخال الاجازات'!H136,0)","v":0},{"$f":"IF('ادخال الاجازات'!I136=\"حج\",'ادخال الاجازات'!H136,0)","v":0},{"$f":"IF('ادخال الاجازات'!I136=\"بدون راتب\",'ادخال الاجازات'!H136,0)","v":0},{"$f":"IF('ادخال الاجازات'!I136=\"مرضية\",'ادخال الاجازات'!H136,0)","v":0}]
[{"$f":"IF('ادخال الاجازات'!I137=\"سنوية\",'ادخال الاجازات'!H137,0)","v":0},{"$f":"IF('ادخال الاجازات'!I137=\"عرضية\",'ادخال الاجازات'!H137,0)","v":0},{"$f":"IF('ادخال الاجازات'!I137=\"أبوه\",'ادخال الاجازات'!H137,0)","v":0},{"$f":"IF('ادخال الاجازات'!I137=\"حج\",'ادخال الاجازات'!H137,0)","v":0},{"$f":"IF('ادخال الاجازات'!I137=\"بدون راتب\",'ادخال الاجازات'!H137,0)","v":0},{"$f":"IF('ادخال الاجازات'!I137=\"مرضية\",'ادخال الاجازات'!H137,0)","v":0}]
[{"$f":"IF('ادخال الاجازات'!I138=\"سنوية\",'ادخال الاجازات'!H138,0)","v":0},{"$f":"IF('ادخال الاجازات'!I138=\"عرضية\",'ادخال الاجازات'!H138,0)","v":0},{"$f":"IF('ادخال الاجازات'!I138=\"أبوه\",'ادخال الاجازات'!H138,0)","v":0},{"$f":"IF('ادخال الاجازات'!I138=\"حج\",'ادخال الاجازات'!H138,0)","v":0},{"$f":"IF('ادخال الاجازات'!I138=\"بدون راتب\",'ادخال الاجازات'!H138,0)","v":0},{"$f":"IF('ادخال الاجازات'!I138=\"مرضية\",'ادخال الاجازات'!H138,0)","v":0}]
[{"$f":"IF('ادخال الاجازات'!I139=\"سنوية\",'ادخال الاجازات'!H139,0)","v":0},{"$f":"IF('ادخال الاجازات'!I139=\"عرضية\",'ادخال الاجازات'!H139,0)","v":0},{"$f":"IF('ادخال الاجازات'!I139=\"أبوه\",'ادخال الاجازات'!H139,0)","v":0},{"$f":"IF('ادخال الاجازات'!I139=\"حج\",'ادخال الاجازات'!H139,0)","v":0},{"$f":"IF('ادخال الاجازات'!I139=\"بدون راتب\",'ادخال الاجازات'!H139,0)","v":0},{"$f":"IF('ادخال الاجازات'!I139=\"مرضية\",'ادخال الاجازات'!H139,0)","v":0}]
[{"$f":"IF('ادخال الاجازات'!I140=\"سنوية\",'ادخال الاجازات'!H140,0)","v":0},{"$f":"IF('ادخال الاجازات'!I140=\"عرضية\",'ادخال الاجازات'!H140,0)","v":0},{"$f":"IF('ادخال الاجازات'!I140=\"أبوه\",'ادخال الاجازات'!H140,0)","v":0},{"$f":"IF('ادخال الاجازات'!I140=\"حج\",'ادخال الاجازات'!H140,0)","v":0},{"$f":"IF('ادخال الاجازات'!I140=\"بدون راتب\",'ادخال الاجازات'!H140,0)","v":0},{"$f":"IF('ادخال الاجازات'!I140=\"مرضية\",'ادخال الاجازات'!H140,0)","v":0}]
[{"$f":"IF('ادخال الاجازات'!I141=\"سنوية\",'ادخال الاجازات'!H141,0)","v":0},{"$f":"IF('ادخال الاجازات'!I141=\"عرضية\",'ادخال الاجازات'!H141,0)","v":0},{"$f":"IF('ادخال الاجازات'!I141=\"أبوه\",'ادخال الاجازات'!H141,0)","v":0},{"$f":"IF('ادخال الاجازات'!I141=\"حج\",'ادخال الاجازات'!H141,0)","v":0},{"$f":"IF('ادخال الاجازات'!I141=\"بدون راتب\",'ادخال الاجازات'!H141,0)","v":0},{"$f":"IF('ادخال الاجازات'!I141=\"مرضية\",'ادخال الاجازات'!H141,0)","v":0}]
[{"$f":"IF('ادخال الاجازات'!I142=\"سنوية\",'ادخال الاجازات'!H142,0)","v":0},{"$f":"IF('ادخال الاجازات'!I142=\"عرضية\",'ادخال الاجازات'!H142,0)","v":0},{"$f":"IF('ادخال الاجازات'!I142=\"أبوه\",'ادخال الاجازات'!H142,0)","v":0},{"$f":"IF('ادخال الاجازات'!I142=\"حج\",'ادخال الاجازات'!H142,0)","v":0},{"$f":"IF('ادخال الاجازات'!I142=\"بدون راتب\",'ادخال الاجازات'!H142,0)","v":0},{"$f":"IF('ادخال الاجازات'!I142=\"مرضية\",'ادخال الاجازات'!H142,0)","v":0}]
[{"$f":"IF('ادخال الاجازات'!I143=\"سنوية\",'ادخال الاجازات'!H143,0)","v":0},{"$f":"IF('ادخال الاجازات'!I143=\"عرضية\",'ادخال الاجازات'!H143,0)","v":0},{"$f":"IF('ادخال الاجازات'!I143=\"أبوه\",'ادخال الاجازات'!H143,0)","v":0},{"$f":"IF('ادخال الاجازات'!I143=\"حج\",'ادخال الاجازات'!H143,0)","v":0},{"$f":"IF('ادخال الاجازات'!I143=\"بدون راتب\",'ادخال الاجازات'!H143,0)","v":0},{"$f":"IF('ادخال الاجازات'!I143=\"مرضية\",'ادخال الاجازات'!H143,0)","v":0}]
[{"$f":"IF('ادخال الاجازات'!I144=\"سنوية\",'ادخال الاجازات'!H144,0)","v":0},{"$f":"IF('ادخال الاجازات'!I144=\"عرضية\",'ادخال الاجازات'!H144,0)","v":0},{"$f":"IF('ادخال الاجازات'!I144=\"أبوه\",'ادخال الاجازات'!H144,0)","v":0},{"$f":"IF('ادخال الاجازات'!I144=\"حج\",'ادخال الاجازات'!H144,0)","v":0},{"$f":"IF('ادخال الاجازات'!I144=\"بدون راتب\",'ادخال الاجازات'!H144,0)","v":0},{"$f":"IF('ادخال الاجازات'!I144=\"مرضية\",'ادخال الاجازات'!H144,0)","v":0}]
[{"$f":"IF('ادخال الاجازات'!I145=\"سنوية\",'ادخال الاجازات'!H145,0)","v":0},{"$f":"IF('ادخال الاجازات'!I145=\"عرضية\",'ادخال الاجازات'!H145,0)","v":0},{"$f":"IF('ادخال الاجازات'!I145=\"أبوه\",'ادخال الاجازات'!H145,0)","v":0},{"$f":"IF('ادخال الاجازات'!I145=\"حج\",'ادخال الاجازات'!H145,0)","v":0},{"$f":"IF('ادخال الاجازات'!I145=\"بدون راتب\",'ادخال الاجازات'!H145,0)","v":0},{"$f":"IF('ادخال الاجازات'!I145=\"مرضية\",'ادخال الاجازات'!H145,0)","v":0}]
[{"$f":"IF('ادخال الاجازات'!I146=\"سنوية\",'ادخال الاجازات'!H146,0)","v":0},{"$f":"IF('ادخال الاجازات'!I146=\"عرضية\",'ادخال الاجازات'!H146,0)","v":0},{"$f":"IF('ادخال الاجازات'!I146=\"أبوه\",'ادخال الاجازات'!H146,0)","v":0},{"$f":"IF('ادخال الاجازات'!I146=\"حج\",'ادخال الاجازات'!H146,0)","v":0},{"$f":"IF('ادخال الاجازات'!I146=\"بدون راتب\",'ادخال الاجازات'!H146,0)","v":0},{"$f":"IF('ادخال الاجازات'!I146=\"مرضية\",'ادخال الاجازات'!H146,0)","v":0}]
[{"$f":"IF('ادخال الاجازات'!I147=\"سنوية\",'ادخال الاجازات'!H147,0)","v":0},{"$f":"IF('ادخال الاجازات'!I147=\"عرضية\",'ادخال الاجازات'!H147,0)","v":0},{"$f":"IF('ادخال الاجازات'!I147=\"أبوه\",'ادخال الاجازات'!H147,0)","v":0},{"$f":"IF('ادخال الاجازات'!I147=\"حج\",'ادخال الاجازات'!H147,0)","v":0},{"$f":"IF('ادخال الاجازات'!I147=\"بدون راتب\",'ادخال الاجازات'!H147,0)","v":0},{"$f":"IF('ادخال الاجازات'!I147=\"مرضية\",'ادخال الاجازات'!H147,0)","v":0}]
[{"$f":"IF('ادخال الاجازات'!I148=\"سنوية\",'ادخال الاجازات'!H148,0)","v":0},{"$f":"IF('ادخال الاجازات'!I148=\"عرضية\",'ادخال الاجازات'!H148,0)","v":0},{"$f":"IF('ادخال الاجازات'!I148=\"أبوه\",'ادخال الاجازات'!H148,0)","v":0},{"$f":"IF('ادخال الاجازات'!I148=\"حج\",'ادخال الاجازات'!H148,0)","v":0},{"$f":"IF('ادخال الاجازات'!I148=\"بدون راتب\",'ادخال الاجازات'!H148,0)","v":0},{"$f":"IF('ادخال الاجازات'!I148=\"مرضية\",'ادخال الاجازات'!H148,0)","v":0}]
[{"$f":"IF('ادخال الاجازات'!I149=\"سنوية\",'ادخال الاجازات'!H149,0)","v":0},{"$f":"IF('ادخال الاجازات'!I149=\"عرضية\",'ادخال الاجازات'!H149,0)","v":0},{"$f":"IF('ادخال الاجازات'!I149=\"أبوه\",'ادخال الاجازات'!H149,0)","v":0},{"$f":"IF('ادخال الاجازات'!I149=\"حج\",'ادخال الاجازات'!H149,0)","v":0},{"$f":"IF('ادخال الاجازات'!I149=\"بدون راتب\",'ادخال الاجازات'!H149,0)","v":0},{"$f":"IF('ادخال الاجازات'!I149=\"مرضية\",'ادخال الاجازات'!H149,0)","v":0}]
[{"$f":"IF('ادخال الاجازات'!I150=\"سنوية\",'ادخال الاجازات'!H150,0)","v":0},{"$f":"IF('ادخال الاجازات'!I150=\"عرضية\",'ادخال الاجازات'!H150,0)","v":0},{"$f":"IF('ادخال الاجازات'!I150=\"أبوه\",'ادخال الاجازات'!H150,0)","v":0},{"$f":"IF('ادخال الاجازات'!I150=\"حج\",'ادخال الاجازات'!H150,0)","v":0},{"$f":"IF('ادخال الاجازات'!I150=\"بدون راتب\",'ادخال الاجازات'!H150,0)","v":0},{"$f":"IF('ادخال الاجازات'!I150=\"مرضية\",'ادخال الاجازات'!H150,0)","v":0}]
[{"$f":"IF('ادخال الاجازات'!I151=\"سنوية\",'ادخال الاجازات'!H151,0)","v":0},{"$f":"IF('ادخال الاجازات'!I151=\"عرضية\",'ادخال الاجازات'!H151,0)","v":0},{"$f":"IF('ادخال الاجازات'!I151=\"أبوه\",'ادخال الاجازات'!H151,0)","v":0},{"$f":"IF('ادخال الاجازات'!I151=\"حج\",'ادخال الاجازات'!H151,0)","v":0},{"$f":"IF('ادخال الاجازات'!I151=\"بدون راتب\",'ادخال الاجازات'!H151,0)","v":0},{"$f":"IF('ادخال الاجازات'!I151=\"مرضية\",'ادخال الاجازات'!H151,0)","v":0}]
[{"$f":"IF('ادخال الاجازات'!I152=\"سنوية\",'ادخال الاجازات'!H152,0)","v":0},{"$f":"IF('ادخال الاجازات'!I152=\"عرضية\",'ادخال الاجازات'!H152,0)","v":0},{"$f":"IF('ادخال الاجازات'!I152=\"أبوه\",'ادخال الاجازات'!H152,0)","v":0},{"$f":"IF('ادخال الاجازات'!I152=\"حج\",'ادخال الاجازات'!H152,0)","v":0},{"$f":"IF('ادخال الاجازات'!I152=\"بدون راتب\",'ادخال الاجازات'!H152,0)","v":0},{"$f":"IF('ادخال الاجازات'!I152=\"مرضية\",'ادخال الاجازات'!H152,0)","v":0}]
[{"$f":"IF('ادخال الاجازات'!I153=\"سنوية\",'ادخال الاجازات'!H153,0)","v":0},{"$f":"IF('ادخال الاجازات'!I153=\"عرضية\",'ادخال الاجازات'!H153,0)","v":0},{"$f":"IF('ادخال الاجازات'!I153=\"أبوه\",'ادخال الاجازات'!H153,0)","v":0},{"$f":"IF('ادخال الاجازات'!I153=\"حج\",'ادخال الاجازات'!H153,0)","v":0},{"$f":"IF('ادخال الاجازات'!I153=\"بدون راتب\",'ادخال الاجازات'!H153,0)","v":0},{"$f":"IF('ادخال الاجازات'!I153=\"مرضية\",'ادخال الاجازات'!H153,0)","v":0}]
[{"$f":"IF('ادخال الاجازات'!I154=\"سنوية\",'ادخال الاجازات'!H154,0)","v":0},{"$f":"IF('ادخال الاجازات'!I154=\"عرضية\",'ادخال الاجازات'!H154,0)","v":0},{"$f":"IF('ادخال الاجازات'!I154=\"أبوه\",'ادخال الاجازات'!H154,0)","v":0},{"$f":"IF('ادخال الاجازات'!I154=\"حج\",'ادخال الاجازات'!H154,0)","v":0},{"$f":"IF('ادخال الاجازات'!I154=\"بدون راتب\",'ادخال الاجازات'!H154,0)","v":0},{"$f":"IF('ادخال الاجازات'!I154=\"مرضية\",'ادخال الاجازات'!H154,0)","v":0}]
[{"$f":"IF('ادخال الاجازات'!I155=\"سنوية\",'ادخال الاجازات'!H155,0)","v":0},{"$f":"IF('ادخال الاجازات'!I155=\"عرضية\",'ادخال الاجازات'!H155,0)","v":0},{"$f":"IF('ادخال الاجازات'!I155=\"أبوه\",'ادخال الاجازات'!H155,0)","v":0},{"$f":"IF('ادخال الاجازات'!I155=\"حج\",'ادخال الاجازات'!H155,0)","v":0},{"$f":"IF('ادخال الاجازات'!I155=\"بدون راتب\",'ادخال الاجازات'!H155,0)","v":0},{"$f":"IF('ادخال الاجازات'!I155=\"مرضية\",'ادخال الاجازات'!H155,0)","v":0}]
[{"$f":"IF('ادخال الاجازات'!I156=\"سنوية\",'ادخال الاجازات'!H156,0)","v":0},{"$f":"IF('ادخال الاجازات'!I156=\"عرضية\",'ادخال الاجازات'!H156,0)","v":0},{"$f":"IF('ادخال الاجازات'!I156=\"أبوه\",'ادخال الاجازات'!H156,0)","v":0},{"$f":"IF('ادخال الاجازات'!I156=\"حج\",'ادخال الاجازات'!H156,0)","v":0},{"$f":"IF('ادخال الاجازات'!I156=\"بدون راتب\",'ادخال الاجازات'!H156,0)","v":0},{"$f":"IF('ادخال الاجازات'!I156=\"مرضية\",'ادخال الاجازات'!H156,0)","v":0}]
[{"$f":"IF('ادخال الاجازات'!I157=\"سنوية\",'ادخال الاجازات'!H157,0)","v":0},{"$f":"IF('ادخال الاجازات'!I157=\"عرضية\",'ادخال الاجازات'!H157,0)","v":0},{"$f":"IF('ادخال الاجازات'!I157=\"أبوه\",'ادخال الاجازات'!H157,0)","v":0},{"$f":"IF('ادخال الاجازات'!I157=\"حج\",'ادخال الاجازات'!H157,0)","v":0},{"$f":"IF('ادخال الاجازات'!I157=\"بدون راتب\",'ادخال الاجازات'!H157,0)","v":0},{"$f":"IF('ادخال الاجازات'!I157=\"مرضية\",'ادخال الاجازات'!H157,0)","v":0}]
[{"$f":"IF('ادخال الاجازات'!I158=\"سنوية\",'ادخال الاجازات'!H158,0)","v":0},{"$f":"IF('ادخال الاجازات'!I158=\"عرضية\",'ادخال الاجازات'!H158,0)","v":0},{"$f":"IF('ادخال الاجازات'!I158=\"أبوه\",'ادخال الاجازات'!H158,0)","v":0},{"$f":"IF('ادخال الاجازات'!I158=\"حج\",'ادخال الاجازات'!H158,0)","v":0},{"$f":"IF('ادخال الاجازات'!I158=\"بدون راتب\",'ادخال الاجازات'!H158,0)","v":0},{"$f":"IF('ادخال الاجازات'!I158=\"مرضية\",'ادخال الاجازات'!H158,0)","v":0}]
[{"$f":"IF('ادخال الاجازات'!I159=\"سنوية\",'ادخال الاجازات'!H159,0)","v":0},{"$f":"IF('ادخال الاجازات'!I159=\"عرضية\",'ادخال الاجازات'!H159,0)","v":0},{"$f":"IF('ادخال الاجازات'!I159=\"أبوه\",'ادخال الاجازات'!H159,0)","v":0},{"$f":"IF('ادخال الاجازات'!I159=\"حج\",'ادخال الاجازات'!H159,0)","v":0},{"$f":"IF('ادخال الاجازات'!I159=\"بدون راتب\",'ادخال الاجازات'!H159,0)","v":0},{"$f":"IF('ادخال الاجازات'!I159=\"مرضية\",'ادخال الاجازات'!H159,0)","v":0}]
[{"$f":"IF('ادخال الاجازات'!I160=\"سنوية\",'ادخال الاجازات'!H160,0)","v":0},{"$f":"IF('ادخال الاجازات'!I160=\"عرضية\",'ادخال الاجازات'!H160,0)","v":0},{"$f":"IF('ادخال الاجازات'!I160=\"أبوه\",'ادخال الاجازات'!H160,0)","v":0},{"$f":"IF('ادخال الاجازات'!I160=\"حج\",'ادخال الاجازات'!H160,0)","v":0},{"$f":"IF('ادخال الاجازات'!I160=\"بدون راتب\",'ادخال الاجازات'!H160,0)","v":0},{"$f":"IF('ادخال الاجازات'!I160=\"مرضية\",'ادخال الاجازات'!H160,0)","v":0}]
[{"$f":"IF('ادخال الاجازات'!I161=\"سنوية\",'ادخال الاجازات'!H161,0)","v":0},{"$f":"IF('ادخال الاجازات'!I161=\"عرضية\",'ادخال الاجازات'!H161,0)","v":0},{"$f":"IF('ادخال الاجازات'!I161=\"أبوه\",'ادخال الاجازات'!H161,0)","v":0},{"$f":"IF('ادخال الاجازات'!I161=\"حج\",'ادخال الاجازات'!H161,0)","v":0},{"$f":"IF('ادخال الاجازات'!I161=\"بدون راتب\",'ادخال الاجازات'!H161,0)","v":0},{"$f":"IF('ادخال الاجازات'!I161=\"مرضية\",'ادخال الاجازات'!H161,0)","v":0}]
[{"$f":"IF('ادخال الاجازات'!I162=\"سنوية\",'ادخال الاجازات'!H162,0)","v":0},{"$f":"IF('ادخال الاجازات'!I162=\"عرضية\",'ادخال الاجازات'!H162,0)","v":0},{"$f":"IF('ادخال الاجازات'!I162=\"أبوه\",'ادخال الاجازات'!H162,0)","v":0},{"$f":"IF('ادخال الاجازات'!I162=\"حج\",'ادخال الاجازات'!H162,0)","v":0},{"$f":"IF('ادخال الاجازات'!I162=\"بدون راتب\",'ادخال الاجازات'!H162,0)","v":0},{"$f":"IF('ادخال الاجازات'!I162=\"مرضية\",'ادخال الاجازات'!H162,0)","v":0}]
[{"$f":"IF('ادخال الاجازات'!I163=\"سنوية\",'ادخال الاجازات'!H163,0)","v":0},{"$f":"IF('ادخال الاجازات'!I163=\"عرضية\",'ادخال الاجازات'!H163,0)","v":0},{"$f":"IF('ادخال الاجازات'!I163=\"أبوه\",'ادخال الاجازات'!H163,0)","v":0},{"$f":"IF('ادخال الاجازات'!I163=\"حج\",'ادخال الاجازات'!H163,0)","v":0},{"$f":"IF('ادخال الاجازات'!I163=\"بدون راتب\",'ادخال الاجازات'!H163,0)","v":0},{"$f":"IF('ادخال الاجازات'!I163=\"مرضية\",'ادخال الاجازات'!H163,0)","v":0}]
[{"$f":"IF('ادخال الاجازات'!I164=\"سنوية\",'ادخال الاجازات'!H164,0)","v":0},{"$f":"IF('ادخال الاجازات'!I164=\"عرضية\",'ادخال الاجازات'!H164,0)","v":0},{"$f":"IF('ادخال الاجازات'!I164=\"أبوه\",'ادخال الاجازات'!H164,0)","v":0},{"$f":"IF('ادخال الاجازات'!I164=\"حج\",'ادخال الاجازات'!H164,0)","v":0},{"$f":"IF('ادخال الاجازات'!I164=\"بدون راتب\",'ادخال الاجازات'!H164,0)","v":0},{"$f":"IF('ادخال الاجازات'!I164=\"مرضية\",'ادخال الاجازات'!H164,0)","v":0}]
[{"$f":"IF('ادخال الاجازات'!I165=\"سنوية\",'ادخال الاجازات'!H165,0)","v":0},{"$f":"IF('ادخال الاجازات'!I165=\"عرضية\",'ادخال الاجازات'!H165,0)","v":0},{"$f":"IF('ادخال الاجازات'!I165=\"أبوه\",'ادخال الاجازات'!H165,0)","v":0},{"$f":"IF('ادخال الاجازات'!I165=\"حج\",'ادخال الاجازات'!H165,0)","v":0},{"$f":"IF('ادخال الاجازات'!I165=\"بدون راتب\",'ادخال الاجازات'!H165,0)","v":0},{"$f":"IF('ادخال الاجازات'!I165=\"مرضية\",'ادخال الاجازات'!H165,0)","v":0}]
[{"$f":"IF('ادخال الاجازات'!I166=\"سنوية\",'ادخال الاجازات'!H166,0)","v":0},{"$f":"IF('ادخال الاجازات'!I166=\"عرضية\",'ادخال الاجازات'!H166,0)","v":0},{"$f":"IF('ادخال الاجازات'!I166=\"أبوه\",'ادخال الاجازات'!H166,0)","v":0},{"$f":"IF('ادخال الاجازات'!I166=\"حج\",'ادخال الاجازات'!H166,0)","v":0},{"$f":"IF('ادخال الاجازات'!I166=\"بدون راتب\",'ادخال الاجازات'!H166,0)","v":0},{"$f":"IF('ادخال الاجازات'!I166=\"مرضية\",'ادخال الاجازات'!H166,0)","v":0}]
[{"$f":"IF('ادخال الاجازات'!I167=\"سنوية\",'ادخال الاجازات'!H167,0)","v":0},{"$f":"IF('ادخال الاجازات'!I167=\"عرضية\",'ادخال الاجازات'!H167,0)","v":0},{"$f":"IF('ادخال الاجازات'!I167=\"أبوه\",'ادخال الاجازات'!H167,0)","v":0},{"$f":"IF('ادخال الاجازات'!I167=\"حج\",'ادخال الاجازات'!H167,0)","v":0},{"$f":"IF('ادخال الاجازات'!I167=\"بدون راتب\",'ادخال الاجازات'!H167,0)","v":0},{"$f":"IF('ادخال الاجازات'!I167=\"مرضية\",'ادخال الاجازات'!H167,0)","v":0}]
[{"$f":"IF('ادخال الاجازات'!I168=\"سنوية\",'ادخال الاجازات'!H168,0)","v":0},{"$f":"IF('ادخال الاجازات'!I168=\"عرضية\",'ادخال الاجازات'!H168,0)","v":0},{"$f":"IF('ادخال الاجازات'!I168=\"أبوه\",'ادخال الاجازات'!H168,0)","v":0},{"$f":"IF('ادخال الاجازات'!I168=\"حج\",'ادخال الاجازات'!H168,0)","v":0},{"$f":"IF('ادخال الاجازات'!I168=\"بدون راتب\",'ادخال الاجازات'!H168,0)","v":0},{"$f":"IF('ادخال الاجازات'!I168=\"مرضية\",'ادخال الاجازات'!H168,0)","v":0}]
[{"$f":"IF('ادخال الاجازات'!I169=\"سنوية\",'ادخال الاجازات'!H169,0)","v":0},{"$f":"IF('ادخال الاجازات'!I169=\"عرضية\",'ادخال الاجازات'!H169,0)","v":0},{"$f":"IF('ادخال الاجازات'!I169=\"أبوه\",'ادخال الاجازات'!H169,0)","v":0},{"$f":"IF('ادخال الاجازات'!I169=\"حج\",'ادخال الاجازات'!H169,0)","v":0},{"$f":"IF('ادخال الاجازات'!I169=\"بدون راتب\",'ادخال الاجازات'!H169,0)","v":0},{"$f":"IF('ادخال الاجازات'!I169=\"مرضية\",'ادخال الاجازات'!H169,0)","v":0}]
[{"$f":"IF('ادخال الاجازات'!I170=\"سنوية\",'ادخال الاجازات'!H170,0)","v":0},{"$f":"IF('ادخال الاجازات'!I170=\"عرضية\",'ادخال الاجازات'!H170,0)","v":0},{"$f":"IF('ادخال الاجازات'!I170=\"أبوه\",'ادخال الاجازات'!H170,0)","v":0},{"$f":"IF('ادخال الاجازات'!I170=\"حج\",'ادخال الاجازات'!H170,0)","v":0},{"$f":"IF('ادخال الاجازات'!I170=\"بدون راتب\",'ادخال الاجازات'!H170,0)","v":0},{"$f":"IF('ادخال الاجازات'!I170=\"مرضية\",'ادخال الاجازات'!H170,0)","v":0}]
[{"$f":"IF('ادخال الاجازات'!I171=\"سنوية\",'ادخال الاجازات'!H171,0)","v":0},{"$f":"IF('ادخال الاجازات'!I171=\"عرضية\",'ادخال الاجازات'!H171,0)","v":0},{"$f":"IF('ادخال الاجازات'!I171=\"أبوه\",'ادخال الاجازات'!H171,0)","v":0},{"$f":"IF('ادخال الاجازات'!I171=\"حج\",'ادخال الاجازات'!H171,0)","v":0},{"$f":"IF('ادخال الاجازات'!I171=\"بدون راتب\",'ادخال الاجازات'!H171,0)","v":0},{"$f":"IF('ادخال الاجازات'!I171=\"مرضية\",'ادخال الاجازات'!H171,0)","v":0}]
[{"$f":"IF('ادخال الاجازات'!I172=\"سنوية\",'ادخال الاجازات'!H172,0)","v":0},{"$f":"IF('ادخال الاجازات'!I172=\"عرضية\",'ادخال الاجازات'!H172,0)","v":0},{"$f":"IF('ادخال الاجازات'!I172=\"أبوه\",'ادخال الاجازات'!H172,0)","v":0},{"$f":"IF('ادخال الاجازات'!I172=\"حج\",'ادخال الاجازات'!H172,0)","v":0},{"$f":"IF('ادخال الاجازات'!I172=\"بدون راتب\",'ادخال الاجازات'!H172,0)","v":0},{"$f":"IF('ادخال الاجازات'!I172=\"مرضية\",'ادخال الاجازات'!H172,0)","v":0}]
[{"$f":"IF('ادخال الاجازات'!I173=\"سنوية\",'ادخال الاجازات'!H173,0)","v":0},{"$f":"IF('ادخال الاجازات'!I173=\"عرضية\",'ادخال الاجازات'!H173,0)","v":0},{"$f":"IF('ادخال الاجازات'!I173=\"أبوه\",'ادخال الاجازات'!H173,0)","v":0},{"$f":"IF('ادخال الاجازات'!I173=\"حج\",'ادخال الاجازات'!H173,0)","v":0},{"$f":"IF('ادخال الاجازات'!I173=\"بدون راتب\",'ادخال الاجازات'!H173,0)","v":0},{"$f":"IF('ادخال الاجازات'!I173=\"مرضية\",'ادخال الاجازات'!H173,0)","v":0}]
[{"$f":"IF('ادخال الاجازات'!I174=\"سنوية\",'ادخال الاجازات'!H174,0)","v":0},{"$f":"IF('ادخال الاجازات'!I174=\"عرضية\",'ادخال الاجازات'!H174,0)","v":0},{"$f":"IF('ادخال الاجازات'!I174=\"أبوه\",'ادخال الاجازات'!H174,0)","v":0},{"$f":"IF('ادخال الاجازات'!I174=\"حج\",'ادخال الاجازات'!H174,0)","v":0},{"$f":"IF('ادخال الاجازات'!I174=\"بدون راتب\",'ادخال الاجازات'!H174,0)","v":0},{"$f":"IF('ادخال الاجازات'!I174=\"مرضية\",'ادخال الاجازات'!H174,0)","v":0}]
[{"$f":"IF('ادخال الاجازات'!I175=\"سنوية\",'ادخال الاجازات'!H175,0)","v":0},{"$f":"IF('ادخال الاجازات'!I175=\"عرضية\",'ادخال الاجازات'!H175,0)","v":0},{"$f":"IF('ادخال الاجازات'!I175=\"أبوه\",'ادخال الاجازات'!H175,0)","v":0},{"$f":"IF('ادخال الاجازات'!I175=\"حج\",'ادخال الاجازات'!H175,0)","v":0},{"$f":"IF('ادخال الاجازات'!I175=\"بدون راتب\",'ادخال الاجازات'!H175,0)","v":0},{"$f":"IF('ادخال الاجازات'!I175=\"مرضية\",'ادخال الاجازات'!H175,0)","v":0}]
[{"$f":"IF('ادخال الاجازات'!I176=\"سنوية\",'ادخال الاجازات'!H176,0)","v":0},{"$f":"IF('ادخال الاجازات'!I176=\"عرضية\",'ادخال الاجازات'!H176,0)","v":0},{"$f":"IF('ادخال الاجازات'!I176=\"أبوه\",'ادخال الاجازات'!H176,0)","v":0},{"$f":"IF('ادخال الاجازات'!I176=\"حج\",'ادخال الاجازات'!H176,0)","v":0},{"$f":"IF('ادخال الاجازات'!I176=\"بدون راتب\",'ادخال الاجازات'!H176,0)","v":0},{"$f":"IF('ادخال الاجازات'!I176=\"مرضية\",'ادخال الاجازات'!H176,0)","v":0}]
[{"$f":"IF('ادخال الاجازات'!I177=\"سنوية\",'ادخال الاجازات'!H177,0)","v":0},{"$f":"IF('ادخال الاجازات'!I177=\"عرضية\",'ادخال الاجازات'!H177,0)","v":0},{"$f":"IF('ادخال الاجازات'!I177=\"أبوه\",'ادخال الاجازات'!H177,0)","v":0},{"$f":"IF('ادخال الاجازات'!I177=\"حج\",'ادخال الاجازات'!H177,0)","v":0},{"$f":"IF('ادخال الاجازات'!I177=\"بدون راتب\",'ادخال الاجازات'!H177,0)","v":0},{"$f":"IF('ادخال الاجازات'!I177=\"مرضية\",'ادخال الاجازات'!H177,0)","v":0}]
[{"$f":"IF('ادخال الاجازات'!I178=\"سنوية\",'ادخال الاجازات'!H178,0)","v":0},{"$f":"IF('ادخال الاجازات'!I178=\"عرضية\",'ادخال الاجازات'!H178,0)","v":0},{"$f":"IF('ادخال الاجازات'!I178=\"أبوه\",'ادخال الاجازات'!H178,0)","v":0},{"$f":"IF('ادخال الاجازات'!I178=\"حج\",'ادخال الاجازات'!H178,0)","v":0},{"$f":"IF('ادخال الاجازات'!I178=\"بدون راتب\",'ادخال الاجازات'!H178,0)","v":0},{"$f":"IF('ادخال الاجازات'!I178=\"مرضية\",'ادخال الاجازات'!H178,0)","v":0}]
[{"$f":"IF('ادخال الاجازات'!I179=\"سنوية\",'ادخال الاجازات'!H179,0)","v":0},{"$f":"IF('ادخال الاجازات'!I179=\"عرضية\",'ادخال الاجازات'!H179,0)","v":0},{"$f":"IF('ادخال الاجازات'!I179=\"أبوه\",'ادخال الاجازات'!H179,0)","v":0},{"$f":"IF('ادخال الاجازات'!I179=\"حج\",'ادخال الاجازات'!H179,0)","v":0},{"$f":"IF('ادخال الاجازات'!I179=\"بدون راتب\",'ادخال الاجازات'!H179,0)","v":0},{"$f":"IF('ادخال الاجازات'!I179=\"مرضية\",'ادخال الاجازات'!H179,0)","v":0}]
[{"$f":"IF('ادخال الاجازات'!I180=\"سنوية\",'ادخال الاجازات'!H180,0)","v":0},{"$f":"IF('ادخال الاجازات'!I180=\"عرضية\",'ادخال الاجازات'!H180,0)","v":0},{"$f":"IF('ادخال الاجازات'!I180=\"أبوه\",'ادخال الاجازات'!H180,0)","v":0},{"$f":"IF('ادخال الاجازات'!I180=\"حج\",'ادخال الاجازات'!H180,0)","v":0},{"$f":"IF('ادخال الاجازات'!I180=\"بدون راتب\",'ادخال الاجازات'!H180,0)","v":0},{"$f":"IF('ادخال الاجازات'!I180=\"مرضية\",'ادخال الاجازات'!H180,0)","v":0}]
[{"$f":"IF('ادخال الاجازات'!I181=\"سنوية\",'ادخال الاجازات'!H181,0)","v":0},{"$f":"IF('ادخال الاجازات'!I181=\"عرضية\",'ادخال الاجازات'!H181,0)","v":0},{"$f":"IF('ادخال الاجازات'!I181=\"أبوه\",'ادخال الاجازات'!H181,0)","v":0},{"$f":"IF('ادخال الاجازات'!I181=\"حج\",'ادخال الاجازات'!H181,0)","v":0},{"$f":"IF('ادخال الاجازات'!I181=\"بدون راتب\",'ادخال الاجازات'!H181,0)","v":0},{"$f":"IF('ادخال الاجازات'!I181=\"مرضية\",'ادخال الاجازات'!H181,0)","v":0}]
[{"$f":"IF('ادخال الاجازات'!I182=\"سنوية\",'ادخال الاجازات'!H182,0)","v":0},{"$f":"IF('ادخال الاجازات'!I182=\"عرضية\",'ادخال الاجازات'!H182,0)","v":0},{"$f":"IF('ادخال الاجازات'!I182=\"أبوه\",'ادخال الاجازات'!H182,0)","v":0},{"$f":"IF('ادخال الاجازات'!I182=\"حج\",'ادخال الاجازات'!H182,0)","v":0},{"$f":"IF('ادخال الاجازات'!I182=\"بدون راتب\",'ادخال الاجازات'!H182,0)","v":0},{"$f":"IF('ادخال الاجازات'!I182=\"مرضية\",'ادخال الاجازات'!H182,0)","v":0}]
[{"$f":"IF('ادخال الاجازات'!I183=\"سنوية\",'ادخال الاجازات'!H183,0)","v":0},{"$f":"IF('ادخال الاجازات'!I183=\"عرضية\",'ادخال الاجازات'!H183,0)","v":0},{"$f":"IF('ادخال الاجازات'!I183=\"أبوه\",'ادخال الاجازات'!H183,0)","v":0},{"$f":"IF('ادخال الاجازات'!I183=\"حج\",'ادخال الاجازات'!H183,0)","v":0},{"$f":"IF('ادخال الاجازات'!I183=\"بدون راتب\",'ادخال الاجازات'!H183,0)","v":0},{"$f":"IF('ادخال الاجازات'!I183=\"مرضية\",'ادخال الاجازات'!H183,0)","v":0}]
[{"$f":"IF('ادخال الاجازات'!I184=\"سنوية\",'ادخال الاجازات'!H184,0)","v":0},{"$f":"IF('ادخال الاجازات'!I184=\"عرضية\",'ادخال الاجازات'!H184,0)","v":0},{"$f":"IF('ادخال الاجازات'!I184=\"أبوه\",'ادخال الاجازات'!H184,0)","v":0},{"$f":"IF('ادخال الاجازات'!I184=\"حج\",'ادخال الاجازات'!H184,0)","v":0},{"$f":"IF('ادخال الاجازات'!I184=\"بدون راتب\",'ادخال الاجازات'!H184,0)","v":0},{"$f":"IF('ادخال الاجازات'!I184=\"مرضية\",'ادخال الاجازات'!H184,0)","v":0}]
[{"$f":"IF('ادخال الاجازات'!I185=\"سنوية\",'ادخال الاجازات'!H185,0)","v":0},{"$f":"IF('ادخال الاجازات'!I185=\"عرضية\",'ادخال الاجازات'!H185,0)","v":0},{"$f":"IF('ادخال الاجازات'!I185=\"أبوه\",'ادخال الاجازات'!H185,0)","v":0},{"$f":"IF('ادخال الاجازات'!I185=\"حج\",'ادخال الاجازات'!H185,0)","v":0},{"$f":"IF('ادخال الاجازات'!I185=\"بدون راتب\",'ادخال الاجازات'!H185,0)","v":0},{"$f":"IF('ادخال الاجازات'!I185=\"مرضية\",'ادخال الاجازات'!H185,0)","v":0}]
[{"$f":"IF('ادخال الاجازات'!I186=\"سنوية\",'ادخال الاجازات'!H186,0)","v":0},{"$f":"IF('ادخال الاجازات'!I186=\"عرضية\",'ادخال الاجازات'!H186,0)","v":0},{"$f":"IF('ادخال الاجازات'!I186=\"أبوه\",'ادخال الاجازات'!H186,0)","v":0},{"$f":"IF('ادخال الاجازات'!I186=\"حج\",'ادخال الاجازات'!H186,0)","v":0},{"$f":"IF('ادخال الاجازات'!I186=\"بدون راتب\",'ادخال الاجازات'!H186,0)","v":0},{"$f":"IF('ادخال الاجازات'!I186=\"مرضية\",'ادخال الاجازات'!H186,0)","v":0}]
[{"$f":"IF('ادخال الاجازات'!I187=\"سنوية\",'ادخال الاجازات'!H187,0)","v":0},{"$f":"IF('ادخال الاجازات'!I187=\"عرضية\",'ادخال الاجازات'!H187,0)","v":0},{"$f":"IF('ادخال الاجازات'!I187=\"أبوه\",'ادخال الاجازات'!H187,0)","v":0},{"$f":"IF('ادخال الاجازات'!I187=\"حج\",'ادخال الاجازات'!H187,0)","v":0},{"$f":"IF('ادخال الاجازات'!I187=\"بدون راتب\",'ادخال الاجازات'!H187,0)","v":0},{"$f":"IF('ادخال الاجازات'!I187=\"مرضية\",'ادخال الاجازات'!H187,0)","v":0}]
[{"$f":"IF('ادخال الاجازات'!I188=\"سنوية\",'ادخال الاجازات'!H188,0)","v":0},{"$f":"IF('ادخال الاجازات'!I188=\"عرضية\",'ادخال الاجازات'!H188,0)","v":0},{"$f":"IF('ادخال الاجازات'!I188=\"أبوه\",'ادخال الاجازات'!H188,0)","v":0},{"$f":"IF('ادخال الاجازات'!I188=\"حج\",'ادخال الاجازات'!H188,0)","v":0},{"$f":"IF('ادخال الاجازات'!I188=\"بدون راتب\",'ادخال الاجازات'!H188,0)","v":0},{"$f":"IF('ادخال الاجازات'!I188=\"مرضية\",'ادخال الاجازات'!H188,0)","v":0}]
[{"$f":"IF('ادخال الاجازات'!I189=\"سنوية\",'ادخال الاجازات'!H189,0)","v":0},{"$f":"IF('ادخال الاجازات'!I189=\"عرضية\",'ادخال الاجازات'!H189,0)","v":0},{"$f":"IF('ادخال الاجازات'!I189=\"أبوه\",'ادخال الاجازات'!H189,0)","v":0},{"$f":"IF('ادخال الاجازات'!I189=\"حج\",'ادخال الاجازات'!H189,0)","v":0},{"$f":"IF('ادخال الاجازات'!I189=\"بدون راتب\",'ادخال الاجازات'!H189,0)","v":0},{"$f":"IF('ادخال الاجازات'!I189=\"مرضية\",'ادخال الاجازات'!H189,0)","v":0}]
[{"$f":"IF('ادخال الاجازات'!I190=\"سنوية\",'ادخال الاجازات'!H190,0)","v":0},{"$f":"IF('ادخال الاجازات'!I190=\"عرضية\",'ادخال الاجازات'!H190,0)","v":0},{"$f":"IF('ادخال الاجازات'!I190=\"أبوه\",'ادخال الاجازات'!H190,0)","v":0},{"$f":"IF('ادخال الاجازات'!I190=\"حج\",'ادخال الاجازات'!H190,0)","v":0},{"$f":"IF('ادخال الاجازات'!I190=\"بدون راتب\",'ادخال الاجازات'!H190,0)","v":0},{"$f":"IF('ادخال الاجازات'!I190=\"مرضية\",'ادخال الاجازات'!H190,0)","v":0}]
[{"$f":"IF('ادخال الاجازات'!I191=\"سنوية\",'ادخال الاجازات'!H191,0)","v":0},{"$f":"IF('ادخال الاجازات'!I191=\"عرضية\",'ادخال الاجازات'!H191,0)","v":0},{"$f":"IF('ادخال الاجازات'!I191=\"أبوه\",'ادخال الاجازات'!H191,0)","v":0},{"$f":"IF('ادخال الاجازات'!I191=\"حج\",'ادخال الاجازات'!H191,0)","v":0},{"$f":"IF('ادخال الاجازات'!I191=\"بدون راتب\",'ادخال الاجازات'!H191,0)","v":0},{"$f":"IF('ادخال الاجازات'!I191=\"مرضية\",'ادخال الاجازات'!H191,0)","v":0}]
[{"$f":"IF('ادخال الاجازات'!I192=\"سنوية\",'ادخال الاجازات'!H192,0)","v":0},{"$f":"IF('ادخال الاجازات'!I192=\"عرضية\",'ادخال الاجازات'!H192,0)","v":0},{"$f":"IF('ادخال الاجازات'!I192=\"أبوه\",'ادخال الاجازات'!H192,0)","v":0},{"$f":"IF('ادخال الاجازات'!I192=\"حج\",'ادخال الاجازات'!H192,0)","v":0},{"$f":"IF('ادخال الاجازات'!I192=\"بدون راتب\",'ادخال الاجازات'!H192,0)","v":0},{"$f":"IF('ادخال الاجازات'!I192=\"مرضية\",'ادخال الاجازات'!H192,0)","v":0}]
[{"$f":"IF('ادخال الاجازات'!I193=\"سنوية\",'ادخال الاجازات'!H193,0)","v":0},{"$f":"IF('ادخال الاجازات'!I193=\"عرضية\",'ادخال الاجازات'!H193,0)","v":0},{"$f":"IF('ادخال الاجازات'!I193=\"أبوه\",'ادخال الاجازات'!H193,0)","v":0},{"$f":"IF('ادخال الاجازات'!I193=\"حج\",'ادخال الاجازات'!H193,0)","v":0},{"$f":"IF('ادخال الاجازات'!I193=\"بدون راتب\",'ادخال الاجازات'!H193,0)","v":0},{"$f":"IF('ادخال الاجازات'!I193=\"مرضية\",'ادخال الاجازات'!H193,0)","v":0}]
[{"$f":"IF('ادخال الاجازات'!I194=\"سنوية\",'ادخال الاجازات'!H194,0)","v":0},{"$f":"IF('ادخال الاجازات'!I194=\"عرضية\",'ادخال الاجازات'!H194,0)","v":0},{"$f":"IF('ادخال الاجازات'!I194=\"أبوه\",'ادخال الاجازات'!H194,0)","v":0},{"$f":"IF('ادخال الاجازات'!I194=\"حج\",'ادخال الاجازات'!H194,0)","v":0},{"$f":"IF('ادخال الاجازات'!I194=\"بدون راتب\",'ادخال الاجازات'!H194,0)","v":0},{"$f":"IF('ادخال الاجازات'!I194=\"مرضية\",'ادخال الاجازات'!H194,0)","v":0}]
[{"$f":"IF('ادخال الاجازات'!I195=\"سنوية\",'ادخال الاجازات'!H195,0)","v":0},{"$f":"IF('ادخال الاجازات'!I195=\"عرضية\",'ادخال الاجازات'!H195,0)","v":0},{"$f":"IF('ادخال الاجازات'!I195=\"أبوه\",'ادخال الاجازات'!H195,0)","v":0},{"$f":"IF('ادخال الاجازات'!I195=\"حج\",'ادخال الاجازات'!H195,0)","v":0},{"$f":"IF('ادخال الاجازات'!I195=\"بدون راتب\",'ادخال الاجازات'!H195,0)","v":0},{"$f":"IF('ادخال الاجازات'!I195=\"مرضية\",'ادخال الاجازات'!H195,0)","v":0}]
[{"$f":"IF('ادخال الاجازات'!I196=\"سنوية\",'ادخال الاجازات'!H196,0)","v":0},{"$f":"IF('ادخال الاجازات'!I196=\"عرضية\",'ادخال الاجازات'!H196,0)","v":0},{"$f":"IF('ادخال الاجازات'!I196=\"أبوه\",'ادخال الاجازات'!H196,0)","v":0},{"$f":"IF('ادخال الاجازات'!I196=\"حج\",'ادخال الاجازات'!H196,0)","v":0},{"$f":"IF('ادخال الاجازات'!I196=\"بدون راتب\",'ادخال الاجازات'!H196,0)","v":0},{"$f":"IF('ادخال الاجازات'!I196=\"مرضية\",'ادخال الاجازات'!H196,0)","v":0}]
[{"$f":"IF('ادخال الاجازات'!I197=\"سنوية\",'ادخال الاجازات'!H197,0)","v":0},{"$f":"IF('ادخال الاجازات'!I197=\"عرضية\",'ادخال الاجازات'!H197,0)","v":0},{"$f":"IF('ادخال الاجازات'!I197=\"أبوه\",'ادخال الاجازات'!H197,0)","v":0},{"$f":"IF('ادخال الاجازات'!I197=\"حج\",'ادخال الاجازات'!H197,0)","v":0},{"$f":"IF('ادخال الاجازات'!I197=\"بدون راتب\",'ادخال الاجازات'!H197,0)","v":0},{"$f":"IF('ادخال الاجازات'!I197=\"مرضية\",'ادخال الاجازات'!H197,0)","v":0}]
[{"$f":"IF('ادخال الاجازات'!I198=\"سنوية\",'ادخال الاجازات'!H198,0)","v":0},{"$f":"IF('ادخال الاجازات'!I198=\"عرضية\",'ادخال الاجازات'!H198,0)","v":0},{"$f":"IF('ادخال الاجازات'!I198=\"أبوه\",'ادخال الاجازات'!H198,0)","v":0},{"$f":"IF('ادخال الاجازات'!I198=\"حج\",'ادخال الاجازات'!H198,0)","v":0},{"$f":"IF('ادخال الاجازات'!I198=\"بدون راتب\",'ادخال الاجازات'!H198,0)","v":0},{"$f":"IF('ادخال الاجازات'!I198=\"مرضية\",'ادخال الاجازات'!H198,0)","v":0}]
[{"$f":"IF('ادخال الاجازات'!I199=\"سنوية\",'ادخال الاجازات'!H199,0)","v":0},{"$f":"IF('ادخال الاجازات'!I199=\"عرضية\",'ادخال الاجازات'!H199,0)","v":0},{"$f":"IF('ادخال الاجازات'!I199=\"أبوه\",'ادخال الاجازات'!H199,0)","v":0},{"$f":"IF('ادخال الاجازات'!I199=\"حج\",'ادخال الاجازات'!H199,0)","v":0},{"$f":"IF('ادخال الاجازات'!I199=\"بدون راتب\",'ادخال الاجازات'!H199,0)","v":0},{"$f":"IF('ادخال الاجازات'!I199=\"مرضية\",'ادخال الاجازات'!H199,0)","v":0}]
[{"$f":"IF('ادخال الاجازات'!I200=\"سنوية\",'ادخال الاجازات'!H200,0)","v":0},{"$f":"IF('ادخال الاجازات'!I200=\"عرضية\",'ادخال الاجازات'!H200,0)","v":0},{"$f":"IF('ادخال الاجازات'!I200=\"أبوه\",'ادخال الاجازات'!H200,0)","v":0},{"$f":"IF('ادخال الاجازات'!I200=\"حج\",'ادخال الاجازات'!H200,0)","v":0},{"$f":"IF('ادخال الاجازات'!I200=\"بدون راتب\",'ادخال الاجازات'!H200,0)","v":0},{"$f":"IF('ادخال الاجازات'!I200=\"مرضية\",'ادخال الاجازات'!H200,0)","v":0}]
[{"$f":"IF('ادخال الاجازات'!I201=\"سنوية\",'ادخال الاجازات'!H201,0)","v":0},{"$f":"IF('ادخال الاجازات'!I201=\"عرضية\",'ادخال الاجازات'!H201,0)","v":0},{"$f":"IF('ادخال الاجازات'!I201=\"أبوه\",'ادخال الاجازات'!H201,0)","v":0},{"$f":"IF('ادخال الاجازات'!I201=\"حج\",'ادخال الاجازات'!H201,0)","v":0},{"$f":"IF('ادخال الاجازات'!I201=\"بدون راتب\",'ادخال الاجازات'!H201,0)","v":0},{"$f":"IF('ادخال الاجازات'!I201=\"مرضية\",'ادخال الاجازات'!H201,0)","v":0}]
[{"$f":"IF('ادخال الاجازات'!I202=\"سنوية\",'ادخال الاجازات'!H202,0)","v":0},{"$f":"IF('ادخال الاجازات'!I202=\"عرضية\",'ادخال الاجازات'!H202,0)","v":0},{"$f":"IF('ادخال الاجازات'!I202=\"أبوه\",'ادخال الاجازات'!H202,0)","v":0},{"$f":"IF('ادخال الاجازات'!I202=\"حج\",'ادخال الاجازات'!H202,0)","v":0},{"$f":"IF('ادخال الاجازات'!I202=\"بدون راتب\",'ادخال الاجازات'!H202,0)","v":0},{"$f":"IF('ادخال الاجازات'!I202=\"مرضية\",'ادخال الاجازات'!H202,0)","v":0}]
[{"$f":"IF('ادخال الاجازات'!I203=\"سنوية\",'ادخال الاجازات'!H203,0)","v":0},{"$f":"IF('ادخال الاجازات'!I203=\"عرضية\",'ادخال الاجازات'!H203,0)","v":0},{"$f":"IF('ادخال الاجازات'!I203=\"أبوه\",'ادخال الاجازات'!H203,0)","v":0},{"$f":"IF('ادخال الاجازات'!I203=\"حج\",'ادخال الاجازات'!H203,0)","v":0},{"$f":"IF('ادخال الاجازات'!I203=\"بدون راتب\",'ادخال الاجازات'!H203,0)","v":0},{"$f":"IF('ادخال الاجازات'!I203=\"مرضية\",'ادخال الاجازات'!H203,0)","v":0}]
[{"$f":"IF('ادخال الاجازات'!I204=\"سنوية\",'ادخال الاجازات'!H204,0)","v":0},{"$f":"IF('ادخال الاجازات'!I204=\"عرضية\",'ادخال الاجازات'!H204,0)","v":0},{"$f":"IF('ادخال الاجازات'!I204=\"أبوه\",'ادخال الاجازات'!H204,0)","v":0},{"$f":"IF('ادخال الاجازات'!I204=\"حج\",'ادخال الاجازات'!H204,0)","v":0},{"$f":"IF('ادخال الاجازات'!I204=\"بدون راتب\",'ادخال الاجازات'!H204,0)","v":0},{"$f":"IF('ادخال الاجازات'!I204=\"مرضية\",'ادخال الاجازات'!H204,0)","v":0}]
[{"$f":"IF('ادخال الاجازات'!I205=\"سنوية\",'ادخال الاجازات'!H205,0)","v":0},{"$f":"IF('ادخال الاجازات'!I205=\"عرضية\",'ادخال الاجازات'!H205,0)","v":0},{"$f":"IF('ادخال الاجازات'!I205=\"أبوه\",'ادخال الاجازات'!H205,0)","v":0},{"$f":"IF('ادخال الاجازات'!I205=\"حج\",'ادخال الاجازات'!H205,0)","v":0},{"$f":"IF('ادخال الاجازات'!I205=\"بدون راتب\",'ادخال الاجازات'!H205,0)","v":0},{"$f":"IF('ادخال الاجازات'!I205=\"مرضية\",'ادخال الاجازات'!H205,0)","v":0}]
[{"$f":"IF('ادخال الاجازات'!I206=\"سنوية\",'ادخال الاجازات'!H206,0)","v":0},{"$f":"IF('ادخال الاجازات'!I206=\"عرضية\",'ادخال الاجازات'!H206,0)","v":0},{"$f":"IF('ادخال الاجازات'!I206=\"أبوه\",'ادخال الاجازات'!H206,0)","v":0},{"$f":"IF('ادخال الاجازات'!I206=\"حج\",'ادخال الاجازات'!H206,0)","v":0},{"$f":"IF('ادخال الاجازات'!I206=\"بدون راتب\",'ادخال الاجازات'!H206,0)","v":0},{"$f":"IF('ادخال الاجازات'!I206=\"مرضية\",'ادخال الاجازات'!H206,0)","v":0}]
[{"$f":"IF('ادخال الاجازات'!I207=\"سنوية\",'ادخال الاجازات'!H207,0)","v":0},{"$f":"IF('ادخال الاجازات'!I207=\"عرضية\",'ادخال الاجازات'!H207,0)","v":0},{"$f":"IF('ادخال الاجازات'!I207=\"أبوه\",'ادخال الاجازات'!H207,0)","v":0},{"$f":"IF('ادخال الاجازات'!I207=\"حج\",'ادخال الاجازات'!H207,0)","v":0},{"$f":"IF('ادخال الاجازات'!I207=\"بدون راتب\",'ادخال الاجازات'!H207,0)","v":0},{"$f":"IF('ادخال الاجازات'!I207=\"مرضية\",'ادخال الاجازات'!H207,0)","v":0}]
[{"$f":"IF('ادخال الاجازات'!I208=\"سنوية\",'ادخال الاجازات'!H208,0)","v":0},{"$f":"IF('ادخال الاجازات'!I208=\"عرضية\",'ادخال الاجازات'!H208,0)","v":0},{"$f":"IF('ادخال الاجازات'!I208=\"أبوه\",'ادخال الاجازات'!H208,0)","v":0},{"$f":"IF('ادخال الاجازات'!I208=\"حج\",'ادخال الاجازات'!H208,0)","v":0},{"$f":"IF('ادخال الاجازات'!I208=\"بدون راتب\",'ادخال الاجازات'!H208,0)","v":0},{"$f":"IF('ادخال الاجازات'!I208=\"مرضية\",'ادخال الاجازات'!H208,0)","v":0}]
[{"$f":"IF('ادخال الاجازات'!I209=\"سنوية\",'ادخال الاجازات'!H209,0)","v":0},{"$f":"IF('ادخال الاجازات'!I209=\"عرضية\",'ادخال الاجازات'!H209,0)","v":0},{"$f":"IF('ادخال الاجازات'!I209=\"أبوه\",'ادخال الاجازات'!H209,0)","v":0},{"$f":"IF('ادخال الاجازات'!I209=\"حج\",'ادخال الاجازات'!H209,0)","v":0},{"$f":"IF('ادخال الاجازات'!I209=\"بدون راتب\",'ادخال الاجازات'!H209,0)","v":0},{"$f":"IF('ادخال الاجازات'!I209=\"مرضية\",'ادخال الاجازات'!H209,0)","v":0}]
[{"$f":"IF('ادخال الاجازات'!I210=\"سنوية\",'ادخال الاجازات'!H210,0)","v":0},{"$f":"IF('ادخال الاجازات'!I210=\"عرضية\",'ادخال الاجازات'!H210,0)","v":0},{"$f":"IF('ادخال الاجازات'!I210=\"أبوه\",'ادخال الاجازات'!H210,0)","v":0},{"$f":"IF('ادخال الاجازات'!I210=\"حج\",'ادخال الاجازات'!H210,0)","v":0},{"$f":"IF('ادخال الاجازات'!I210=\"بدون راتب\",'ادخال الاجازات'!H210,0)","v":0},{"$f":"IF('ادخال الاجازات'!I210=\"مرضية\",'ادخال الاجازات'!H210,0)","v":0}]
[{"$f":"IF('ادخال الاجازات'!I211=\"سنوية\",'ادخال الاجازات'!H211,0)","v":0},{"$f":"IF('ادخال الاجازات'!I211=\"عرضية\",'ادخال الاجازات'!H211,0)","v":0},{"$f":"IF('ادخال الاجازات'!I211=\"أبوه\",'ادخال الاجازات'!H211,0)","v":0},{"$f":"IF('ادخال الاجازات'!I211=\"حج\",'ادخال الاجازات'!H211,0)","v":0},{"$f":"IF('ادخال الاجازات'!I211=\"بدون راتب\",'ادخال الاجازات'!H211,0)","v":0},{"$f":"IF('ادخال الاجازات'!I211=\"مرضية\",'ادخال الاجازات'!H211,0)","v":0}]
[{"$f":"IF('ادخال الاجازات'!I212=\"سنوية\",'ادخال الاجازات'!H212,0)","v":0},{"$f":"IF('ادخال الاجازات'!I212=\"عرضية\",'ادخال الاجازات'!H212,0)","v":0},{"$f":"IF('ادخال الاجازات'!I212=\"أبوه\",'ادخال الاجازات'!H212,0)","v":0},{"$f":"IF('ادخال الاجازات'!I212=\"حج\",'ادخال الاجازات'!H212,0)","v":0},{"$f":"IF('ادخال الاجازات'!I212=\"بدون راتب\",'ادخال الاجازات'!H212,0)","v":0},{"$f":"IF('ادخال الاجازات'!I212=\"مرضية\",'ادخال الاجازات'!H212,0)","v":0}]
[{"$f":"IF('ادخال الاجازات'!I213=\"سنوية\",'ادخال الاجازات'!H213,0)","v":0},{"$f":"IF('ادخال الاجازات'!I213=\"عرضية\",'ادخال الاجازات'!H213,0)","v":0},{"$f":"IF('ادخال الاجازات'!I213=\"أبوه\",'ادخال الاجازات'!H213,0)","v":0},{"$f":"IF('ادخال الاجازات'!I213=\"حج\",'ادخال الاجازات'!H213,0)","v":0},{"$f":"IF('ادخال الاجازات'!I213=\"بدون راتب\",'ادخال الاجازات'!H213,0)","v":0},{"$f":"IF('ادخال الاجازات'!I213=\"مرضية\",'ادخال الاجازات'!H213,0)","v":0}]
[{"$f":"IF('ادخال الاجازات'!I214=\"سنوية\",'ادخال الاجازات'!H214,0)","v":0},{"$f":"IF('ادخال الاجازات'!I214=\"عرضية\",'ادخال الاجازات'!H214,0)","v":0},{"$f":"IF('ادخال الاجازات'!I214=\"أبوه\",'ادخال الاجازات'!H214,0)","v":0},{"$f":"IF('ادخال الاجازات'!I214=\"حج\",'ادخال الاجازات'!H214,0)","v":0},{"$f":"IF('ادخال الاجازات'!I214=\"بدون راتب\",'ادخال الاجازات'!H214,0)","v":0},{"$f":"IF('ادخال الاجازات'!I214=\"مرضية\",'ادخال الاجازات'!H214,0)","v":0}]
[{"$f":"IF('ادخال الاجازات'!I215=\"سنوية\",'ادخال الاجازات'!H215,0)","v":0},{"$f":"IF('ادخال الاجازات'!I215=\"عرضية\",'ادخال الاجازات'!H215,0)","v":0},{"$f":"IF('ادخال الاجازات'!I215=\"أبوه\",'ادخال الاجازات'!H215,0)","v":0},{"$f":"IF('ادخال الاجازات'!I215=\"حج\",'ادخال الاجازات'!H215,0)","v":0},{"$f":"IF('ادخال الاجازات'!I215=\"بدون راتب\",'ادخال الاجازات'!H215,0)","v":0},{"$f":"IF('ادخال الاجازات'!I215=\"مرضية\",'ادخال الاجازات'!H215,0)","v":0}]
[{"$f":"IF('ادخال الاجازات'!I216=\"سنوية\",'ادخال الاجازات'!H216,0)","v":0},{"$f":"IF('ادخال الاجازات'!I216=\"عرضية\",'ادخال الاجازات'!H216,0)","v":0},{"$f":"IF('ادخال الاجازات'!I216=\"أبوه\",'ادخال الاجازات'!H216,0)","v":0},{"$f":"IF('ادخال الاجازات'!I216=\"حج\",'ادخال الاجازات'!H216,0)","v":0},{"$f":"IF('ادخال الاجازات'!I216=\"بدون راتب\",'ادخال الاجازات'!H216,0)","v":0},{"$f":"IF('ادخال الاجازات'!I216=\"مرضية\",'ادخال الاجازات'!H216,0)","v":0}]
[{"$f":"IF('ادخال الاجازات'!I217=\"سنوية\",'ادخال الاجازات'!H217,0)","v":0},{"$f":"IF('ادخال الاجازات'!I217=\"عرضية\",'ادخال الاجازات'!H217,0)","v":0},{"$f":"IF('ادخال الاجازات'!I217=\"أبوه\",'ادخال الاجازات'!H217,0)","v":0},{"$f":"IF('ادخال الاجازات'!I217=\"حج\",'ادخال الاجازات'!H217,0)","v":0},{"$f":"IF('ادخال الاجازات'!I217=\"بدون راتب\",'ادخال الاجازات'!H217,0)","v":0},{"$f":"IF('ادخال الاجازات'!I217=\"مرضية\",'ادخال الاجازات'!H217,0)","v":0}]
[{"$f":"IF('ادخال الاجازات'!I218=\"سنوية\",'ادخال الاجازات'!H218,0)","v":0},{"$f":"IF('ادخال الاجازات'!I218=\"عرضية\",'ادخال الاجازات'!H218,0)","v":0},{"$f":"IF('ادخال الاجازات'!I218=\"أبوه\",'ادخال الاجازات'!H218,0)","v":0},{"$f":"IF('ادخال الاجازات'!I218=\"حج\",'ادخال الاجازات'!H218,0)","v":0},{"$f":"IF('ادخال الاجازات'!I218=\"بدون راتب\",'ادخال الاجازات'!H218,0)","v":0},{"$f":"IF('ادخال الاجازات'!I218=\"مرضية\",'ادخال الاجازات'!H218,0)","v":0}]
[{"$f":"IF('ادخال الاجازات'!I219=\"سنوية\",'ادخال الاجازات'!H219,0)","v":0},{"$f":"IF('ادخال الاجازات'!I219=\"عرضية\",'ادخال الاجازات'!H219,0)","v":0},{"$f":"IF('ادخال الاجازات'!I219=\"أبوه\",'ادخال الاجازات'!H219,0)","v":0},{"$f":"IF('ادخال الاجازات'!I219=\"حج\",'ادخال الاجازات'!H219,0)","v":0},{"$f":"IF('ادخال الاجازات'!I219=\"بدون راتب\",'ادخال الاجازات'!H219,0)","v":0},{"$f":"IF('ادخال الاجازات'!I219=\"مرضية\",'ادخال الاجازات'!H219,0)","v":0}]
[{"$f":"IF('ادخال الاجازات'!I220=\"سنوية\",'ادخال الاجازات'!H220,0)","v":0},{"$f":"IF('ادخال الاجازات'!I220=\"عرضية\",'ادخال الاجازات'!H220,0)","v":0},{"$f":"IF('ادخال الاجازات'!I220=\"أبوه\",'ادخال الاجازات'!H220,0)","v":0},{"$f":"IF('ادخال الاجازات'!I220=\"حج\",'ادخال الاجازات'!H220,0)","v":0},{"$f":"IF('ادخال الاجازات'!I220=\"بدون راتب\",'ادخال الاجازات'!H220,0)","v":0},{"$f":"IF('ادخال الاجازات'!I220=\"مرضية\",'ادخال الاجازات'!H220,0)","v":0}]
[{"$f":"IF('ادخال الاجازات'!I221=\"سنوية\",'ادخال الاجازات'!H221,0)","v":0},{"$f":"IF('ادخال الاجازات'!I221=\"عرضية\",'ادخال الاجازات'!H221,0)","v":0},{"$f":"IF('ادخال الاجازات'!I221=\"أبوه\",'ادخال الاجازات'!H221,0)","v":0},{"$f":"IF('ادخال الاجازات'!I221=\"حج\",'ادخال الاجازات'!H221,0)","v":0},{"$f":"IF('ادخال الاجازات'!I221=\"بدون راتب\",'ادخال الاجازات'!H221,0)","v":0},{"$f":"IF('ادخال الاجازات'!I221=\"مرضية\",'ادخال الاجازات'!H221,0)","v":0}]
[{"$f":"IF('ادخال الاجازات'!I222=\"سنوية\",'ادخال الاجازات'!H222,0)","v":0},{"$f":"IF('ادخال الاجازات'!I222=\"عرضية\",'ادخال الاجازات'!H222,0)","v":0},{"$f":"IF('ادخال الاجازات'!I222=\"أبوه\",'ادخال الاجازات'!H222,0)","v":0},{"$f":"IF('ادخال الاجازات'!I222=\"حج\",'ادخال الاجازات'!H222,0)","v":0},{"$f":"IF('ادخال الاجازات'!I222=\"بدون راتب\",'ادخال الاجازات'!H222,0)","v":0},{"$f":"IF('ادخال الاجازات'!I222=\"مرضية\",'ادخال الاجازات'!H222,0)","v":0}]
[{"$f":"IF('ادخال الاجازات'!I223=\"سنوية\",'ادخال الاجازات'!H223,0)","v":0},{"$f":"IF('ادخال الاجازات'!I223=\"عرضية\",'ادخال الاجازات'!H223,0)","v":0},{"$f":"IF('ادخال الاجازات'!I223=\"أبوه\",'ادخال الاجازات'!H223,0)","v":0},{"$f":"IF('ادخال الاجازات'!I223=\"حج\",'ادخال الاجازات'!H223,0)","v":0},{"$f":"IF('ادخال الاجازات'!I223=\"بدون راتب\",'ادخال الاجازات'!H223,0)","v":0},{"$f":"IF('ادخال الاجازات'!I223=\"مرضية\",'ادخال الاجازات'!H223,0)","v":0}]
[{"$f":"IF('ادخال الاجازات'!I224=\"سنوية\",'ادخال الاجازات'!H224,0)","v":0},{"$f":"IF('ادخال الاجازات'!I224=\"عرضية\",'ادخال الاجازات'!H224,0)","v":0},{"$f":"IF('ادخال الاجازات'!I224=\"أبوه\",'ادخال الاجازات'!H224,0)","v":0},{"$f":"IF('ادخال الاجازات'!I224=\"حج\",'ادخال الاجازات'!H224,0)","v":0},{"$f":"IF('ادخال الاجازات'!I224=\"بدون راتب\",'ادخال الاجازات'!H224,0)","v":0},{"$f":"IF('ادخال الاجازات'!I224=\"مرضية\",'ادخال الاجازات'!H224,0)","v":0}]
[{"$f":"IF('ادخال الاجازات'!I225=\"سنوية\",'ادخال الاجازات'!H225,0)","v":0},{"$f":"IF('ادخال الاجازات'!I225=\"عرضية\",'ادخال الاجازات'!H225,0)","v":0},{"$f":"IF('ادخال الاجازات'!I225=\"أبوه\",'ادخال الاجازات'!H225,0)","v":0},{"$f":"IF('ادخال الاجازات'!I225=\"حج\",'ادخال الاجازات'!H225,0)","v":0},{"$f":"IF('ادخال الاجازات'!I225=\"بدون راتب\",'ادخال الاجازات'!H225,0)","v":0},{"$f":"IF('ادخال الاجازات'!I225=\"مرضية\",'ادخال الاجازات'!H225,0)","v":0}]
[{"$f":"IF('ادخال الاجازات'!I226=\"سنوية\",'ادخال الاجازات'!H226,0)","v":0},{"$f":"IF('ادخال الاجازات'!I226=\"عرضية\",'ادخال الاجازات'!H226,0)","v":0},{"$f":"IF('ادخال الاجازات'!I226=\"أبوه\",'ادخال الاجازات'!H226,0)","v":0},{"$f":"IF('ادخال الاجازات'!I226=\"حج\",'ادخال الاجازات'!H226,0)","v":0},{"$f":"IF('ادخال الاجازات'!I226=\"بدون راتب\",'ادخال الاجازات'!H226,0)","v":0},{"$f":"IF('ادخال الاجازات'!I226=\"مرضية\",'ادخال الاجازات'!H226,0)","v":0}]
[{"$f":"IF('ادخال الاجازات'!I227=\"سنوية\",'ادخال الاجازات'!H227,0)","v":0},{"$f":"IF('ادخال الاجازات'!I227=\"عرضية\",'ادخال الاجازات'!H227,0)","v":0},{"$f":"IF('ادخال الاجازات'!I227=\"أبوه\",'ادخال الاجازات'!H227,0)","v":0},{"$f":"IF('ادخال الاجازات'!I227=\"حج\",'ادخال الاجازات'!H227,0)","v":0},{"$f":"IF('ادخال الاجازات'!I227=\"بدون راتب\",'ادخال الاجازات'!H227,0)","v":0},{"$f":"IF('ادخال الاجازات'!I227=\"مرضية\",'ادخال الاجازات'!H227,0)","v":0}]
[{"$f":"IF('ادخال الاجازات'!I228=\"سنوية\",'ادخال الاجازات'!H228,0)","v":0},{"$f":"IF('ادخال الاجازات'!I228=\"عرضية\",'ادخال الاجازات'!H228,0)","v":0},{"$f":"IF('ادخال الاجازات'!I228=\"أبوه\",'ادخال الاجازات'!H228,0)","v":0},{"$f":"IF('ادخال الاجازات'!I228=\"حج\",'ادخال الاجازات'!H228,0)","v":0},{"$f":"IF('ادخال الاجازات'!I228=\"بدون راتب\",'ادخال الاجازات'!H228,0)","v":0},{"$f":"IF('ادخال الاجازات'!I228=\"مرضية\",'ادخال الاجازات'!H228,0)","v":0}]
[{"$f":"IF('ادخال الاجازات'!I229=\"سنوية\",'ادخال الاجازات'!H229,0)","v":0},{"$f":"IF('ادخال الاجازات'!I229=\"عرضية\",'ادخال الاجازات'!H229,0)","v":0},{"$f":"IF('ادخال الاجازات'!I229=\"أبوه\",'ادخال الاجازات'!H229,0)","v":0},{"$f":"IF('ادخال الاجازات'!I229=\"حج\",'ادخال الاجازات'!H229,0)","v":0},{"$f":"IF('ادخال الاجازات'!I229=\"بدون راتب\",'ادخال الاجازات'!H229,0)","v":0},{"$f":"IF('ادخال الاجازات'!I229=\"مرضية\",'ادخال الاجازات'!H229,0)","v":0}]
[{"$f":"IF('ادخال الاجازات'!I230=\"سنوية\",'ادخال الاجازات'!H230,0)","v":0},{"$f":"IF('ادخال الاجازات'!I230=\"عرضية\",'ادخال الاجازات'!H230,0)","v":0},{"$f":"IF('ادخال الاجازات'!I230=\"أبوه\",'ادخال الاجازات'!H230,0)","v":0},{"$f":"IF('ادخال الاجازات'!I230=\"حج\",'ادخال الاجازات'!H230,0)","v":0},{"$f":"IF('ادخال الاجازات'!I230=\"بدون راتب\",'ادخال الاجازات'!H230,0)","v":0},{"$f":"IF('ادخال الاجازات'!I230=\"مرضية\",'ادخال الاجازات'!H230,0)","v":0}]
[{"$f":"IF('ادخال الاجازات'!I231=\"سنوية\",'ادخال الاجازات'!H231,0)","v":0},{"$f":"IF('ادخال الاجازات'!I231=\"عرضية\",'ادخال الاجازات'!H231,0)","v":0},{"$f":"IF('ادخال الاجازات'!I231=\"أبوه\",'ادخال الاجازات'!H231,0)","v":0},{"$f":"IF('ادخال الاجازات'!I231=\"حج\",'ادخال الاجازات'!H231,0)","v":0},{"$f":"IF('ادخال الاجازات'!I231=\"بدون راتب\",'ادخال الاجازات'!H231,0)","v":0},{"$f":"IF('ادخال الاجازات'!I231=\"مرضية\",'ادخال الاجازات'!H231,0)","v":0}]
[{"$f":"IF('ادخال الاجازات'!I232=\"سنوية\",'ادخال الاجازات'!H232,0)","v":0},{"$f":"IF('ادخال الاجازات'!I232=\"عرضية\",'ادخال الاجازات'!H232,0)","v":0},{"$f":"IF('ادخال الاجازات'!I232=\"أبوه\",'ادخال الاجازات'!H232,0)","v":0},{"$f":"IF('ادخال الاجازات'!I232=\"حج\",'ادخال الاجازات'!H232,0)","v":0},{"$f":"IF('ادخال الاجازات'!I232=\"بدون راتب\",'ادخال الاجازات'!H232,0)","v":0},{"$f":"IF('ادخال الاجازات'!I232=\"مرضية\",'ادخال الاجازات'!H232,0)","v":0}]
[{"$f":"IF('ادخال الاجازات'!I233=\"سنوية\",'ادخال الاجازات'!H233,0)","v":0},{"$f":"IF('ادخال الاجازات'!I233=\"عرضية\",'ادخال الاجازات'!H233,0)","v":0},{"$f":"IF('ادخال الاجازات'!I233=\"أبوه\",'ادخال الاجازات'!H233,0)","v":0},{"$f":"IF('ادخال الاجازات'!I233=\"حج\",'ادخال الاجازات'!H233,0)","v":0},{"$f":"IF('ادخال الاجازات'!I233=\"بدون راتب\",'ادخال الاجازات'!H233,0)","v":0},{"$f":"IF('ادخال الاجازات'!I233=\"مرضية\",'ادخال الاجازات'!H233,0)","v":0}]
[{"$f":"IF('ادخال الاجازات'!I234=\"سنوية\",'ادخال الاجازات'!H234,0)","v":0},{"$f":"IF('ادخال الاجازات'!I234=\"عرضية\",'ادخال الاجازات'!H234,0)","v":0},{"$f":"IF('ادخال الاجازات'!I234=\"أبوه\",'ادخال الاجازات'!H234,0)","v":0},{"$f":"IF('ادخال الاجازات'!I234=\"حج\",'ادخال الاجازات'!H234,0)","v":0},{"$f":"IF('ادخال الاجازات'!I234=\"بدون راتب\",'ادخال الاجازات'!H234,0)","v":0},{"$f":"IF('ادخال الاجازات'!I234=\"مرضية\",'ادخال الاجازات'!H234,0)","v":0}]
[{"$f":"IF('ادخال الاجازات'!I235=\"سنوية\",'ادخال الاجازات'!H235,0)","v":0},{"$f":"IF('ادخال الاجازات'!I235=\"عرضية\",'ادخال الاجازات'!H235,0)","v":0},{"$f":"IF('ادخال الاجازات'!I235=\"أبوه\",'ادخال الاجازات'!H235,0)","v":0},{"$f":"IF('ادخال الاجازات'!I235=\"حج\",'ادخال الاجازات'!H235,0)","v":0},{"$f":"IF('ادخال الاجازات'!I235=\"بدون راتب\",'ادخال الاجازات'!H235,0)","v":0},{"$f":"IF('ادخال الاجازات'!I235=\"مرضية\",'ادخال الاجازات'!H235,0)","v":0}]
[{"$f":"IF('ادخال الاجازات'!I236=\"سنوية\",'ادخال الاجازات'!H236,0)","v":0},{"$f":"IF('ادخال الاجازات'!I236=\"عرضية\",'ادخال الاجازات'!H236,0)","v":0},{"$f":"IF('ادخال الاجازات'!I236=\"أبوه\",'ادخال الاجازات'!H236,0)","v":0},{"$f":"IF('ادخال الاجازات'!I236=\"حج\",'ادخال الاجازات'!H236,0)","v":0},{"$f":"IF('ادخال الاجازات'!I236=\"بدون راتب\",'ادخال الاجازات'!H236,0)","v":0},{"$f":"IF('ادخال الاجازات'!I236=\"مرضية\",'ادخال الاجازات'!H236,0)","v":0}]
[{"$f":"IF('ادخال الاجازات'!I237=\"سنوية\",'ادخال الاجازات'!H237,0)","v":0},{"$f":"IF('ادخال الاجازات'!I237=\"عرضية\",'ادخال الاجازات'!H237,0)","v":0},{"$f":"IF('ادخال الاجازات'!I237=\"أبوه\",'ادخال الاجازات'!H237,0)","v":0},{"$f":"IF('ادخال الاجازات'!I237=\"حج\",'ادخال الاجازات'!H237,0)","v":0},{"$f":"IF('ادخال الاجازات'!I237=\"بدون راتب\",'ادخال الاجازات'!H237,0)","v":0},{"$f":"IF('ادخال الاجازات'!I237=\"مرضية\",'ادخال الاجازات'!H237,0)","v":0}]
[{"$f":"IF('ادخال الاجازات'!I238=\"سنوية\",'ادخال الاجازات'!H238,0)","v":0},{"$f":"IF('ادخال الاجازات'!I238=\"عرضية\",'ادخال الاجازات'!H238,0)","v":0},{"$f":"IF('ادخال الاجازات'!I238=\"أبوه\",'ادخال الاجازات'!H238,0)","v":0},{"$f":"IF('ادخال الاجازات'!I238=\"حج\",'ادخال الاجازات'!H238,0)","v":0},{"$f":"IF('ادخال الاجازات'!I238=\"بدون راتب\",'ادخال الاجازات'!H238,0)","v":0},{"$f":"IF('ادخال الاجازات'!I238=\"مرضية\",'ادخال الاجازات'!H238,0)","v":0}]
[{"$f":"IF('ادخال الاجازات'!I239=\"سنوية\",'ادخال الاجازات'!H239,0)","v":0},{"$f":"IF('ادخال الاجازات'!I239=\"عرضية\",'ادخال الاجازات'!H239,0)","v":0},{"$f":"IF('ادخال الاجازات'!I239=\"أبوه\",'ادخال الاجازات'!H239,0)","v":0},{"$f":"IF('ادخال الاجازات'!I239=\"حج\",'ادخال الاجازات'!H239,0)","v":0},{"$f":"IF('ادخال الاجازات'!I239=\"بدون راتب\",'ادخال الاجازات'!H239,0)","v":0},{"$f":"IF('ادخال الاجازات'!I239=\"مرضية\",'ادخال الاجازات'!H239,0)","v":0}]
[{"$f":"IF('ادخال الاجازات'!I240=\"سنوية\",'ادخال الاجازات'!H240,0)","v":0},{"$f":"IF('ادخال الاجازات'!I240=\"عرضية\",'ادخال الاجازات'!H240,0)","v":0},{"$f":"IF('ادخال الاجازات'!I240=\"أبوه\",'ادخال الاجازات'!H240,0)","v":0},{"$f":"IF('ادخال الاجازات'!I240=\"حج\",'ادخال الاجازات'!H240,0)","v":0},{"$f":"IF('ادخال الاجازات'!I240=\"بدون راتب\",'ادخال الاجازات'!H240,0)","v":0},{"$f":"IF('ادخال الاجازات'!I240=\"مرضية\",'ادخال الاجازات'!H240,0)","v":0}]
[{"$f":"IF('ادخال الاجازات'!I241=\"سنوية\",'ادخال الاجازات'!H241,0)","v":0},{"$f":"IF('ادخال الاجازات'!I241=\"عرضية\",'ادخال الاجازات'!H241,0)","v":0},{"$f":"IF('ادخال الاجازات'!I241=\"أبوه\",'ادخال الاجازات'!H241,0)","v":0},{"$f":"IF('ادخال الاجازات'!I241=\"حج\",'ادخال الاجازات'!H241,0)","v":0},{"$f":"IF('ادخال الاجازات'!I241=\"بدون راتب\",'ادخال الاجازات'!H241,0)","v":0},{"$f":"IF('ادخال الاجازات'!I241=\"مرضية\",'ادخال الاجازات'!H241,0)","v":0}]
[{"$f":"IF('ادخال الاجازات'!I242=\"سنوية\",'ادخال الاجازات'!H242,0)","v":0},{"$f":"IF('ادخال الاجازات'!I242=\"عرضية\",'ادخال الاجازات'!H242,0)","v":0},{"$f":"IF('ادخال الاجازات'!I242=\"أبوه\",'ادخال الاجازات'!H242,0)","v":0},{"$f":"IF('ادخال الاجازات'!I242=\"حج\",'ادخال الاجازات'!H242,0)","v":0},{"$f":"IF('ادخال الاجازات'!I242=\"بدون راتب\",'ادخال الاجازات'!H242,0)","v":0},{"$f":"IF('ادخال الاجازات'!I242=\"مرضية\",'ادخال الاجازات'!H242,0)","v":0}]
[{"$f":"IF('ادخال الاجازات'!I243=\"سنوية\",'ادخال الاجازات'!H243,0)","v":0},{"$f":"IF('ادخال الاجازات'!I243=\"عرضية\",'ادخال الاجازات'!H243,0)","v":0},{"$f":"IF('ادخال الاجازات'!I243=\"أبوه\",'ادخال الاجازات'!H243,0)","v":0},{"$f":"IF('ادخال الاجازات'!I243=\"حج\",'ادخال الاجازات'!H243,0)","v":0},{"$f":"IF('ادخال الاجازات'!I243=\"بدون راتب\",'ادخال الاجازات'!H243,0)","v":0},{"$f":"IF('ادخال الاجازات'!I243=\"مرضية\",'ادخال الاجازات'!H243,0)","v":0}]
[{"$f":"IF('ادخال الاجازات'!I244=\"سنوية\",'ادخال الاجازات'!H244,0)","v":0},{"$f":"IF('ادخال الاجازات'!I244=\"عرضية\",'ادخال الاجازات'!H244,0)","v":0},{"$f":"IF('ادخال الاجازات'!I244=\"أبوه\",'ادخال الاجازات'!H244,0)","v":0},{"$f":"IF('ادخال الاجازات'!I244=\"حج\",'ادخال الاجازات'!H244,0)","v":0},{"$f":"IF('ادخال الاجازات'!I244=\"بدون راتب\",'ادخال الاجازات'!H244,0)","v":0},{"$f":"IF('ادخال الاجازات'!I244=\"مرضية\",'ادخال الاجازات'!H244,0)","v":0}]
[{"$f":"IF('ادخال الاجازات'!I245=\"سنوية\",'ادخال الاجازات'!H245,0)","v":0},{"$f":"IF('ادخال الاجازات'!I245=\"عرضية\",'ادخال الاجازات'!H245,0)","v":0},{"$f":"IF('ادخال الاجازات'!I245=\"أبوه\",'ادخال الاجازات'!H245,0)","v":0},{"$f":"IF('ادخال الاجازات'!I245=\"حج\",'ادخال الاجازات'!H245,0)","v":0},{"$f":"IF('ادخال الاجازات'!I245=\"بدون راتب\",'ادخال الاجازات'!H245,0)","v":0},{"$f":"IF('ادخال الاجازات'!I245=\"مرضية\",'ادخال الاجازات'!H245,0)","v":0}]
[{"$f":"IF('ادخال الاجازات'!I246=\"سنوية\",'ادخال الاجازات'!H246,0)","v":0},{"$f":"IF('ادخال الاجازات'!I246=\"عرضية\",'ادخال الاجازات'!H246,0)","v":0},{"$f":"IF('ادخال الاجازات'!I246=\"أبوه\",'ادخال الاجازات'!H246,0)","v":0},{"$f":"IF('ادخال الاجازات'!I246=\"حج\",'ادخال الاجازات'!H246,0)","v":0},{"$f":"IF('ادخال الاجازات'!I246=\"بدون راتب\",'ادخال الاجازات'!H246,0)","v":0},{"$f":"IF('ادخال الاجازات'!I246=\"مرضية\",'ادخال الاجازات'!H246,0)","v":0}]
[{"$f":"IF('ادخال الاجازات'!I247=\"سنوية\",'ادخال الاجازات'!H247,0)","v":0},{"$f":"IF('ادخال الاجازات'!I247=\"عرضية\",'ادخال الاجازات'!H247,0)","v":0},{"$f":"IF('ادخال الاجازات'!I247=\"أبوه\",'ادخال الاجازات'!H247,0)","v":0},{"$f":"IF('ادخال الاجازات'!I247=\"حج\",'ادخال الاجازات'!H247,0)","v":0},{"$f":"IF('ادخال الاجازات'!I247=\"بدون راتب\",'ادخال الاجازات'!H247,0)","v":0},{"$f":"IF('ادخال الاجازات'!I247=\"مرضية\",'ادخال الاجازات'!H247,0)","v":0}]
[{"$f":"IF('ادخال الاجازات'!I248=\"سنوية\",'ادخال الاجازات'!H248,0)","v":0},{"$f":"IF('ادخال الاجازات'!I248=\"عرضية\",'ادخال الاجازات'!H248,0)","v":0},{"$f":"IF('ادخال الاجازات'!I248=\"أبوه\",'ادخال الاجازات'!H248,0)","v":0},{"$f":"IF('ادخال الاجازات'!I248=\"حج\",'ادخال الاجازات'!H248,0)","v":0},{"$f":"IF('ادخال الاجازات'!I248=\"بدون راتب\",'ادخال الاجازات'!H248,0)","v":0},{"$f":"IF('ادخال الاجازات'!I248=\"مرضية\",'ادخال الاجازات'!H248,0)","v":0}]
[{"$f":"IF('ادخال الاجازات'!I249=\"سنوية\",'ادخال الاجازات'!H249,0)","v":0},{"$f":"IF('ادخال الاجازات'!I249=\"عرضية\",'ادخال الاجازات'!H249,0)","v":0},{"$f":"IF('ادخال الاجازات'!I249=\"أبوه\",'ادخال الاجازات'!H249,0)","v":0},{"$f":"IF('ادخال الاجازات'!I249=\"حج\",'ادخال الاجازات'!H249,0)","v":0},{"$f":"IF('ادخال الاجازات'!I249=\"بدون راتب\",'ادخال الاجازات'!H249,0)","v":0},{"$f":"IF('ادخال الاجازات'!I249=\"مرضية\",'ادخال الاجازات'!H249,0)","v":0}]
[{"$f":"IF('ادخال الاجازات'!I250=\"سنوية\",'ادخال الاجازات'!H250,0)","v":0},{"$f":"IF('ادخال الاجازات'!I250=\"عرضية\",'ادخال الاجازات'!H250,0)","v":0},{"$f":"IF('ادخال الاجازات'!I250=\"أبوه\",'ادخال الاجازات'!H250,0)","v":0},{"$f":"IF('ادخال الاجازات'!I250=\"حج\",'ادخال الاجازات'!H250,0)","v":0},{"$f":"IF('ادخال الاجازات'!I250=\"بدون راتب\",'ادخال الاجازات'!H250,0)","v":0},{"$f":"IF('ادخال الاجازات'!I250=\"مرضية\",'ادخال الاجازات'!H250,0)","v":0}]
[{"$f":"IF('ادخال الاجازات'!I251=\"سنوية\",'ادخال الاجازات'!H251,0)","v":0},{"$f":"IF('ادخال الاجازات'!I251=\"عرضية\",'ادخال الاجازات'!H251,0)","v":0},{"$f":"IF('ادخال الاجازات'!I251=\"أبوه\",'ادخال الاجازات'!H251,0)","v":0},{"$f":"IF('ادخال الاجازات'!I251=\"حج\",'ادخال الاجازات'!H251,0)","v":0},{"$f":"IF('ادخال الاجازات'!I251=\"بدون راتب\",'ادخال الاجازات'!H251,0)","v":0},{"$f":"IF('ادخال الاجازات'!I251=\"مرضية\",'ادخال الاجازات'!H251,0)","v":0}]
[{"$f":"IF('ادخال الاجازات'!I252=\"سنوية\",'ادخال الاجازات'!H252,0)","v":0},{"$f":"IF('ادخال الاجازات'!I252=\"عرضية\",'ادخال الاجازات'!H252,0)","v":0},{"$f":"IF('ادخال الاجازات'!I252=\"أبوه\",'ادخال الاجازات'!H252,0)","v":0},{"$f":"IF('ادخال الاجازات'!I252=\"حج\",'ادخال الاجازات'!H252,0)","v":0},{"$f":"IF('ادخال الاجازات'!I252=\"بدون راتب\",'ادخال الاجازات'!H252,0)","v":0},{"$f":"IF('ادخال الاجازات'!I252=\"مرضية\",'ادخال الاجازات'!H252,0)","v":0}]
[{"$f":"IF('ادخال الاجازات'!I253=\"سنوية\",'ادخال الاجازات'!H253,0)","v":0},{"$f":"IF('ادخال الاجازات'!I253=\"عرضية\",'ادخال الاجازات'!H253,0)","v":0},{"$f":"IF('ادخال الاجازات'!I253=\"أبوه\",'ادخال الاجازات'!H253,0)","v":0},{"$f":"IF('ادخال الاجازات'!I253=\"حج\",'ادخال الاجازات'!H253,0)","v":0},{"$f":"IF('ادخال الاجازات'!I253=\"بدون راتب\",'ادخال الاجازات'!H253,0)","v":0},{"$f":"IF('ادخال الاجازات'!I253=\"مرضية\",'ادخال الاجازات'!H253,0)","v":0}]
[{"$f":"IF('ادخال الاجازات'!I254=\"سنوية\",'ادخال الاجازات'!H254,0)","v":0},{"$f":"IF('ادخال الاجازات'!I254=\"عرضية\",'ادخال الاجازات'!H254,0)","v":0},{"$f":"IF('ادخال الاجازات'!I254=\"أبوه\",'ادخال الاجازات'!H254,0)","v":0},{"$f":"IF('ادخال الاجازات'!I254=\"حج\",'ادخال الاجازات'!H254,0)","v":0},{"$f":"IF('ادخال الاجازات'!I254=\"بدون راتب\",'ادخال الاجازات'!H254,0)","v":0},{"$f":"IF('ادخال الاجازات'!I254=\"مرضية\",'ادخال الاجازات'!H254,0)","v":0}]
[{"$f":"IF('ادخال الاجازات'!I255=\"سنوية\",'ادخال الاجازات'!H255,0)","v":0},{"$f":"IF('ادخال الاجازات'!I255=\"عرضية\",'ادخال الاجازات'!H255,0)","v":0},{"$f":"IF('ادخال الاجازات'!I255=\"أبوه\",'ادخال الاجازات'!H255,0)","v":0},{"$f":"IF('ادخال الاجازات'!I255=\"حج\",'ادخال الاجازات'!H255,0)","v":0},{"$f":"IF('ادخال الاجازات'!I255=\"بدون راتب\",'ادخال الاجازات'!H255,0)","v":0},{"$f":"IF('ادخال الاجازات'!I255=\"مرضية\",'ادخال الاجازات'!H255,0)","v":0}]
[{"$f":"IF('ادخال الاجازات'!I256=\"سنوية\",'ادخال الاجازات'!H256,0)","v":0},{"$f":"IF('ادخال الاجازات'!I256=\"عرضية\",'ادخال الاجازات'!H256,0)","v":0},{"$f":"IF('ادخال الاجازات'!I256=\"أبوه\",'ادخال الاجازات'!H256,0)","v":0},{"$f":"IF('ادخال الاجازات'!I256=\"حج\",'ادخال الاجازات'!H256,0)","v":0},{"$f":"IF('ادخال الاجازات'!I256=\"بدون راتب\",'ادخال الاجازات'!H256,0)","v":0},{"$f":"IF('ادخال الاجازات'!I256=\"مرضية\",'ادخال الاجازات'!H256,0)","v":0}]
[{"$f":"IF('ادخال الاجازات'!I257=\"سنوية\",'ادخال الاجازات'!H257,0)","v":0},{"$f":"IF('ادخال الاجازات'!I257=\"عرضية\",'ادخال الاجازات'!H257,0)","v":0},{"$f":"IF('ادخال الاجازات'!I257=\"أبوه\",'ادخال الاجازات'!H257,0)","v":0},{"$f":"IF('ادخال الاجازات'!I257=\"حج\",'ادخال الاجازات'!H257,0)","v":0},{"$f":"IF('ادخال الاجازات'!I257=\"بدون راتب\",'ادخال الاجازات'!H257,0)","v":0},{"$f":"IF('ادخال الاجازات'!I257=\"مرضية\",'ادخال الاجازات'!H257,0)","v":0}]
[{"$f":"IF('ادخال الاجازات'!I258=\"سنوية\",'ادخال الاجازات'!H258,0)","v":0},{"$f":"IF('ادخال الاجازات'!I258=\"عرضية\",'ادخال الاجازات'!H258,0)","v":0},{"$f":"IF('ادخال الاجازات'!I258=\"أبوه\",'ادخال الاجازات'!H258,0)","v":0},{"$f":"IF('ادخال الاجازات'!I258=\"حج\",'ادخال الاجازات'!H258,0)","v":0},{"$f":"IF('ادخال الاجازات'!I258=\"بدون راتب\",'ادخال الاجازات'!H258,0)","v":0},{"$f":"IF('ادخال الاجازات'!I258=\"مرضية\",'ادخال الاجازات'!H258,0)","v":0}]
[{"$f":"IF('ادخال الاجازات'!I259=\"سنوية\",'ادخال الاجازات'!H259,0)","v":0},{"$f":"IF('ادخال الاجازات'!I259=\"عرضية\",'ادخال الاجازات'!H259,0)","v":0},{"$f":"IF('ادخال الاجازات'!I259=\"أبوه\",'ادخال الاجازات'!H259,0)","v":0},{"$f":"IF('ادخال الاجازات'!I259=\"حج\",'ادخال الاجازات'!H259,0)","v":0},{"$f":"IF('ادخال الاجازات'!I259=\"بدون راتب\",'ادخال الاجازات'!H259,0)","v":0},{"$f":"IF('ادخال الاجازات'!I259=\"مرضية\",'ادخال الاجازات'!H259,0)","v":0}]
[{"$f":"IF('ادخال الاجازات'!I260=\"سنوية\",'ادخال الاجازات'!H260,0)","v":0},{"$f":"IF('ادخال الاجازات'!I260=\"عرضية\",'ادخال الاجازات'!H260,0)","v":0},{"$f":"IF('ادخال الاجازات'!I260=\"أبوه\",'ادخال الاجازات'!H260,0)","v":0},{"$f":"IF('ادخال الاجازات'!I260=\"حج\",'ادخال الاجازات'!H260,0)","v":0},{"$f":"IF('ادخال الاجازات'!I260=\"بدون راتب\",'ادخال الاجازات'!H260,0)","v":0},{"$f":"IF('ادخال الاجازات'!I260=\"مرضية\",'ادخال الاجازات'!H260,0)","v":0}]
[{"$f":"IF('ادخال الاجازات'!I261=\"سنوية\",'ادخال الاجازات'!H261,0)","v":0},{"$f":"IF('ادخال الاجازات'!I261=\"عرضية\",'ادخال الاجازات'!H261,0)","v":0},{"$f":"IF('ادخال الاجازات'!I261=\"أبوه\",'ادخال الاجازات'!H261,0)","v":0},{"$f":"IF('ادخال الاجازات'!I261=\"حج\",'ادخال الاجازات'!H261,0)","v":0},{"$f":"IF('ادخال الاجازات'!I261=\"بدون راتب\",'ادخال الاجازات'!H261,0)","v":0},{"$f":"IF('ادخال الاجازات'!I261=\"مرضية\",'ادخال الاجازات'!H261,0)","v":0}]
[{"$f":"IF('ادخال الاجازات'!I262=\"سنوية\",'ادخال الاجازات'!H262,0)","v":0},{"$f":"IF('ادخال الاجازات'!I262=\"عرضية\",'ادخال الاجازات'!H262,0)","v":0},{"$f":"IF('ادخال الاجازات'!I262=\"أبوه\",'ادخال الاجازات'!H262,0)","v":0},{"$f":"IF('ادخال الاجازات'!I262=\"حج\",'ادخال الاجازات'!H262,0)","v":0},{"$f":"IF('ادخال الاجازات'!I262=\"بدون راتب\",'ادخال الاجازات'!H262,0)","v":0},{"$f":"IF('ادخال الاجازات'!I262=\"مرضية\",'ادخال الاجازات'!H262,0)","v":0}]
[{"$f":"IF('ادخال الاجازات'!I263=\"سنوية\",'ادخال الاجازات'!H263,0)","v":0},{"$f":"IF('ادخال الاجازات'!I263=\"عرضية\",'ادخال الاجازات'!H263,0)","v":0},{"$f":"IF('ادخال الاجازات'!I263=\"أبوه\",'ادخال الاجازات'!H263,0)","v":0},{"$f":"IF('ادخال الاجازات'!I263=\"حج\",'ادخال الاجازات'!H263,0)","v":0},{"$f":"IF('ادخال الاجازات'!I263=\"بدون راتب\",'ادخال الاجازات'!H263,0)","v":0},{"$f":"IF('ادخال الاجازات'!I263=\"مرضية\",'ادخال الاجازات'!H263,0)","v":0}]
[{"$f":"IF('ادخال الاجازات'!I264=\"سنوية\",'ادخال الاجازات'!H264,0)","v":0},{"$f":"IF('ادخال الاجازات'!I264=\"عرضية\",'ادخال الاجازات'!H264,0)","v":0},{"$f":"IF('ادخال الاجازات'!I264=\"أبوه\",'ادخال الاجازات'!H264,0)","v":0},{"$f":"IF('ادخال الاجازات'!I264=\"حج\",'ادخال الاجازات'!H264,0)","v":0},{"$f":"IF('ادخال الاجازات'!I264=\"بدون راتب\",'ادخال الاجازات'!H264,0)","v":0},{"$f":"IF('ادخال الاجازات'!I264=\"مرضية\",'ادخال الاجازات'!H264,0)","v":0}]
[{"$f":"IF('ادخال الاجازات'!I265=\"سنوية\",'ادخال الاجازات'!H265,0)","v":0},{"$f":"IF('ادخال الاجازات'!I265=\"عرضية\",'ادخال الاجازات'!H265,0)","v":0},{"$f":"IF('ادخال الاجازات'!I265=\"أبوه\",'ادخال الاجازات'!H265,0)","v":0},{"$f":"IF('ادخال الاجازات'!I265=\"حج\",'ادخال الاجازات'!H265,0)","v":0},{"$f":"IF('ادخال الاجازات'!I265=\"بدون راتب\",'ادخال الاجازات'!H265,0)","v":0},{"$f":"IF('ادخال الاجازات'!I265=\"مرضية\",'ادخال الاجازات'!H265,0)","v":0}]
[{"$f":"IF('ادخال الاجازات'!I266=\"سنوية\",'ادخال الاجازات'!H266,0)","v":0},{"$f":"IF('ادخال الاجازات'!I266=\"عرضية\",'ادخال الاجازات'!H266,0)","v":0},{"$f":"IF('ادخال الاجازات'!I266=\"أبوه\",'ادخال الاجازات'!H266,0)","v":0},{"$f":"IF('ادخال الاجازات'!I266=\"حج\",'ادخال الاجازات'!H266,0)","v":0},{"$f":"IF('ادخال الاجازات'!I266=\"بدون راتب\",'ادخال الاجازات'!H266,0)","v":0},{"$f":"IF('ادخال الاجازات'!I266=\"مرضية\",'ادخال الاجازات'!H266,0)","v":0}]
[{"$f":"IF('ادخال الاجازات'!I267=\"سنوية\",'ادخال الاجازات'!H267,0)","v":0},{"$f":"IF('ادخال الاجازات'!I267=\"عرضية\",'ادخال الاجازات'!H267,0)","v":0},{"$f":"IF('ادخال الاجازات'!I267=\"أبوه\",'ادخال الاجازات'!H267,0)","v":0},{"$f":"IF('ادخال الاجازات'!I267=\"حج\",'ادخال الاجازات'!H267,0)","v":0},{"$f":"IF('ادخال الاجازات'!I267=\"بدون راتب\",'ادخال الاجازات'!H267,0)","v":0},{"$f":"IF('ادخال الاجازات'!I267=\"مرضية\",'ادخال الاجازات'!H267,0)","v":0}]
[{"$f":"IF('ادخال الاجازات'!I268=\"سنوية\",'ادخال الاجازات'!H268,0)","v":0},{"$f":"IF('ادخال الاجازات'!I268=\"عرضية\",'ادخال الاجازات'!H268,0)","v":0},{"$f":"IF('ادخال الاجازات'!I268=\"أبوه\",'ادخال الاجازات'!H268,0)","v":0},{"$f":"IF('ادخال الاجازات'!I268=\"حج\",'ادخال الاجازات'!H268,0)","v":0},{"$f":"IF('ادخال الاجازات'!I268=\"بدون راتب\",'ادخال الاجازات'!H268,0)","v":0},{"$f":"IF('ادخال الاجازات'!I268=\"مرضية\",'ادخال الاجازات'!H268,0)","v":0}]
[{"$f":"IF('ادخال الاجازات'!I269=\"سنوية\",'ادخال الاجازات'!H269,0)","v":0},{"$f":"IF('ادخال الاجازات'!I269=\"عرضية\",'ادخال الاجازات'!H269,0)","v":0},{"$f":"IF('ادخال الاجازات'!I269=\"أبوه\",'ادخال الاجازات'!H269,0)","v":0},{"$f":"IF('ادخال الاجازات'!I269=\"حج\",'ادخال الاجازات'!H269,0)","v":0},{"$f":"IF('ادخال الاجازات'!I269=\"بدون راتب\",'ادخال الاجازات'!H269,0)","v":0},{"$f":"IF('ادخال الاجازات'!I269=\"مرضية\",'ادخال الاجازات'!H269,0)","v":0}]
[{"$f":"IF('ادخال الاجازات'!I270=\"سنوية\",'ادخال الاجازات'!H270,0)","v":0},{"$f":"IF('ادخال الاجازات'!I270=\"عرضية\",'ادخال الاجازات'!H270,0)","v":0},{"$f":"IF('ادخال الاجازات'!I270=\"أبوه\",'ادخال الاجازات'!H270,0)","v":0},{"$f":"IF('ادخال الاجازات'!I270=\"حج\",'ادخال الاجازات'!H270,0)","v":0},{"$f":"IF('ادخال الاجازات'!I270=\"بدون راتب\",'ادخال الاجازات'!H270,0)","v":0},{"$f":"IF('ادخال الاجازات'!I270=\"مرضية\",'ادخال الاجازات'!H270,0)","v":0}]
[{"$f":"IF('ادخال الاجازات'!I271=\"سنوية\",'ادخال الاجازات'!H271,0)","v":0},{"$f":"IF('ادخال الاجازات'!I271=\"عرضية\",'ادخال الاجازات'!H271,0)","v":0},{"$f":"IF('ادخال الاجازات'!I271=\"أبوه\",'ادخال الاجازات'!H271,0)","v":0},{"$f":"IF('ادخال الاجازات'!I271=\"حج\",'ادخال الاجازات'!H271,0)","v":0},{"$f":"IF('ادخال الاجازات'!I271=\"بدون راتب\",'ادخال الاجازات'!H271,0)","v":0},{"$f":"IF('ادخال الاجازات'!I271=\"مرضية\",'ادخال الاجازات'!H271,0)","v":0}]
[{"$f":"IF('ادخال الاجازات'!I272=\"سنوية\",'ادخال الاجازات'!H272,0)","v":0},{"$f":"IF('ادخال الاجازات'!I272=\"عرضية\",'ادخال الاجازات'!H272,0)","v":0},{"$f":"IF('ادخال الاجازات'!I272=\"أبوه\",'ادخال الاجازات'!H272,0)","v":0},{"$f":"IF('ادخال الاجازات'!I272=\"حج\",'ادخال الاجازات'!H272,0)","v":0},{"$f":"IF('ادخال الاجازات'!I272=\"بدون راتب\",'ادخال الاجازات'!H272,0)","v":0},{"$f":"IF('ادخال الاجازات'!I272=\"مرضية\",'ادخال الاجازات'!H272,0)","v":0}]
[{"$f":"IF('ادخال الاجازات'!I273=\"سنوية\",'ادخال الاجازات'!H273,0)","v":0},{"$f":"IF('ادخال الاجازات'!I273=\"عرضية\",'ادخال الاجازات'!H273,0)","v":0},{"$f":"IF('ادخال الاجازات'!I273=\"أبوه\",'ادخال الاجازات'!H273,0)","v":0},{"$f":"IF('ادخال الاجازات'!I273=\"حج\",'ادخال الاجازات'!H273,0)","v":0},{"$f":"IF('ادخال الاجازات'!I273=\"بدون راتب\",'ادخال الاجازات'!H273,0)","v":0},{"$f":"IF('ادخال الاجازات'!I273=\"مرضية\",'ادخال الاجازات'!H273,0)","v":0}]
[{"$f":"IF('ادخال الاجازات'!I274=\"سنوية\",'ادخال الاجازات'!H274,0)","v":0},{"$f":"IF('ادخال الاجازات'!I274=\"عرضية\",'ادخال الاجازات'!H274,0)","v":0},{"$f":"IF('ادخال الاجازات'!I274=\"أبوه\",'ادخال الاجازات'!H274,0)","v":0},{"$f":"IF('ادخال الاجازات'!I274=\"حج\",'ادخال الاجازات'!H274,0)","v":0},{"$f":"IF('ادخال الاجازات'!I274=\"بدون راتب\",'ادخال الاجازات'!H274,0)","v":0},{"$f":"IF('ادخال الاجازات'!I274=\"مرضية\",'ادخال الاجازات'!H274,0)","v":0}]
[{"$f":"IF('ادخال الاجازات'!I275=\"سنوية\",'ادخال الاجازات'!H275,0)","v":0},{"$f":"IF('ادخال الاجازات'!I275=\"عرضية\",'ادخال الاجازات'!H275,0)","v":0},{"$f":"IF('ادخال الاجازات'!I275=\"أبوه\",'ادخال الاجازات'!H275,0)","v":0},{"$f":"IF('ادخال الاجازات'!I275=\"حج\",'ادخال الاجازات'!H275,0)","v":0},{"$f":"IF('ادخال الاجازات'!I275=\"بدون راتب\",'ادخال الاجازات'!H275,0)","v":0},{"$f":"IF('ادخال الاجازات'!I275=\"مرضية\",'ادخال الاجازات'!H275,0)","v":0}]
[{"$f":"IF('ادخال الاجازات'!I276=\"سنوية\",'ادخال الاجازات'!H276,0)","v":0},{"$f":"IF('ادخال الاجازات'!I276=\"عرضية\",'ادخال الاجازات'!H276,0)","v":0},{"$f":"IF('ادخال الاجازات'!I276=\"أبوه\",'ادخال الاجازات'!H276,0)","v":0},{"$f":"IF('ادخال الاجازات'!I276=\"حج\",'ادخال الاجازات'!H276,0)","v":0},{"$f":"IF('ادخال الاجازات'!I276=\"بدون راتب\",'ادخال الاجازات'!H276,0)","v":0},{"$f":"IF('ادخال الاجازات'!I276=\"مرضية\",'ادخال الاجازات'!H276,0)","v":0}]
[{"$f":"IF('ادخال الاجازات'!I277=\"سنوية\",'ادخال الاجازات'!H277,0)","v":0},{"$f":"IF('ادخال الاجازات'!I277=\"عرضية\",'ادخال الاجازات'!H277,0)","v":0},{"$f":"IF('ادخال الاجازات'!I277=\"أبوه\",'ادخال الاجازات'!H277,0)","v":0},{"$f":"IF('ادخال الاجازات'!I277=\"حج\",'ادخال الاجازات'!H277,0)","v":0},{"$f":"IF('ادخال الاجازات'!I277=\"بدون راتب\",'ادخال الاجازات'!H277,0)","v":0},{"$f":"IF('ادخال الاجازات'!I277=\"مرضية\",'ادخال الاجازات'!H277,0)","v":0}]
[{"$f":"IF('ادخال الاجازات'!I278=\"سنوية\",'ادخال الاجازات'!H278,0)","v":0},{"$f":"IF('ادخال الاجازات'!I278=\"عرضية\",'ادخال الاجازات'!H278,0)","v":0},{"$f":"IF('ادخال الاجازات'!I278=\"أبوه\",'ادخال الاجازات'!H278,0)","v":0},{"$f":"IF('ادخال الاجازات'!I278=\"حج\",'ادخال الاجازات'!H278,0)","v":0},{"$f":"IF('ادخال الاجازات'!I278=\"بدون راتب\",'ادخال الاجازات'!H278,0)","v":0},{"$f":"IF('ادخال الاجازات'!I278=\"مرضية\",'ادخال الاجازات'!H278,0)","v":0}]
[{"$f":"IF('ادخال الاجازات'!I279=\"سنوية\",'ادخال الاجازات'!H279,0)","v":0},{"$f":"IF('ادخال الاجازات'!I279=\"عرضية\",'ادخال الاجازات'!H279,0)","v":0},{"$f":"IF('ادخال الاجازات'!I279=\"أبوه\",'ادخال الاجازات'!H279,0)","v":0},{"$f":"IF('ادخال الاجازات'!I279=\"حج\",'ادخال الاجازات'!H279,0)","v":0},{"$f":"IF('ادخال الاجازات'!I279=\"بدون راتب\",'ادخال الاجازات'!H279,0)","v":0},{"$f":"IF('ادخال الاجازات'!I279=\"مرضية\",'ادخال الاجازات'!H279,0)","v":0}]
[{"$f":"IF('ادخال الاجازات'!I280=\"سنوية\",'ادخال الاجازات'!H280,0)","v":0},{"$f":"IF('ادخال الاجازات'!I280=\"عرضية\",'ادخال الاجازات'!H280,0)","v":0},{"$f":"IF('ادخال الاجازات'!I280=\"أبوه\",'ادخال الاجازات'!H280,0)","v":0},{"$f":"IF('ادخال الاجازات'!I280=\"حج\",'ادخال الاجازات'!H280,0)","v":0},{"$f":"IF('ادخال الاجازات'!I280=\"بدون راتب\",'ادخال الاجازات'!H280,0)","v":0},{"$f":"IF('ادخال الاجازات'!I280=\"مرضية\",'ادخال الاجازات'!H280,0)","v":0}]
[{"$f":"IF('ادخال الاجازات'!I281=\"سنوية\",'ادخال الاجازات'!H281,0)","v":0},{"$f":"IF('ادخال الاجازات'!I281=\"عرضية\",'ادخال الاجازات'!H281,0)","v":0},{"$f":"IF('ادخال الاجازات'!I281=\"أبوه\",'ادخال الاجازات'!H281,0)","v":0},{"$f":"IF('ادخال الاجازات'!I281=\"حج\",'ادخال الاجازات'!H281,0)","v":0},{"$f":"IF('ادخال الاجازات'!I281=\"بدون راتب\",'ادخال الاجازات'!H281,0)","v":0},{"$f":"IF('ادخال الاجازات'!I281=\"مرضية\",'ادخال الاجازات'!H281,0)","v":0}]
[{"$f":"IF('ادخال الاجازات'!I282=\"سنوية\",'ادخال الاجازات'!H282,0)","v":0},{"$f":"IF('ادخال الاجازات'!I282=\"عرضية\",'ادخال الاجازات'!H282,0)","v":0},{"$f":"IF('ادخال الاجازات'!I282=\"أبوه\",'ادخال الاجازات'!H282,0)","v":0},{"$f":"IF('ادخال الاجازات'!I282=\"حج\",'ادخال الاجازات'!H282,0)","v":0},{"$f":"IF('ادخال الاجازات'!I282=\"بدون راتب\",'ادخال الاجازات'!H282,0)","v":0},{"$f":"IF('ادخال الاجازات'!I282=\"مرضية\",'ادخال الاجازات'!H282,0)","v":0}]
[{"$f":"IF('ادخال الاجازات'!I283=\"سنوية\",'ادخال الاجازات'!H283,0)","v":0},{"$f":"IF('ادخال الاجازات'!I283=\"عرضية\",'ادخال الاجازات'!H283,0)","v":0},{"$f":"IF('ادخال الاجازات'!I283=\"أبوه\",'ادخال الاجازات'!H283,0)","v":0},{"$f":"IF('ادخال الاجازات'!I283=\"حج\",'ادخال الاجازات'!H283,0)","v":0},{"$f":"IF('ادخال الاجازات'!I283=\"بدون راتب\",'ادخال الاجازات'!H283,0)","v":0},{"$f":"IF('ادخال الاجازات'!I283=\"مرضية\",'ادخال الاجازات'!H283,0)","v":0}]
[{"$f":"IF('ادخال الاجازات'!I284=\"سنوية\",'ادخال الاجازات'!H284,0)","v":0},{"$f":"IF('ادخال الاجازات'!I284=\"عرضية\",'ادخال الاجازات'!H284,0)","v":0},{"$f":"IF('ادخال الاجازات'!I284=\"أبوه\",'ادخال الاجازات'!H284,0)","v":0},{"$f":"IF('ادخال الاجازات'!I284=\"حج\",'ادخال الاجازات'!H284,0)","v":0},{"$f":"IF('ادخال الاجازات'!I284=\"بدون راتب\",'ادخال الاجازات'!H284,0)","v":0},{"$f":"IF('ادخال الاجازات'!I284=\"مرضية\",'ادخال الاجازات'!H284,0)","v":0}]
[{"$f":"IF('ادخال الاجازات'!I285=\"سنوية\",'ادخال الاجازات'!H285,0)","v":0},{"$f":"IF('ادخال الاجازات'!I285=\"عرضية\",'ادخال الاجازات'!H285,0)","v":0},{"$f":"IF('ادخال الاجازات'!I285=\"أبوه\",'ادخال الاجازات'!H285,0)","v":0},{"$f":"IF('ادخال الاجازات'!I285=\"حج\",'ادخال الاجازات'!H285,0)","v":0},{"$f":"IF('ادخال الاجازات'!I285=\"بدون راتب\",'ادخال الاجازات'!H285,0)","v":0},{"$f":"IF('ادخال الاجازات'!I285=\"مرضية\",'ادخال الاجازات'!H285,0)","v":0}]
[{"$f":"IF('ادخال الاجازات'!I286=\"سنوية\",'ادخال الاجازات'!H286,0)","v":0},{"$f":"IF('ادخال الاجازات'!I286=\"عرضية\",'ادخال الاجازات'!H286,0)","v":0},{"$f":"IF('ادخال الاجازات'!I286=\"أبوه\",'ادخال الاجازات'!H286,0)","v":0},{"$f":"IF('ادخال الاجازات'!I286=\"حج\",'ادخال الاجازات'!H286,0)","v":0},{"$f":"IF('ادخال الاجازات'!I286=\"بدون راتب\",'ادخال الاجازات'!H286,0)","v":0},{"$f":"IF('ادخال الاجازات'!I286=\"مرضية\",'ادخال الاجازات'!H286,0)","v":0}]
[{"$f":"IF('ادخال الاجازات'!I287=\"سنوية\",'ادخال الاجازات'!H287,0)","v":0},{"$f":"IF('ادخال الاجازات'!I287=\"عرضية\",'ادخال الاجازات'!H287,0)","v":0},{"$f":"IF('ادخال الاجازات'!I287=\"أبوه\",'ادخال الاجازات'!H287,0)","v":0},{"$f":"IF('ادخال الاجازات'!I287=\"حج\",'ادخال الاجازات'!H287,0)","v":0},{"$f":"IF('ادخال الاجازات'!I287=\"بدون راتب\",'ادخال الاجازات'!H287,0)","v":0},{"$f":"IF('ادخال الاجازات'!I287=\"مرضية\",'ادخال الاجازات'!H287,0)","v":0}]
[{"$f":"IF('ادخال الاجازات'!I288=\"سنوية\",'ادخال الاجازات'!H288,0)","v":0},{"$f":"IF('ادخال الاجازات'!I288=\"عرضية\",'ادخال الاجازات'!H288,0)","v":0},{"$f":"IF('ادخال الاجازات'!I288=\"أبوه\",'ادخال الاجازات'!H288,0)","v":0},{"$f":"IF('ادخال الاجازات'!I288=\"حج\",'ادخال الاجازات'!H288,0)","v":0},{"$f":"IF('ادخال الاجازات'!I288=\"بدون راتب\",'ادخال الاجازات'!H288,0)","v":0},{"$f":"IF('ادخال الاجازات'!I288=\"مرضية\",'ادخال الاجازات'!H288,0)","v":0}]
[{"$f":"IF('ادخال الاجازات'!I289=\"سنوية\",'ادخال الاجازات'!H289,0)","v":0},{"$f":"IF('ادخال الاجازات'!I289=\"عرضية\",'ادخال الاجازات'!H289,0)","v":0},{"$f":"IF('ادخال الاجازات'!I289=\"أبوه\",'ادخال الاجازات'!H289,0)","v":0},{"$f":"IF('ادخال الاجازات'!I289=\"حج\",'ادخال الاجازات'!H289,0)","v":0},{"$f":"IF('ادخال الاجازات'!I289=\"بدون راتب\",'ادخال الاجازات'!H289,0)","v":0},{"$f":"IF('ادخال الاجازات'!I289=\"مرضية\",'ادخال الاجازات'!H289,0)","v":0}]
[{"$f":"IF('ادخال الاجازات'!I290=\"سنوية\",'ادخال الاجازات'!H290,0)","v":0},{"$f":"IF('ادخال الاجازات'!I290=\"عرضية\",'ادخال الاجازات'!H290,0)","v":0},{"$f":"IF('ادخال الاجازات'!I290=\"أبوه\",'ادخال الاجازات'!H290,0)","v":0},{"$f":"IF('ادخال الاجازات'!I290=\"حج\",'ادخال الاجازات'!H290,0)","v":0},{"$f":"IF('ادخال الاجازات'!I290=\"بدون راتب\",'ادخال الاجازات'!H290,0)","v":0},{"$f":"IF('ادخال الاجازات'!I290=\"مرضية\",'ادخال الاجازات'!H290,0)","v":0}]
[{"$f":"IF('ادخال الاجازات'!I291=\"سنوية\",'ادخال الاجازات'!H291,0)","v":0},{"$f":"IF('ادخال الاجازات'!I291=\"عرضية\",'ادخال الاجازات'!H291,0)","v":0},{"$f":"IF('ادخال الاجازات'!I291=\"أبوه\",'ادخال الاجازات'!H291,0)","v":0},{"$f":"IF('ادخال الاجازات'!I291=\"حج\",'ادخال الاجازات'!H291,0)","v":0},{"$f":"IF('ادخال الاجازات'!I291=\"بدون راتب\",'ادخال الاجازات'!H291,0)","v":0},{"$f":"IF('ادخال الاجازات'!I291=\"مرضية\",'ادخال الاجازات'!H291,0)","v":0}]
[{"$f":"IF('ادخال الاجازات'!I292=\"سنوية\",'ادخال الاجازات'!H292,0)","v":0},{"$f":"IF('ادخال الاجازات'!I292=\"عرضية\",'ادخال الاجازات'!H292,0)","v":0},{"$f":"IF('ادخال الاجازات'!I292=\"أبوه\",'ادخال الاجازات'!H292,0)","v":0},{"$f":"IF('ادخال الاجازات'!I292=\"حج\",'ادخال الاجازات'!H292,0)","v":0},{"$f":"IF('ادخال الاجازات'!I292=\"بدون راتب\",'ادخال الاجازات'!H292,0)","v":0},{"$f":"IF('ادخال الاجازات'!I292=\"مرضية\",'ادخال الاجازات'!H292,0)","v":0}]
[{"$f":"IF('ادخال الاجازات'!I293=\"سنوية\",'ادخال الاجازات'!H293,0)","v":0},{"$f":"IF('ادخال الاجازات'!I293=\"عرضية\",'ادخال الاجازات'!H293,0)","v":0},{"$f":"IF('ادخال الاجازات'!I293=\"أبوه\",'ادخال الاجازات'!H293,0)","v":0},{"$f":"IF('ادخال الاجازات'!I293=\"حج\",'ادخال الاجازات'!H293,0)","v":0},{"$f":"IF('ادخال الاجازات'!I293=\"بدون راتب\",'ادخال الاجازات'!H293,0)","v":0},{"$f":"IF('ادخال الاجازات'!I293=\"مرضية\",'ادخال الاجازات'!H293,0)","v":0}]
[{"$f":"IF('ادخال الاجازات'!I294=\"سنوية\",'ادخال الاجازات'!H294,0)","v":0},{"$f":"IF('ادخال الاجازات'!I294=\"عرضية\",'ادخال الاجازات'!H294,0)","v":0},{"$f":"IF('ادخال الاجازات'!I294=\"أبوه\",'ادخال الاجازات'!H294,0)","v":0},{"$f":"IF('ادخال الاجازات'!I294=\"حج\",'ادخال الاجازات'!H294,0)","v":0},{"$f":"IF('ادخال الاجازات'!I294=\"بدون راتب\",'ادخال الاجازات'!H294,0)","v":0},{"$f":"IF('ادخال الاجازات'!I294=\"مرضية\",'ادخال الاجازات'!H294,0)","v":0}]
[{"$f":"IF('ادخال الاجازات'!I295=\"سنوية\",'ادخال الاجازات'!H295,0)","v":0},{"$f":"IF('ادخال الاجازات'!I295=\"عرضية\",'ادخال الاجازات'!H295,0)","v":0},{"$f":"IF('ادخال الاجازات'!I295=\"أبوه\",'ادخال الاجازات'!H295,0)","v":0},{"$f":"IF('ادخال الاجازات'!I295=\"حج\",'ادخال الاجازات'!H295,0)","v":0},{"$f":"IF('ادخال الاجازات'!I295=\"بدون راتب\",'ادخال الاجازات'!H295,0)","v":0},{"$f":"IF('ادخال الاجازات'!I295=\"مرضية\",'ادخال الاجازات'!H295,0)","v":0}]
[{"$f":"IF('ادخال الاجازات'!I296=\"سنوية\",'ادخال الاجازات'!H296,0)","v":0},{"$f":"IF('ادخال الاجازات'!I296=\"عرضية\",'ادخال الاجازات'!H296,0)","v":0},{"$f":"IF('ادخال الاجازات'!I296=\"أبوه\",'ادخال الاجازات'!H296,0)","v":0},{"$f":"IF('ادخال الاجازات'!I296=\"حج\",'ادخال الاجازات'!H296,0)","v":0},{"$f":"IF('ادخال الاجازات'!I296=\"بدون راتب\",'ادخال الاجازات'!H296,0)","v":0},{"$f":"IF('ادخال الاجازات'!I296=\"مرضية\",'ادخال الاجازات'!H296,0)","v":0}]
[{"$f":"IF('ادخال الاجازات'!I297=\"سنوية\",'ادخال الاجازات'!H297,0)","v":0},{"$f":"IF('ادخال الاجازات'!I297=\"عرضية\",'ادخال الاجازات'!H297,0)","v":0},{"$f":"IF('ادخال الاجازات'!I297=\"أبوه\",'ادخال الاجازات'!H297,0)","v":0},{"$f":"IF('ادخال الاجازات'!I297=\"حج\",'ادخال الاجازات'!H297,0)","v":0},{"$f":"IF('ادخال الاجازات'!I297=\"بدون راتب\",'ادخال الاجازات'!H297,0)","v":0},{"$f":"IF('ادخال الاجازات'!I297=\"مرضية\",'ادخال الاجازات'!H297,0)","v":0}]
[{"$f":"IF('ادخال الاجازات'!I298=\"سنوية\",'ادخال الاجازات'!H298,0)","v":0},{"$f":"IF('ادخال الاجازات'!I298=\"عرضية\",'ادخال الاجازات'!H298,0)","v":0},{"$f":"IF('ادخال الاجازات'!I298=\"أبوه\",'ادخال الاجازات'!H298,0)","v":0},{"$f":"IF('ادخال الاجازات'!I298=\"حج\",'ادخال الاجازات'!H298,0)","v":0},{"$f":"IF('ادخال الاجازات'!I298=\"بدون راتب\",'ادخال الاجازات'!H298,0)","v":0},{"$f":"IF('ادخال الاجازات'!I298=\"مرضية\",'ادخال الاجازات'!H298,0)","v":0}]
[{"$f":"IF('ادخال الاجازات'!I299=\"سنوية\",'ادخال الاجازات'!H299,0)","v":0},{"$f":"IF('ادخال الاجازات'!I299=\"عرضية\",'ادخال الاجازات'!H299,0)","v":0},{"$f":"IF('ادخال الاجازات'!I299=\"أبوه\",'ادخال الاجازات'!H299,0)","v":0},{"$f":"IF('ادخال الاجازات'!I299=\"حج\",'ادخال الاجازات'!H299,0)","v":0},{"$f":"IF('ادخال الاجازات'!I299=\"بدون راتب\",'ادخال الاجازات'!H299,0)","v":0},{"$f":"IF('ادخال الاجازات'!I299=\"مرضية\",'ادخال الاجازات'!H299,0)","v":0}]
[{"$f":"IF('ادخال الاجازات'!I300=\"سنوية\",'ادخال الاجازات'!H300,0)","v":0},{"$f":"IF('ادخال الاجازات'!I300=\"عرضية\",'ادخال الاجازات'!H300,0)","v":0},{"$f":"IF('ادخال الاجازات'!I300=\"أبوه\",'ادخال الاجازات'!H300,0)","v":0},{"$f":"IF('ادخال الاجازات'!I300=\"حج\",'ادخال الاجازات'!H300,0)","v":0},{"$f":"IF('ادخال الاجازات'!I300=\"بدون راتب\",'ادخال الاجازات'!H300,0)","v":0},{"$f":"IF('ادخال الاجازات'!I300=\"مرضية\",'ادخال الاجازات'!H300,0)","v":0}]
[{"$f":"IF('ادخال الاجازات'!I301=\"سنوية\",'ادخال الاجازات'!H301,0)","v":0},{"$f":"IF('ادخال الاجازات'!I301=\"عرضية\",'ادخال الاجازات'!H301,0)","v":0},{"$f":"IF('ادخال الاجازات'!I301=\"أبوه\",'ادخال الاجازات'!H301,0)","v":0},{"$f":"IF('ادخال الاجازات'!I301=\"حج\",'ادخال الاجازات'!H301,0)","v":0},{"$f":"IF('ادخال الاجازات'!I301=\"بدون راتب\",'ادخال الاجازات'!H301,0)","v":0},{"$f":"IF('ادخال الاجازات'!I301=\"مرضية\",'ادخال الاجازات'!H301,0)","v":0}]
[{"$f":"IF('ادخال الاجازات'!I302=\"سنوية\",'ادخال الاجازات'!H302,0)","v":0},{"$f":"IF('ادخال الاجازات'!I302=\"عرضية\",'ادخال الاجازات'!H302,0)","v":0},{"$f":"IF('ادخال الاجازات'!I302=\"أبوه\",'ادخال الاجازات'!H302,0)","v":0},{"$f":"IF('ادخال الاجازات'!I302=\"حج\",'ادخال الاجازات'!H302,0)","v":0},{"$f":"IF('ادخال الاجازات'!I302=\"بدون راتب\",'ادخال الاجازات'!H302,0)","v":0},{"$f":"IF('ادخال الاجازات'!I302=\"مرضية\",'ادخال الاجازات'!H302,0)","v":0}]
[{"$f":"IF('ادخال الاجازات'!I303=\"سنوية\",'ادخال الاجازات'!H303,0)","v":0},{"$f":"IF('ادخال الاجازات'!I303=\"عرضية\",'ادخال الاجازات'!H303,0)","v":0},{"$f":"IF('ادخال الاجازات'!I303=\"أبوه\",'ادخال الاجازات'!H303,0)","v":0},{"$f":"IF('ادخال الاجازات'!I303=\"حج\",'ادخال الاجازات'!H303,0)","v":0},{"$f":"IF('ادخال الاجازات'!I303=\"بدون راتب\",'ادخال الاجازات'!H303,0)","v":0},{"$f":"IF('ادخال الاجازات'!I303=\"مرضية\",'ادخال الاجازات'!H303,0)","v":0}]
[{"$f":"IF('ادخال الاجازات'!I304=\"سنوية\",'ادخال الاجازات'!H304,0)","v":0},{"$f":"IF('ادخال الاجازات'!I304=\"عرضية\",'ادخال الاجازات'!H304,0)","v":0},{"$f":"IF('ادخال الاجازات'!I304=\"أبوه\",'ادخال الاجازات'!H304,0)","v":0},{"$f":"IF('ادخال الاجازات'!I304=\"حج\",'ادخال الاجازات'!H304,0)","v":0},{"$f":"IF('ادخال الاجازات'!I304=\"بدون راتب\",'ادخال الاجازات'!H304,0)","v":0},{"$f":"IF('ادخال الاجازات'!I304=\"مرضية\",'ادخال الاجازات'!H304,0)","v":0}]
[{"$f":"IF('ادخال الاجازات'!I305=\"سنوية\",'ادخال الاجازات'!H305,0)","v":0},{"$f":"IF('ادخال الاجازات'!I305=\"عرضية\",'ادخال الاجازات'!H305,0)","v":0},{"$f":"IF('ادخال الاجازات'!I305=\"أبوه\",'ادخال الاجازات'!H305,0)","v":0},{"$f":"IF('ادخال الاجازات'!I305=\"حج\",'ادخال الاجازات'!H305,0)","v":0},{"$f":"IF('ادخال الاجازات'!I305=\"بدون راتب\",'ادخال الاجازات'!H305,0)","v":0},{"$f":"IF('ادخال الاجازات'!I305=\"مرضية\",'ادخال الاجازات'!H305,0)","v":0}]
[{"$f":"IF('ادخال الاجازات'!I306=\"سنوية\",'ادخال الاجازات'!H306,0)","v":0},{"$f":"IF('ادخال الاجازات'!I306=\"عرضية\",'ادخال الاجازات'!H306,0)","v":0},{"$f":"IF('ادخال الاجازات'!I306=\"أبوه\",'ادخال الاجازات'!H306,0)","v":0},{"$f":"IF('ادخال الاجازات'!I306=\"حج\",'ادخال الاجازات'!H306,0)","v":0},{"$f":"IF('ادخال الاجازات'!I306=\"بدون راتب\",'ادخال الاجازات'!H306,0)","v":0},{"$f":"IF('ادخال الاجازات'!I306=\"مرضية\",'ادخال الاجازات'!H306,0)","v":0}]
[{"$f":"IF('ادخال الاجازات'!I307=\"سنوية\",'ادخال الاجازات'!H307,0)","v":0},{"$f":"IF('ادخال الاجازات'!I307=\"عرضية\",'ادخال الاجازات'!H307,0)","v":0},{"$f":"IF('ادخال الاجازات'!I307=\"أبوه\",'ادخال الاجازات'!H307,0)","v":0},{"$f":"IF('ادخال الاجازات'!I307=\"حج\",'ادخال الاجازات'!H307,0)","v":0},{"$f":"IF('ادخال الاجازات'!I307=\"بدون راتب\",'ادخال الاجازات'!H307,0)","v":0},{"$f":"IF('ادخال الاجازات'!I307=\"مرضية\",'ادخال الاجازات'!H307,0)","v":0}]
[{"$f":"IF('ادخال الاجازات'!I308=\"سنوية\",'ادخال الاجازات'!H308,0)","v":0},{"$f":"IF('ادخال الاجازات'!I308=\"عرضية\",'ادخال الاجازات'!H308,0)","v":0},{"$f":"IF('ادخال الاجازات'!I308=\"أبوه\",'ادخال الاجازات'!H308,0)","v":0},{"$f":"IF('ادخال الاجازات'!I308=\"حج\",'ادخال الاجازات'!H308,0)","v":0},{"$f":"IF('ادخال الاجازات'!I308=\"بدون راتب\",'ادخال الاجازات'!H308,0)","v":0},{"$f":"IF('ادخال الاجازات'!I308=\"مرضية\",'ادخال الاجازات'!H308,0)","v":0}]
[{"$f":"IF('ادخال الاجازات'!I309=\"سنوية\",'ادخال الاجازات'!H309,0)","v":0},{"$f":"IF('ادخال الاجازات'!I309=\"عرضية\",'ادخال الاجازات'!H309,0)","v":0},{"$f":"IF('ادخال الاجازات'!I309=\"أبوه\",'ادخال الاجازات'!H309,0)","v":0},{"$f":"IF('ادخال الاجازات'!I309=\"حج\",'ادخال الاجازات'!H309,0)","v":0},{"$f":"IF('ادخال الاجازات'!I309=\"بدون راتب\",'ادخال الاجازات'!H309,0)","v":0},{"$f":"IF('ادخال الاجازات'!I309=\"مرضية\",'ادخال الاجازات'!H309,0)","v":0}]
[{"$f":"IF('ادخال الاجازات'!I310=\"سنوية\",'ادخال الاجازات'!H310,0)","v":0},{"$f":"IF('ادخال الاجازات'!I310=\"عرضية\",'ادخال الاجازات'!H310,0)","v":0},{"$f":"IF('ادخال الاجازات'!I310=\"أبوه\",'ادخال الاجازات'!H310,0)","v":0},{"$f":"IF('ادخال الاجازات'!I310=\"حج\",'ادخال الاجازات'!H310,0)","v":0},{"$f":"IF('ادخال الاجازات'!I310=\"بدون راتب\",'ادخال الاجازات'!H310,0)","v":0},{"$f":"IF('ادخال الاجازات'!I310=\"مرضية\",'ادخال الاجازات'!H310,0)","v":0}]
[{"$f":"IF('ادخال الاجازات'!I311=\"سنوية\",'ادخال الاجازات'!H311,0)","v":0},{"$f":"IF('ادخال الاجازات'!I311=\"عرضية\",'ادخال الاجازات'!H311,0)","v":0},{"$f":"IF('ادخال الاجازات'!I311=\"أبوه\",'ادخال الاجازات'!H311,0)","v":0},{"$f":"IF('ادخال الاجازات'!I311=\"حج\",'ادخال الاجازات'!H311,0)","v":0},{"$f":"IF('ادخال الاجازات'!I311=\"بدون راتب\",'ادخال الاجازات'!H311,0)","v":0},{"$f":"IF('ادخال الاجازات'!I311=\"مرضية\",'ادخال الاجازات'!H311,0)","v":0}]
[{"$f":"IF('ادخال الاجازات'!I312=\"سنوية\",'ادخال الاجازات'!H312,0)","v":0},{"$f":"IF('ادخال الاجازات'!I312=\"عرضية\",'ادخال الاجازات'!H312,0)","v":0},{"$f":"IF('ادخال الاجازات'!I312=\"أبوه\",'ادخال الاجازات'!H312,0)","v":0},{"$f":"IF('ادخال الاجازات'!I312=\"حج\",'ادخال الاجازات'!H312,0)","v":0},{"$f":"IF('ادخال الاجازات'!I312=\"بدون راتب\",'ادخال الاجازات'!H312,0)","v":0},{"$f":"IF('ادخال الاجازات'!I312=\"مرضية\",'ادخال الاجازات'!H312,0)","v":0}]
[{"$f":"IF('ادخال الاجازات'!I313=\"سنوية\",'ادخال الاجازات'!H313,0)","v":0},{"$f":"IF('ادخال الاجازات'!I313=\"عرضية\",'ادخال الاجازات'!H313,0)","v":0},{"$f":"IF('ادخال الاجازات'!I313=\"أبوه\",'ادخال الاجازات'!H313,0)","v":0},{"$f":"IF('ادخال الاجازات'!I313=\"حج\",'ادخال الاجازات'!H313,0)","v":0},{"$f":"IF('ادخال الاجازات'!I313=\"بدون راتب\",'ادخال الاجازات'!H313,0)","v":0},{"$f":"IF('ادخال الاجازات'!I313=\"مرضية\",'ادخال الاجازات'!H313,0)","v":0}]
[{"$f":"IF('ادخال الاجازات'!I314=\"سنوية\",'ادخال الاجازات'!H314,0)","v":0},{"$f":"IF('ادخال الاجازات'!I314=\"عرضية\",'ادخال الاجازات'!H314,0)","v":0},{"$f":"IF('ادخال الاجازات'!I314=\"أبوه\",'ادخال الاجازات'!H314,0)","v":0},{"$f":"IF('ادخال الاجازات'!I314=\"حج\",'ادخال الاجازات'!H314,0)","v":0},{"$f":"IF('ادخال الاجازات'!I314=\"بدون راتب\",'ادخال الاجازات'!H314,0)","v":0},{"$f":"IF('ادخال الاجازات'!I314=\"مرضية\",'ادخال الاجازات'!H314,0)","v":0}]
[{"$f":"IF('ادخال الاجازات'!I315=\"سنوية\",'ادخال الاجازات'!H315,0)","v":0},{"$f":"IF('ادخال الاجازات'!I315=\"عرضية\",'ادخال الاجازات'!H315,0)","v":0},{"$f":"IF('ادخال الاجازات'!I315=\"أبوه\",'ادخال الاجازات'!H315,0)","v":0},{"$f":"IF('ادخال الاجازات'!I315=\"حج\",'ادخال الاجازات'!H315,0)","v":0},{"$f":"IF('ادخال الاجازات'!I315=\"بدون راتب\",'ادخال الاجازات'!H315,0)","v":0},{"$f":"IF('ادخال الاجازات'!I315=\"مرضية\",'ادخال الاجازات'!H315,0)","v":0}]
[{"$f":"IF('ادخال الاجازات'!I316=\"سنوية\",'ادخال الاجازات'!H316,0)","v":0},{"$f":"IF('ادخال الاجازات'!I316=\"عرضية\",'ادخال الاجازات'!H316,0)","v":0},{"$f":"IF('ادخال الاجازات'!I316=\"أبوه\",'ادخال الاجازات'!H316,0)","v":0},{"$f":"IF('ادخال الاجازات'!I316=\"حج\",'ادخال الاجازات'!H316,0)","v":0},{"$f":"IF('ادخال الاجازات'!I316=\"بدون راتب\",'ادخال الاجازات'!H316,0)","v":0},{"$f":"IF('ادخال الاجازات'!I316=\"مرضية\",'ادخال الاجازات'!H316,0)","v":0}]
[{"$f":"IF('ادخال الاجازات'!I317=\"سنوية\",'ادخال الاجازات'!H317,0)","v":0},{"$f":"IF('ادخال الاجازات'!I317=\"عرضية\",'ادخال الاجازات'!H317,0)","v":0},{"$f":"IF('ادخال الاجازات'!I317=\"أبوه\",'ادخال الاجازات'!H317,0)","v":0},{"$f":"IF('ادخال الاجازات'!I317=\"حج\",'ادخال الاجازات'!H317,0)","v":0},{"$f":"IF('ادخال الاجازات'!I317=\"بدون راتب\",'ادخال الاجازات'!H317,0)","v":0},{"$f":"IF('ادخال الاجازات'!I317=\"مرضية\",'ادخال الاجازات'!H317,0)","v":0}]
[{"$f":"IF('ادخال الاجازات'!I318=\"سنوية\",'ادخال الاجازات'!H318,0)","v":0},{"$f":"IF('ادخال الاجازات'!I318=\"عرضية\",'ادخال الاجازات'!H318,0)","v":0},{"$f":"IF('ادخال الاجازات'!I318=\"أبوه\",'ادخال الاجازات'!H318,0)","v":0},{"$f":"IF('ادخال الاجازات'!I318=\"حج\",'ادخال الاجازات'!H318,0)","v":0},{"$f":"IF('ادخال الاجازات'!I318=\"بدون راتب\",'ادخال الاجازات'!H318,0)","v":0},{"$f":"IF('ادخال الاجازات'!I318=\"مرضية\",'ادخال الاجازات'!H318,0)","v":0}]
[{"$f":"IF('ادخال الاجازات'!I319=\"سنوية\",'ادخال الاجازات'!H319,0)","v":0},{"$f":"IF('ادخال الاجازات'!I319=\"عرضية\",'ادخال الاجازات'!H319,0)","v":0},{"$f":"IF('ادخال الاجازات'!I319=\"أبوه\",'ادخال الاجازات'!H319,0)","v":0},{"$f":"IF('ادخال الاجازات'!I319=\"حج\",'ادخال الاجازات'!H319,0)","v":0},{"$f":"IF('ادخال الاجازات'!I319=\"بدون راتب\",'ادخال الاجازات'!H319,0)","v":0},{"$f":"IF('ادخال الاجازات'!I319=\"مرضية\",'ادخال الاجازات'!H319,0)","v":0}]
[{"$f":"IF('ادخال الاجازات'!I320=\"سنوية\",'ادخال الاجازات'!H320,0)","v":0},{"$f":"IF('ادخال الاجازات'!I320=\"عرضية\",'ادخال الاجازات'!H320,0)","v":0},{"$f":"IF('ادخال الاجازات'!I320=\"أبوه\",'ادخال الاجازات'!H320,0)","v":0},{"$f":"IF('ادخال الاجازات'!I320=\"حج\",'ادخال الاجازات'!H320,0)","v":0},{"$f":"IF('ادخال الاجازات'!I320=\"بدون راتب\",'ادخال الاجازات'!H320,0)","v":0},{"$f":"IF('ادخال الاجازات'!I320=\"مرضية\",'ادخال الاجازات'!H320,0)","v":0}]
[{"$f":"IF('ادخال الاجازات'!I321=\"سنوية\",'ادخال الاجازات'!H321,0)","v":0},{"$f":"IF('ادخال الاجازات'!I321=\"عرضية\",'ادخال الاجازات'!H321,0)","v":0},{"$f":"IF('ادخال الاجازات'!I321=\"أبوه\",'ادخال الاجازات'!H321,0)","v":0},{"$f":"IF('ادخال الاجازات'!I321=\"حج\",'ادخال الاجازات'!H321,0)","v":0},{"$f":"IF('ادخال الاجازات'!I321=\"بدون راتب\",'ادخال الاجازات'!H321,0)","v":0},{"$f":"IF('ادخال الاجازات'!I321=\"مرضية\",'ادخال الاجازات'!H321,0)","v":0}]
[{"$f":"IF('ادخال الاجازات'!I322=\"سنوية\",'ادخال الاجازات'!H322,0)","v":0},{"$f":"IF('ادخال الاجازات'!I322=\"عرضية\",'ادخال الاجازات'!H322,0)","v":0},{"$f":"IF('ادخال الاجازات'!I322=\"أبوه\",'ادخال الاجازات'!H322,0)","v":0},{"$f":"IF('ادخال الاجازات'!I322=\"حج\",'ادخال الاجازات'!H322,0)","v":0},{"$f":"IF('ادخال الاجازات'!I322=\"بدون راتب\",'ادخال الاجازات'!H322,0)","v":0},{"$f":"IF('ادخال الاجازات'!I322=\"مرضية\",'ادخال الاجازات'!H322,0)","v":0}]
[{"$f":"IF('ادخال الاجازات'!I323=\"سنوية\",'ادخال الاجازات'!H323,0)","v":0},{"$f":"IF('ادخال الاجازات'!I323=\"عرضية\",'ادخال الاجازات'!H323,0)","v":0},{"$f":"IF('ادخال الاجازات'!I323=\"أبوه\",'ادخال الاجازات'!H323,0)","v":0},{"$f":"IF('ادخال الاجازات'!I323=\"حج\",'ادخال الاجازات'!H323,0)","v":0},{"$f":"IF('ادخال الاجازات'!I323=\"بدون راتب\",'ادخال الاجازات'!H323,0)","v":0},{"$f":"IF('ادخال الاجازات'!I323=\"مرضية\",'ادخال الاجازات'!H323,0)","v":0}]
[{"$f":"IF('ادخال الاجازات'!I324=\"سنوية\",'ادخال الاجازات'!H324,0)","v":0},{"$f":"IF('ادخال الاجازات'!I324=\"عرضية\",'ادخال الاجازات'!H324,0)","v":0},{"$f":"IF('ادخال الاجازات'!I324=\"أبوه\",'ادخال الاجازات'!H324,0)","v":0},{"$f":"IF('ادخال الاجازات'!I324=\"حج\",'ادخال الاجازات'!H324,0)","v":0},{"$f":"IF('ادخال الاجازات'!I324=\"بدون راتب\",'ادخال الاجازات'!H324,0)","v":0},{"$f":"IF('ادخال الاجازات'!I324=\"مرضية\",'ادخال الاجازات'!H324,0)","v":0}]
[{"$f":"IF('ادخال الاجازات'!I325=\"سنوية\",'ادخال الاجازات'!H325,0)","v":0},{"$f":"IF('ادخال الاجازات'!I325=\"عرضية\",'ادخال الاجازات'!H325,0)","v":0},{"$f":"IF('ادخال الاجازات'!I325=\"أبوه\",'ادخال الاجازات'!H325,0)","v":0},{"$f":"IF('ادخال الاجازات'!I325=\"حج\",'ادخال الاجازات'!H325,0)","v":0},{"$f":"IF('ادخال الاجازات'!I325=\"بدون راتب\",'ادخال الاجازات'!H325,0)","v":0},{"$f":"IF('ادخال الاجازات'!I325=\"مرضية\",'ادخال الاجازات'!H325,0)","v":0}]
[{"$f":"IF('ادخال الاجازات'!I326=\"سنوية\",'ادخال الاجازات'!H326,0)","v":0},{"$f":"IF('ادخال الاجازات'!I326=\"عرضية\",'ادخال الاجازات'!H326,0)","v":0},{"$f":"IF('ادخال الاجازات'!I326=\"أبوه\",'ادخال الاجازات'!H326,0)","v":0},{"$f":"IF('ادخال الاجازات'!I326=\"حج\",'ادخال الاجازات'!H326,0)","v":0},{"$f":"IF('ادخال الاجازات'!I326=\"بدون راتب\",'ادخال الاجازات'!H326,0)","v":0},{"$f":"IF('ادخال الاجازات'!I326=\"مرضية\",'ادخال الاجازات'!H326,0)","v":0}]
[{"$f":"IF('ادخال الاجازات'!I327=\"سنوية\",'ادخال الاجازات'!H327,0)","v":0},{"$f":"IF('ادخال الاجازات'!I327=\"عرضية\",'ادخال الاجازات'!H327,0)","v":0},{"$f":"IF('ادخال الاجازات'!I327=\"أبوه\",'ادخال الاجازات'!H327,0)","v":0},{"$f":"IF('ادخال الاجازات'!I327=\"حج\",'ادخال الاجازات'!H327,0)","v":0},{"$f":"IF('ادخال الاجازات'!I327=\"بدون راتب\",'ادخال الاجازات'!H327,0)","v":0},{"$f":"IF('ادخال الاجازات'!I327=\"مرضية\",'ادخال الاجازات'!H327,0)","v":0}]
[{"$f":"IF('ادخال الاجازات'!I328=\"سنوية\",'ادخال الاجازات'!H328,0)","v":0},{"$f":"IF('ادخال الاجازات'!I328=\"عرضية\",'ادخال الاجازات'!H328,0)","v":0},{"$f":"IF('ادخال الاجازات'!I328=\"أبوه\",'ادخال الاجازات'!H328,0)","v":0},{"$f":"IF('ادخال الاجازات'!I328=\"حج\",'ادخال الاجازات'!H328,0)","v":0},{"$f":"IF('ادخال الاجازات'!I328=\"بدون راتب\",'ادخال الاجازات'!H328,0)","v":0},{"$f":"IF('ادخال الاجازات'!I328=\"مرضية\",'ادخال الاجازات'!H328,0)","v":0}]
[{"$f":"IF('ادخال الاجازات'!I329=\"سنوية\",'ادخال الاجازات'!H329,0)","v":0},{"$f":"IF('ادخال الاجازات'!I329=\"عرضية\",'ادخال الاجازات'!H329,0)","v":0},{"$f":"IF('ادخال الاجازات'!I329=\"أبوه\",'ادخال الاجازات'!H329,0)","v":0},{"$f":"IF('ادخال الاجازات'!I329=\"حج\",'ادخال الاجازات'!H329,0)","v":0},{"$f":"IF('ادخال الاجازات'!I329=\"بدون راتب\",'ادخال الاجازات'!H329,0)","v":0},{"$f":"IF('ادخال الاجازات'!I329=\"مرضية\",'ادخال الاجازات'!H329,0)","v":0}]
[{"$f":"IF('ادخال الاجازات'!I330=\"سنوية\",'ادخال الاجازات'!H330,0)","v":0},{"$f":"IF('ادخال الاجازات'!I330=\"عرضية\",'ادخال الاجازات'!H330,0)","v":0},{"$f":"IF('ادخال الاجازات'!I330=\"أبوه\",'ادخال الاجازات'!H330,0)","v":0},{"$f":"IF('ادخال الاجازات'!I330=\"حج\",'ادخال الاجازات'!H330,0)","v":0},{"$f":"IF('ادخال الاجازات'!I330=\"بدون راتب\",'ادخال الاجازات'!H330,0)","v":0},{"$f":"IF('ادخال الاجازات'!I330=\"مرضية\",'ادخال الاجازات'!H330,0)","v":0}]
[{"$f":"IF('ادخال الاجازات'!I331=\"سنوية\",'ادخال الاجازات'!H331,0)","v":0},{"$f":"IF('ادخال الاجازات'!I331=\"عرضية\",'ادخال الاجازات'!H331,0)","v":0},{"$f":"IF('ادخال الاجازات'!I331=\"أبوه\",'ادخال الاجازات'!H331,0)","v":0},{"$f":"IF('ادخال الاجازات'!I331=\"حج\",'ادخال الاجازات'!H331,0)","v":0},{"$f":"IF('ادخال الاجازات'!I331=\"بدون راتب\",'ادخال الاجازات'!H331,0)","v":0},{"$f":"IF('ادخال الاجازات'!I331=\"مرضية\",'ادخال الاجازات'!H331,0)","v":0}]
[{"$f":"IF('ادخال الاجازات'!I332=\"سنوية\",'ادخال الاجازات'!H332,0)","v":0},{"$f":"IF('ادخال الاجازات'!I332=\"عرضية\",'ادخال الاجازات'!H332,0)","v":0},{"$f":"IF('ادخال الاجازات'!I332=\"أبوه\",'ادخال الاجازات'!H332,0)","v":0},{"$f":"IF('ادخال الاجازات'!I332=\"حج\",'ادخال الاجازات'!H332,0)","v":0},{"$f":"IF('ادخال الاجازات'!I332=\"بدون راتب\",'ادخال الاجازات'!H332,0)","v":0},{"$f":"IF('ادخال الاجازات'!I332=\"مرضية\",'ادخال الاجازات'!H332,0)","v":0}]
[{"$f":"IF('ادخال الاجازات'!I333=\"سنوية\",'ادخال الاجازات'!H333,0)","v":0},{"$f":"IF('ادخال الاجازات'!I333=\"عرضية\",'ادخال الاجازات'!H333,0)","v":0},{"$f":"IF('ادخال الاجازات'!I333=\"أبوه\",'ادخال الاجازات'!H333,0)","v":0},{"$f":"IF('ادخال الاجازات'!I333=\"حج\",'ادخال الاجازات'!H333,0)","v":0},{"$f":"IF('ادخال الاجازات'!I333=\"بدون راتب\",'ادخال الاجازات'!H333,0)","v":0},{"$f":"IF('ادخال الاجازات'!I333=\"مرضية\",'ادخال الاجازات'!H333,0)","v":0}]
[{"$f":"IF('ادخال الاجازات'!I334=\"سنوية\",'ادخال الاجازات'!H334,0)","v":0},{"$f":"IF('ادخال الاجازات'!I334=\"عرضية\",'ادخال الاجازات'!H334,0)","v":0},{"$f":"IF('ادخال الاجازات'!I334=\"أبوه\",'ادخال الاجازات'!H334,0)","v":0},{"$f":"IF('ادخال الاجازات'!I334=\"حج\",'ادخال الاجازات'!H334,0)","v":0},{"$f":"IF('ادخال الاجازات'!I334=\"بدون راتب\",'ادخال الاجازات'!H334,0)","v":0},{"$f":"IF('ادخال الاجازات'!I334=\"مرضية\",'ادخال الاجازات'!H334,0)","v":0}]
[{"$f":"IF('ادخال الاجازات'!I335=\"سنوية\",'ادخال الاجازات'!H335,0)","v":0},{"$f":"IF('ادخال الاجازات'!I335=\"عرضية\",'ادخال الاجازات'!H335,0)","v":0},{"$f":"IF('ادخال الاجازات'!I335=\"أبوه\",'ادخال الاجازات'!H335,0)","v":0},{"$f":"IF('ادخال الاجازات'!I335=\"حج\",'ادخال الاجازات'!H335,0)","v":0},{"$f":"IF('ادخال الاجازات'!I335=\"بدون راتب\",'ادخال الاجازات'!H335,0)","v":0},{"$f":"IF('ادخال الاجازات'!I335=\"مرضية\",'ادخال الاجازات'!H335,0)","v":0}]
[{"$f":"IF('ادخال الاجازات'!I336=\"سنوية\",'ادخال الاجازات'!H336,0)","v":0},{"$f":"IF('ادخال الاجازات'!I336=\"عرضية\",'ادخال الاجازات'!H336,0)","v":0},{"$f":"IF('ادخال الاجازات'!I336=\"أبوه\",'ادخال الاجازات'!H336,0)","v":0},{"$f":"IF('ادخال الاجازات'!I336=\"حج\",'ادخال الاجازات'!H336,0)","v":0},{"$f":"IF('ادخال الاجازات'!I336=\"بدون راتب\",'ادخال الاجازات'!H336,0)","v":0},{"$f":"IF('ادخال الاجازات'!I336=\"مرضية\",'ادخال الاجازات'!H336,0)","v":0}]
[{"$f":"IF('ادخال الاجازات'!I337=\"سنوية\",'ادخال الاجازات'!H337,0)","v":0},{"$f":"IF('ادخال الاجازات'!I337=\"عرضية\",'ادخال الاجازات'!H337,0)","v":0},{"$f":"IF('ادخال الاجازات'!I337=\"أبوه\",'ادخال الاجازات'!H337,0)","v":0},{"$f":"IF('ادخال الاجازات'!I337=\"حج\",'ادخال الاجازات'!H337,0)","v":0},{"$f":"IF('ادخال الاجازات'!I337=\"بدون راتب\",'ادخال الاجازات'!H337,0)","v":0},{"$f":"IF('ادخال الاجازات'!I337=\"مرضية\",'ادخال الاجازات'!H337,0)","v":0}]
[{"$f":"IF('ادخال الاجازات'!I338=\"سنوية\",'ادخال الاجازات'!H338,0)","v":0},{"$f":"IF('ادخال الاجازات'!I338=\"عرضية\",'ادخال الاجازات'!H338,0)","v":0},{"$f":"IF('ادخال الاجازات'!I338=\"أبوه\",'ادخال الاجازات'!H338,0)","v":0},{"$f":"IF('ادخال الاجازات'!I338=\"حج\",'ادخال الاجازات'!H338,0)","v":0},{"$f":"IF('ادخال الاجازات'!I338=\"بدون راتب\",'ادخال الاجازات'!H338,0)","v":0},{"$f":"IF('ادخال الاجازات'!I338=\"مرضية\",'ادخال الاجازات'!H338,0)","v":0}]
[{"$f":"IF('ادخال الاجازات'!I339=\"سنوية\",'ادخال الاجازات'!H339,0)","v":0},{"$f":"IF('ادخال الاجازات'!I339=\"عرضية\",'ادخال الاجازات'!H339,0)","v":0},{"$f":"IF('ادخال الاجازات'!I339=\"أبوه\",'ادخال الاجازات'!H339,0)","v":0},{"$f":"IF('ادخال الاجازات'!I339=\"حج\",'ادخال الاجازات'!H339,0)","v":0},{"$f":"IF('ادخال الاجازات'!I339=\"بدون راتب\",'ادخال الاجازات'!H339,0)","v":0},{"$f":"IF('ادخال الاجازات'!I339=\"مرضية\",'ادخال الاجازات'!H339,0)","v":0}]
[{"$f":"IF('ادخال الاجازات'!I340=\"سنوية\",'ادخال الاجازات'!H340,0)","v":0},{"$f":"IF('ادخال الاجازات'!I340=\"عرضية\",'ادخال الاجازات'!H340,0)","v":0},{"$f":"IF('ادخال الاجازات'!I340=\"أبوه\",'ادخال الاجازات'!H340,0)","v":0},{"$f":"IF('ادخال الاجازات'!I340=\"حج\",'ادخال الاجازات'!H340,0)","v":0},{"$f":"IF('ادخال الاجازات'!I340=\"بدون راتب\",'ادخال الاجازات'!H340,0)","v":0},{"$f":"IF('ادخال الاجازات'!I340=\"مرضية\",'ادخال الاجازات'!H340,0)","v":0}]
[{"$f":"IF('ادخال الاجازات'!I341=\"سنوية\",'ادخال الاجازات'!H341,0)","v":0},{"$f":"IF('ادخال الاجازات'!I341=\"عرضية\",'ادخال الاجازات'!H341,0)","v":0},{"$f":"IF('ادخال الاجازات'!I341=\"أبوه\",'ادخال الاجازات'!H341,0)","v":0},{"$f":"IF('ادخال الاجازات'!I341=\"حج\",'ادخال الاجازات'!H341,0)","v":0},{"$f":"IF('ادخال الاجازات'!I341=\"بدون راتب\",'ادخال الاجازات'!H341,0)","v":0},{"$f":"IF('ادخال الاجازات'!I341=\"مرضية\",'ادخال الاجازات'!H341,0)","v":0}]
[{"$f":"IF('ادخال الاجازات'!I342=\"سنوية\",'ادخال الاجازات'!H342,0)","v":0},{"$f":"IF('ادخال الاجازات'!I342=\"عرضية\",'ادخال الاجازات'!H342,0)","v":0},{"$f":"IF('ادخال الاجازات'!I342=\"أبوه\",'ادخال الاجازات'!H342,0)","v":0},{"$f":"IF('ادخال الاجازات'!I342=\"حج\",'ادخال الاجازات'!H342,0)","v":0},{"$f":"IF('ادخال الاجازات'!I342=\"بدون راتب\",'ادخال الاجازات'!H342,0)","v":0},{"$f":"IF('ادخال الاجازات'!I342=\"مرضية\",'ادخال الاجازات'!H342,0)","v":0}]
[{"$f":"IF('ادخال الاجازات'!I343=\"سنوية\",'ادخال الاجازات'!H343,0)","v":0},{"$f":"IF('ادخال الاجازات'!I343=\"عرضية\",'ادخال الاجازات'!H343,0)","v":0},{"$f":"IF('ادخال الاجازات'!I343=\"أبوه\",'ادخال الاجازات'!H343,0)","v":0},{"$f":"IF('ادخال الاجازات'!I343=\"حج\",'ادخال الاجازات'!H343,0)","v":0},{"$f":"IF('ادخال الاجازات'!I343=\"بدون راتب\",'ادخال الاجازات'!H343,0)","v":0},{"$f":"IF('ادخال الاجازات'!I343=\"مرضية\",'ادخال الاجازات'!H343,0)","v":0}]
[{"$f":"IF('ادخال الاجازات'!I344=\"سنوية\",'ادخال الاجازات'!H344,0)","v":0},{"$f":"IF('ادخال الاجازات'!I344=\"عرضية\",'ادخال الاجازات'!H344,0)","v":0},{"$f":"IF('ادخال الاجازات'!I344=\"أبوه\",'ادخال الاجازات'!H344,0)","v":0},{"$f":"IF('ادخال الاجازات'!I344=\"حج\",'ادخال الاجازات'!H344,0)","v":0},{"$f":"IF('ادخال الاجازات'!I344=\"بدون راتب\",'ادخال الاجازات'!H344,0)","v":0},{"$f":"IF('ادخال الاجازات'!I344=\"مرضية\",'ادخال الاجازات'!H344,0)","v":0}]
[{"$f":"IF('ادخال الاجازات'!I345=\"سنوية\",'ادخال الاجازات'!H345,0)","v":0},{"$f":"IF('ادخال الاجازات'!I345=\"عرضية\",'ادخال الاجازات'!H345,0)","v":0},{"$f":"IF('ادخال الاجازات'!I345=\"أبوه\",'ادخال الاجازات'!H345,0)","v":0},{"$f":"IF('ادخال الاجازات'!I345=\"حج\",'ادخال الاجازات'!H345,0)","v":0},{"$f":"IF('ادخال الاجازات'!I345=\"بدون راتب\",'ادخال الاجازات'!H345,0)","v":0},{"$f":"IF('ادخال الاجازات'!I345=\"مرضية\",'ادخال الاجازات'!H345,0)","v":0}]
[{"$f":"IF('ادخال الاجازات'!I346=\"سنوية\",'ادخال الاجازات'!H346,0)","v":0},{"$f":"IF('ادخال الاجازات'!I346=\"عرضية\",'ادخال الاجازات'!H346,0)","v":0},{"$f":"IF('ادخال الاجازات'!I346=\"أبوه\",'ادخال الاجازات'!H346,0)","v":0},{"$f":"IF('ادخال الاجازات'!I346=\"حج\",'ادخال الاجازات'!H346,0)","v":0},{"$f":"IF('ادخال الاجازات'!I346=\"بدون راتب\",'ادخال الاجازات'!H346,0)","v":0},{"$f":"IF('ادخال الاجازات'!I346=\"مرضية\",'ادخال الاجازات'!H346,0)","v":0}]
[{"$f":"IF('ادخال الاجازات'!I347=\"سنوية\",'ادخال الاجازات'!H347,0)","v":0},{"$f":"IF('ادخال الاجازات'!I347=\"عرضية\",'ادخال الاجازات'!H347,0)","v":0},{"$f":"IF('ادخال الاجازات'!I347=\"أبوه\",'ادخال الاجازات'!H347,0)","v":0},{"$f":"IF('ادخال الاجازات'!I347=\"حج\",'ادخال الاجازات'!H347,0)","v":0},{"$f":"IF('ادخال الاجازات'!I347=\"بدون راتب\",'ادخال الاجازات'!H347,0)","v":0},{"$f":"IF('ادخال الاجازات'!I347=\"مرضية\",'ادخال الاجازات'!H347,0)","v":0}]
[{"$f":"IF('ادخال الاجازات'!I348=\"سنوية\",'ادخال الاجازات'!H348,0)","v":0},{"$f":"IF('ادخال الاجازات'!I348=\"عرضية\",'ادخال الاجازات'!H348,0)","v":0},{"$f":"IF('ادخال الاجازات'!I348=\"أبوه\",'ادخال الاجازات'!H348,0)","v":0},{"$f":"IF('ادخال الاجازات'!I348=\"حج\",'ادخال الاجازات'!H348,0)","v":0},{"$f":"IF('ادخال الاجازات'!I348=\"بدون راتب\",'ادخال الاجازات'!H348,0)","v":0},{"$f":"IF('ادخال الاجازات'!I348=\"مرضية\",'ادخال الاجازات'!H348,0)","v":0}]
[{"$f":"IF('ادخال الاجازات'!I349=\"سنوية\",'ادخال الاجازات'!H349,0)","v":0},{"$f":"IF('ادخال الاجازات'!I349=\"عرضية\",'ادخال الاجازات'!H349,0)","v":0},{"$f":"IF('ادخال الاجازات'!I349=\"أبوه\",'ادخال الاجازات'!H349,0)","v":0},{"$f":"IF('ادخال الاجازات'!I349=\"حج\",'ادخال الاجازات'!H349,0)","v":0},{"$f":"IF('ادخال الاجازات'!I349=\"بدون راتب\",'ادخال الاجازات'!H349,0)","v":0},{"$f":"IF('ادخال الاجازات'!I349=\"مرضية\",'ادخال الاجازات'!H349,0)","v":0}]
[{"$f":"IF('ادخال الاجازات'!I350=\"سنوية\",'ادخال الاجازات'!H350,0)","v":0},{"$f":"IF('ادخال الاجازات'!I350=\"عرضية\",'ادخال الاجازات'!H350,0)","v":0},{"$f":"IF('ادخال الاجازات'!I350=\"أبوه\",'ادخال الاجازات'!H350,0)","v":0},{"$f":"IF('ادخال الاجازات'!I350=\"حج\",'ادخال الاجازات'!H350,0)","v":0},{"$f":"IF('ادخال الاجازات'!I350=\"بدون راتب\",'ادخال الاجازات'!H350,0)","v":0},{"$f":"IF('ادخال الاجازات'!I350=\"مرضية\",'ادخال الاجازات'!H350,0)","v":0}]
[{"$f":"IF('ادخال الاجازات'!I351=\"سنوية\",'ادخال الاجازات'!H351,0)","v":0},{"$f":"IF('ادخال الاجازات'!I351=\"عرضية\",'ادخال الاجازات'!H351,0)","v":0},{"$f":"IF('ادخال الاجازات'!I351=\"أبوه\",'ادخال الاجازات'!H351,0)","v":0},{"$f":"IF('ادخال الاجازات'!I351=\"حج\",'ادخال الاجازات'!H351,0)","v":0},{"$f":"IF('ادخال الاجازات'!I351=\"بدون راتب\",'ادخال الاجازات'!H351,0)","v":0},{"$f":"IF('ادخال الاجازات'!I351=\"مرضية\",'ادخال الاجازات'!H351,0)","v":0}]
[{"$f":"IF('ادخال الاجازات'!I352=\"سنوية\",'ادخال الاجازات'!H352,0)","v":0},{"$f":"IF('ادخال الاجازات'!I352=\"عرضية\",'ادخال الاجازات'!H352,0)","v":0},{"$f":"IF('ادخال الاجازات'!I352=\"أبوه\",'ادخال الاجازات'!H352,0)","v":0},{"$f":"IF('ادخال الاجازات'!I352=\"حج\",'ادخال الاجازات'!H352,0)","v":0},{"$f":"IF('ادخال الاجازات'!I352=\"بدون راتب\",'ادخال الاجازات'!H352,0)","v":0},{"$f":"IF('ادخال الاجازات'!I352=\"مرضية\",'ادخال الاجازات'!H352,0)","v":0}]
[{"$f":"IF('ادخال الاجازات'!I353=\"سنوية\",'ادخال الاجازات'!H353,0)","v":0},{"$f":"IF('ادخال الاجازات'!I353=\"عرضية\",'ادخال الاجازات'!H353,0)","v":0},{"$f":"IF('ادخال الاجازات'!I353=\"أبوه\",'ادخال الاجازات'!H353,0)","v":0},{"$f":"IF('ادخال الاجازات'!I353=\"حج\",'ادخال الاجازات'!H353,0)","v":0},{"$f":"IF('ادخال الاجازات'!I353=\"بدون راتب\",'ادخال الاجازات'!H353,0)","v":0},{"$f":"IF('ادخال الاجازات'!I353=\"مرضية\",'ادخال الاجازات'!H353,0)","v":0}]
[{"$f":"IF('ادخال الاجازات'!I354=\"سنوية\",'ادخال الاجازات'!H354,0)","v":0},{"$f":"IF('ادخال الاجازات'!I354=\"عرضية\",'ادخال الاجازات'!H354,0)","v":0},{"$f":"IF('ادخال الاجازات'!I354=\"أبوه\",'ادخال الاجازات'!H354,0)","v":0},{"$f":"IF('ادخال الاجازات'!I354=\"حج\",'ادخال الاجازات'!H354,0)","v":0},{"$f":"IF('ادخال الاجازات'!I354=\"بدون راتب\",'ادخال الاجازات'!H354,0)","v":0},{"$f":"IF('ادخال الاجازات'!I354=\"مرضية\",'ادخال الاجازات'!H354,0)","v":0}]
[{"$f":"IF('ادخال الاجازات'!I355=\"سنوية\",'ادخال الاجازات'!H355,0)","v":0},{"$f":"IF('ادخال الاجازات'!I355=\"عرضية\",'ادخال الاجازات'!H355,0)","v":0},{"$f":"IF('ادخال الاجازات'!I355=\"أبوه\",'ادخال الاجازات'!H355,0)","v":0},{"$f":"IF('ادخال الاجازات'!I355=\"حج\",'ادخال الاجازات'!H355,0)","v":0},{"$f":"IF('ادخال الاجازات'!I355=\"بدون راتب\",'ادخال الاجازات'!H355,0)","v":0},{"$f":"IF('ادخال الاجازات'!I355=\"مرضية\",'ادخال الاجازات'!H355,0)","v":0}]
[{"$f":"IF('ادخال الاجازات'!I356=\"سنوية\",'ادخال الاجازات'!H356,0)","v":0},{"$f":"IF('ادخال الاجازات'!I356=\"عرضية\",'ادخال الاجازات'!H356,0)","v":0},{"$f":"IF('ادخال الاجازات'!I356=\"أبوه\",'ادخال الاجازات'!H356,0)","v":0},{"$f":"IF('ادخال الاجازات'!I356=\"حج\",'ادخال الاجازات'!H356,0)","v":0},{"$f":"IF('ادخال الاجازات'!I356=\"بدون راتب\",'ادخال الاجازات'!H356,0)","v":0},{"$f":"IF('ادخال الاجازات'!I356=\"مرضية\",'ادخال الاجازات'!H356,0)","v":0}]
[{"$f":"IF('ادخال الاجازات'!I357=\"سنوية\",'ادخال الاجازات'!H357,0)","v":0},{"$f":"IF('ادخال الاجازات'!I357=\"عرضية\",'ادخال الاجازات'!H357,0)","v":0},{"$f":"IF('ادخال الاجازات'!I357=\"أبوه\",'ادخال الاجازات'!H357,0)","v":0},{"$f":"IF('ادخال الاجازات'!I357=\"حج\",'ادخال الاجازات'!H357,0)","v":0},{"$f":"IF('ادخال الاجازات'!I357=\"بدون راتب\",'ادخال الاجازات'!H357,0)","v":0},{"$f":"IF('ادخال الاجازات'!I357=\"مرضية\",'ادخال الاجازات'!H357,0)","v":0}]
[{"$f":"IF('ادخال الاجازات'!I358=\"سنوية\",'ادخال الاجازات'!H358,0)","v":0},{"$f":"IF('ادخال الاجازات'!I358=\"عرضية\",'ادخال الاجازات'!H358,0)","v":0},{"$f":"IF('ادخال الاجازات'!I358=\"أبوه\",'ادخال الاجازات'!H358,0)","v":0},{"$f":"IF('ادخال الاجازات'!I358=\"حج\",'ادخال الاجازات'!H358,0)","v":0},{"$f":"IF('ادخال الاجازات'!I358=\"بدون راتب\",'ادخال الاجازات'!H358,0)","v":0},{"$f":"IF('ادخال الاجازات'!I358=\"مرضية\",'ادخال الاجازات'!H358,0)","v":0}]
[{"$f":"IF('ادخال الاجازات'!I359=\"سنوية\",'ادخال الاجازات'!H359,0)","v":0},{"$f":"IF('ادخال الاجازات'!I359=\"عرضية\",'ادخال الاجازات'!H359,0)","v":0},{"$f":"IF('ادخال الاجازات'!I359=\"أبوه\",'ادخال الاجازات'!H359,0)","v":0},{"$f":"IF('ادخال الاجازات'!I359=\"حج\",'ادخال الاجازات'!H359,0)","v":0},{"$f":"IF('ادخال الاجازات'!I359=\"بدون راتب\",'ادخال الاجازات'!H359,0)","v":0},{"$f":"IF('ادخال الاجازات'!I359=\"مرضية\",'ادخال الاجازات'!H359,0)","v":0}]
[{"$f":"IF('ادخال الاجازات'!I360=\"سنوية\",'ادخال الاجازات'!H360,0)","v":0},{"$f":"IF('ادخال الاجازات'!I360=\"عرضية\",'ادخال الاجازات'!H360,0)","v":0},{"$f":"IF('ادخال الاجازات'!I360=\"أبوه\",'ادخال الاجازات'!H360,0)","v":0},{"$f":"IF('ادخال الاجازات'!I360=\"حج\",'ادخال الاجازات'!H360,0)","v":0},{"$f":"IF('ادخال الاجازات'!I360=\"بدون راتب\",'ادخال الاجازات'!H360,0)","v":0},{"$f":"IF('ادخال الاجازات'!I360=\"مرضية\",'ادخال الاجازات'!H360,0)","v":0}]
[{"$f":"IF('ادخال الاجازات'!I361=\"سنوية\",'ادخال الاجازات'!H361,0)","v":0},{"$f":"IF('ادخال الاجازات'!I361=\"عرضية\",'ادخال الاجازات'!H361,0)","v":0},{"$f":"IF('ادخال الاجازات'!I361=\"أبوه\",'ادخال الاجازات'!H361,0)","v":0},{"$f":"IF('ادخال الاجازات'!I361=\"حج\",'ادخال الاجازات'!H361,0)","v":0},{"$f":"IF('ادخال الاجازات'!I361=\"بدون راتب\",'ادخال الاجازات'!H361,0)","v":0},{"$f":"IF('ادخال الاجازات'!I361=\"مرضية\",'ادخال الاجازات'!H361,0)","v":0}]
[{"$f":"IF('ادخال الاجازات'!I362=\"سنوية\",'ادخال الاجازات'!H362,0)","v":0},{"$f":"IF('ادخال الاجازات'!I362=\"عرضية\",'ادخال الاجازات'!H362,0)","v":0},{"$f":"IF('ادخال الاجازات'!I362=\"أبوه\",'ادخال الاجازات'!H362,0)","v":0},{"$f":"IF('ادخال الاجازات'!I362=\"حج\",'ادخال الاجازات'!H362,0)","v":0},{"$f":"IF('ادخال الاجازات'!I362=\"بدون راتب\",'ادخال الاجازات'!H362,0)","v":0},{"$f":"IF('ادخال الاجازات'!I362=\"مرضية\",'ادخال الاجازات'!H362,0)","v":0}]
[{"$f":"IF('ادخال الاجازات'!I363=\"سنوية\",'ادخال الاجازات'!H363,0)","v":0},{"$f":"IF('ادخال الاجازات'!I363=\"عرضية\",'ادخال الاجازات'!H363,0)","v":0},{"$f":"IF('ادخال الاجازات'!I363=\"أبوه\",'ادخال الاجازات'!H363,0)","v":0},{"$f":"IF('ادخال الاجازات'!I363=\"حج\",'ادخال الاجازات'!H363,0)","v":0},{"$f":"IF('ادخال الاجازات'!I363=\"بدون راتب\",'ادخال الاجازات'!H363,0)","v":0},{"$f":"IF('ادخال الاجازات'!I363=\"مرضية\",'ادخال الاجازات'!H363,0)","v":0}]
[{"$f":"IF('ادخال الاجازات'!I364=\"سنوية\",'ادخال الاجازات'!H364,0)","v":0},{"$f":"IF('ادخال الاجازات'!I364=\"عرضية\",'ادخال الاجازات'!H364,0)","v":0},{"$f":"IF('ادخال الاجازات'!I364=\"أبوه\",'ادخال الاجازات'!H364,0)","v":0},{"$f":"IF('ادخال الاجازات'!I364=\"حج\",'ادخال الاجازات'!H364,0)","v":0},{"$f":"IF('ادخال الاجازات'!I364=\"بدون راتب\",'ادخال الاجازات'!H364,0)","v":0},{"$f":"IF('ادخال الاجازات'!I364=\"مرضية\",'ادخال الاجازات'!H364,0)","v":0}]
[{"$f":"IF('ادخال الاجازات'!I365=\"سنوية\",'ادخال الاجازات'!H365,0)","v":0},{"$f":"IF('ادخال الاجازات'!I365=\"عرضية\",'ادخال الاجازات'!H365,0)","v":0},{"$f":"IF('ادخال الاجازات'!I365=\"أبوه\",'ادخال الاجازات'!H365,0)","v":0},{"$f":"IF('ادخال الاجازات'!I365=\"حج\",'ادخال الاجازات'!H365,0)","v":0},{"$f":"IF('ادخال الاجازات'!I365=\"بدون راتب\",'ادخال الاجازات'!H365,0)","v":0},{"$f":"IF('ادخال الاجازات'!I365=\"مرضية\",'ادخال الاجازات'!H365,0)","v":0}]
[{"$f":"IF('ادخال الاجازات'!I366=\"سنوية\",'ادخال الاجازات'!H366,0)","v":0},{"$f":"IF('ادخال الاجازات'!I366=\"عرضية\",'ادخال الاجازات'!H366,0)","v":0},{"$f":"IF('ادخال الاجازات'!I366=\"أبوه\",'ادخال الاجازات'!H366,0)","v":0},{"$f":"IF('ادخال الاجازات'!I366=\"حج\",'ادخال الاجازات'!H366,0)","v":0},{"$f":"IF('ادخال الاجازات'!I366=\"بدون راتب\",'ادخال الاجازات'!H366,0)","v":0},{"$f":"IF('ادخال الاجازات'!I366=\"مرضية\",'ادخال الاجازات'!H366,0)","v":0}]
[{"$f":"IF('ادخال الاجازات'!I367=\"سنوية\",'ادخال الاجازات'!H367,0)","v":0},{"$f":"IF('ادخال الاجازات'!I367=\"عرضية\",'ادخال الاجازات'!H367,0)","v":0},{"$f":"IF('ادخال الاجازات'!I367=\"أبوه\",'ادخال الاجازات'!H367,0)","v":0},{"$f":"IF('ادخال الاجازات'!I367=\"حج\",'ادخال الاجازات'!H367,0)","v":0},{"$f":"IF('ادخال الاجازات'!I367=\"بدون راتب\",'ادخال الاجازات'!H367,0)","v":0},{"$f":"IF('ادخال الاجازات'!I367=\"مرضية\",'ادخال الاجازات'!H367,0)","v":0}]
[{"$f":"IF('ادخال الاجازات'!I368=\"سنوية\",'ادخال الاجازات'!H368,0)","v":0},{"$f":"IF('ادخال الاجازات'!I368=\"عرضية\",'ادخال الاجازات'!H368,0)","v":0},{"$f":"IF('ادخال الاجازات'!I368=\"أبوه\",'ادخال الاجازات'!H368,0)","v":0},{"$f":"IF('ادخال الاجازات'!I368=\"حج\",'ادخال الاجازات'!H368,0)","v":0},{"$f":"IF('ادخال الاجازات'!I368=\"بدون راتب\",'ادخال الاجازات'!H368,0)","v":0},{"$f":"IF('ادخال الاجازات'!I368=\"مرضية\",'ادخال الاجازات'!H368,0)","v":0}]
[{"$f":"IF('ادخال الاجازات'!I369=\"سنوية\",'ادخال الاجازات'!H369,0)","v":0},{"$f":"IF('ادخال الاجازات'!I369=\"عرضية\",'ادخال الاجازات'!H369,0)","v":0},{"$f":"IF('ادخال الاجازات'!I369=\"أبوه\",'ادخال الاجازات'!H369,0)","v":0},{"$f":"IF('ادخال الاجازات'!I369=\"حج\",'ادخال الاجازات'!H369,0)","v":0},{"$f":"IF('ادخال الاجازات'!I369=\"بدون راتب\",'ادخال الاجازات'!H369,0)","v":0},{"$f":"IF('ادخال الاجازات'!I369=\"مرضية\",'ادخال الاجازات'!H369,0)","v":0}]
[{"$f":"IF('ادخال الاجازات'!I370=\"سنوية\",'ادخال الاجازات'!H370,0)","v":0},{"$f":"IF('ادخال الاجازات'!I370=\"عرضية\",'ادخال الاجازات'!H370,0)","v":0},{"$f":"IF('ادخال الاجازات'!I370=\"أبوه\",'ادخال الاجازات'!H370,0)","v":0},{"$f":"IF('ادخال الاجازات'!I370=\"حج\",'ادخال الاجازات'!H370,0)","v":0},{"$f":"IF('ادخال الاجازات'!I370=\"بدون راتب\",'ادخال الاجازات'!H370,0)","v":0},{"$f":"IF('ادخال الاجازات'!I370=\"مرضية\",'ادخال الاجازات'!H370,0)","v":0}]